Workbook

Sheet ورقة1
H1: ادارة التعليمية | AE1: شيت كنترول الصف الاول
H2: مدرسة التجارية | AE2: للعام الدراسى 2017 / 2018 | BY2: =OFFSET(BY9,0,4) -> 
A3: مسلسل | B3: جلوس | C3: الاسم | D3: الفصل | E3: الحــــالة | F3: سرى | G3: لغة عربية | K3: لغة انجليزية | O3: لغة فرنسية | S3: محاسبة مالية | W3: سكرتارية عربية | AA3: سكرتارية اجنبية | AE3: اقتصاد | AI3: تسويق | AM3: ادارة اعمال | AQ3: قانون تجارى | AU3: رياضة عامة | AY3: جغرافيا | BC3: حاسب آلى | BL3: مجموع كلى | BM3: تربية وطنية | BQ3: تربية دينية | BU3: النتيجة | BV3: مواد الرسوب | BW3: عدد المواد | CA3: لغة عربية | CB3: لغة انجليزية | CC3: لغة فرنسية | CD3: محاسبة مالية | CE3: سكرتارية عربية | CF3: سكرتارية اجنبية | CG3: اقتصاد | CH3: تسويق | CI3: ادارة اعمال | CJ3: قانون تجارى | CK3: رياضة عامة | CL3: جغرافيا | CM3: حاسب ألى | CN3: مجموع | CO3: تربية وطنية | CP3: تربية دينية | CS3: مجموع نصف العام
G4: اعمال السنة | H4: نصف العام | I4: آخر العام | J4: المجموع | K4: اعمال السنة | L4: نصف العام | M4: آخر العام | N4: المجموع | O4: اعمال السنة | P4: نصف العام | Q4: آخر العام | R4: المجموع | S4: اعمال السنة | T4: نصف العام | U4: آخر العام | V4: المجموع | W4: اعمال السنة | X4: نصف العام | Y4: آخر العام | Z4: المجموع | AA4: اعمال السنة | AB4: نصف العام | AC4: آخر العام | AD4: المجموع | AE4: اعمال السنة | AF4: نصف العام | AG4: آخر العام | AH4: المجموع | AI4: اعمال السنة | AJ4: نصف العام | AK4: آخر العام | AL4: المجموع | AM4: اعمال السنة | AN4: نصف العام | AO4: آخر العام | AP4: المجموع | AQ4: اعمال السنة | AR4: نصف العام | AS4: آخر العام | AT4: المجموع | AU4: اعمال السنة | AV4: نصف العام | AW4: آخر العام | AX4: المجموع | AY4: اعمال السنة | AZ4: نصف العام | BA4: آخر العام | BB4: المجموع | BC4: اعمال السنة | BE4: نصف العام | BG4: آخر العام | BI4: مج عملى | BJ4: مج تحريرى | BK4: مج حاسب | BM4: اعمال السنة | BN4: نصف العام | BO4: آخر العام | BP4: المجموع | BQ4: اعمال السنة | BR4: نصف العام | BS4: آخر العام | BT4: المجموع | BY4: =OFFSET(BY11,0,4) -> 
BC5: عملى | BD5: تحريرى | BE5: عملى | BF5: تحريرى | BG5: عملى | BH5: تحريرى
F6: عظمى | G6: 10 | H6: 20 | I6: 20 | J6: 50 | K6: 10 | L6: 20 | M6: 20 | N6: 50 | O6: 6 | P6: 12 | Q6: 12 | R6: 30 | S6: 10 | T6: 20 | U6: 20 | V6: 50 | W6: 10 | X6: 20 | Y6: 20 | Z6: 50 | AA6: 10 | AB6: 20 | AC6: 20 | AD6: 50 | AE6: 10 | AF6: 20 | AG6: 20 | AH6: 50 | AI6: 10 | AJ6: 20 | AK6: 20 | AL6: 50 | AM6: 10 | AN6: 20 | AO6: 20 | AP6: 50 | AR6: 20 | AS6: 20 | AT6: 50 | AU6: 6 | AV6: 12 | AW6: 12 | AX6: 30 | AY6: 8 | AZ6: 16 | BA6: 16 | BB6: 40 | BC6: 4 | BD6: 6 | BE6: 8 | BF6: 12 | BG6: 8 | BH6: 12 | BI6: 20 | BJ6: 30 | BK6: 50 | BL6: 600 | BM6: 4 | BN6: 8 | BO6: 8 | BP6: 20 | BQ6: 4 | BR6: 8 | BS6: 8 | BT6: 20
F7: صغرى | G7: 0 | H7: 0 | I7: 5 | J7: 25 | K7: 0 | L7: 0 | M7: 5 | N7: 20 | P7: 0 | Q7: 3 | R7: 9 | S7: 0 | T7: 0 | U7: 5 | V7: 25 | W7: 0 | X7: 0 | Y7: 5 | Z7: 25 | AA7: 0 | AB7: 0 | AC7: 5 | AD7: 20 | AE7: 0 | AF7: 0 | AG7: 5 | AH7: 25 | AI7: 0 | AJ7: 0 | AK7: 5 | AL7: 25 | AM7: 0 | AN7: 0 | AO7: 5 | AP7: 25 | AR7: 0 | AS7: 5 | AT7: 25 | AU7: 0 | AV7: 0 | AW7: 3 | AX7: 15 | AY7: 0 | AZ7: 0 | BA7: 4 | BB7: 16 | BC7: 0 | BD7: 0 | BE7: 0 | BF7: 0 | BG7: 2 | BH7: 3 | BI7: 10 | BJ7: 15 | BK7: 25 | BL7: 300 | BM7: 0 | BN7: 0 | BO7: 2 | BP7: 10 | BQ7: 0 | BR7: 0 | BS7: 2 | BT7: 10
A8: 1 | B8: 1 | C8: طالب الصف الاول 1 | D8: 4/1 | E8: باق | F8: 57 | G8: 8 | H8: 10.5 | I8: 9.5 | J8: =SUM(G8:I8) -> 28 | K8: 8 | L8: 8 | M8: 13.6 | N8: =SUM(K8:M8) -> 29.6 | O8: 5.5 | P8: 8 | Q8: 10 | R8: =SUM(O8:Q8) -> 23.5 | S8: 7.5 | T8: 10 | U8: 16 | V8: =SUM(S8:U8) -> 33.5 | W8: 8 | X8: 13 | Y8: 10 | Z8: =SUM(W8:Y8) -> 31 | AA8: 9 | AB8: 11.5 | AC8: 10.5 | AD8: =SUM(AA8:AC8) -> 31 | AE8: 8.5 | AF8: 13 | AG8: 15 | AH8: =SUM(AE8:AG8) -> 36.5 | AI8: 8.5 | AJ8: 17.5 | AK8: 13 | AL8: =SUM(AI8:AK8) -> 39 | AM8: 9 | AN8: 17 | AO8: غ | AP8: =SUM(AM8:AO8) -> 26 | AQ8: 8 | AR8: 16 | AS8: غ | AT8: =SUM(AQ8:AS8) -> 24 | AU8: 3.5 | AV8: 2.5 | AW8: 9.5 | AX8: =SUM(AU8:AW8) -> 15.5 | AY8: 6.5 | AZ8: 14 | BA8: 16 | BB8: =SUM(AY8:BA8) -> 36.5 | BC8: 3 | BD8: 4 | BE8: 5 | BF8: 6 | BG8: 6 | BH8: 7 | BI8: =SUM(BC8,BE8,BG8) -> 14 | BJ8: 17 | BK8: =SUM(BI8,BJ8) -> 31 | BL8: =SUM(J8,N8,R8,V8,Z8,AD8,AH8,AL8,AP8,AT8,AX8,BB8,BK8) -> 385.1 | BM8: 3.5 | BN8: 5.5 | BO8: غ | BP8: =SUM(BM8:BO8) -> 9 | BQ8: 3 | BR8: 7 | BS8: غ | BT8: =SUM(BQ8:BS8) -> 10 | BU8: =IF(C8="","",IF(BW8=0,"ناجحة",IF(BW8<=2,"دورثان","راسبة"))) -> دورثان | BV8: =IF(C8="","",IF(BW8=0,"ومنقولة للصف الثانى",IF(BW8>0,"فى : "&CONCATENATE(CA8,CB8,CC8,CD8,CE8,CF8,CG8,CH8,CI8,CK8,CL8,CM8,CN8,CO8,CP8)))) -> فى : ادارة اعمال - تربية وطنية - تربية دينية | BW8: =IF(C8="","",COUNTA(CA8:CM8)-COUNTBLANK(CA8:CM8)) -> 2 | CA8: =IF(C8="","",IF(OR(I8<$I$7,I8="غ",J8<$J$7),CA$3&" - ","")) ->  | CB8: =IF(C8="","",IF(OR(M8<$M$7,M8="غ",N8<$N$7),CB$3&" - ","")) ->  | CC8: =IF(C8="","",IF(OR(Q8<$Q$7,Q8="غ",R8<$R$7),CC$3&" - ","")) ->  | CD8: =IF(C8="","",IF(OR(U8<$U$7,U8="غ",V8<$V$7),CD$3&" - ","")) ->  | CE8: =IF(C8="","",IF(OR(Y8<$Y$7,Y8="غ",Z8<$Z$7),CE$3&" - ","")) ->  | CF8: =IF(C8="","",IF(OR(AC8<$AC$7,AC8="غ",AD8<$AD$7),CF$3&" - ","")) ->  | CG8: =IF(C8="","",IF(OR(AG8<$AG$7,AG8="غ",AH8<$AH$7),CG$3&" - ","")) ->  | CH8: =IF(C8="","",IF(OR(AK8<$AK$7,AK8="غ",AL8<$AL$7),CH$3&" - ","")) ->  | CI8: =IF(C8="","",IF(OR(AO8<$AO$7,AO8="غ",AP8<$AP$7),CI$3&" - ","")) -> ادارة اعمال - | CJ8: =IF(C8="","",IF(OR(AS8<$AS$7,AS8="غ",AT8<$AT$7),CJ$3&" - ","")) -> قانون تجارى - | CK8: =IF(C8="","",IF(OR(AW8<$AW$7,AW8="غ",AX8<$AX$7),CK$3&" - ","")) ->  | CL8: =IF(C8="","",IF(OR(BA8<$BA$7,BA8="غ",BB8<$BB$7),CL$3&" - ","")) ->  | CM8: =IF(C8="","",IF(OR(BG8<$BG$7,BH8<$BH$7,BI8<$BI$7,BI8="غ",BJ8<$BJ$7,BJ8="غ"),CM$3&" - ","")) ->  | CN8: =IF(C8="","",IF(BL8<$BL$7,CN$3&" - ","")) ->  | CO8: =IF(C8="","",IF(OR(BO8<$BO$7,BO8="غ",BP8<$BP$7),CO$3&" - ","")) -> تربية وطنية - | CP8: =IF(C8="","",IF(OR(BS8<$BS$7,BS8="غ",BT8<$BT$7),CP$3,"")) -> تربية دينية | CS8: =IF(C8="","",SUM(H8,L8,P8,T8,X8,AB8,AF8,AJ8,AN8,AR8,AV8,AZ8,BE8,BF8)) -> 152
A9: 2 | B9: 2 | C9: طالب الصف الاول 2 | D9: 4/1 | E9: باق | F9: 58 | G9: 8 | H9: 14 | I9: 13 | J9: 35 | K9: 8 | L9: 12.8 | M9: 14.4 | N9: 35.2 | O9: 5.5 | P9: 7.6 | Q9: 10.4 | R9: 23.5 | S9: 8 | T9: 15 | U9: 13 | V9: 36 | W9: 8 | X9: 16 | Y9: 13 | Z9: 37 | AA9: 9 | AB9: 14 | AC9: 9.5 | AD9: 32.5 | AE9: 8.5 | AF9: 14 | AG9: غ | AH9: 22.5 | AI9: 8.5 | AJ9: 19 | AK9: غ | AL9: 27.5 | AM9: 9 | AN9: 17 | AO9: 15 | AP9: 41 | AQ9: 8 | AR9: 16 | AS9: 14 | AT9: 38 | AU9: 3.5 | AV9: 5 | AW9: 10 | AX9: 18.5 | AY9: 6.5 | AZ9: غ | BA9: 16 | BB9: 22.5 | BC9: 2.5 | BD9: 4 | BE9: 5 | BF9: 7.5 | BG9: 5 | BH9: 7 | BI9: 12.5 | BJ9: 18.5 | BK9: 31 | BL9: 400.2 | BM9: 3.5 | BN9: 5 | BO9: غ | BP9: 8.5 | BQ9: 3 | BR9: 7 | BS9: غ | BT9: 10 | BU9: دورثان | BV9: =IF(C9="","",IF(BW9=0,"ومنقولة للصف الثانى",IF(BW9>0,"فى : "&CONCATENATE(CA9,CB9,CC9,CD9,CE9,CF9,CG9,CH9,CI9,CK9,CL9,CM9,CN9,CO9,CP9)))) -> فى : اقتصاد - تسويق - تربية وطنية - تربية دينية | BW9: =IF(C9="","",COUNTA(CA9:CM9)-COUNTBLANK(CA9:CM9)) -> 2 | CG9: اقتصاد - | CH9: تسويق - | CO9: تربية وطنية - | CP9: تربية دينية | CS9: 162.9
A10: 3 | B10: 3 | C10: طالب الصف الاول 3 | D10: 4/1 | E10: باق | F10: 59 | G10: 8 | H10: 7.5 | I10: 11 | J10: 26.5 | K10: 8 | L10: 13.2 | M10: 15.6 | N10: 36.8 | O10: 5.5 | P10: 7.6 | Q10: 10.4 | R10: 23.5 | S10: 7.5 | T10: 13 | U10: 11.5 | V10: 32 | W10: 8 | X10: 13 | Y10: 12.5 | Z10: 33.5 | AA10: 9 | AB10: 7.5 | AC10: 8.5 | AD10: 25 | AE10: 8.5 | AF10: 13 | AG10: 14 | AH10: 35.5 | AI10: 9 | AJ10: 18 | AK10: 14 | AL10: 41 | AM10: 9 | AN10: 20 | AO10: 15 | AP10: 44 | AQ10: 8 | AR10: 15 | AS10: 14 | AT10: 37 | AU10: 3.5 | AV10: 5.5 | AW10: غ | AX10: 9 | AY10: 6.5 | AZ10: غ | BA10: 16 | BB10: 22.5 | BC10: 3 | BD10: 4 | BE10: 6 | BF10: 7.5 | BG10: 6 | BH10: 7 | BI10: 15 | BJ10: 18.5 | BK10: 33.5 | BL10: 399.8 | BM10: 3.5 | BN10: 4.5 | BO10: غ | BP10: 8 | BQ10: 3 | BR10: 7.5 | BS10: غ | BT10: 10.5 | BU10: دورثان | BV10: فى : رياضة عامة - تربية وطنية - تربية دينية | BW10: 1 | CK10: رياضة عامة - | CO10: تربية وطنية - | CP10: تربية دينية | CS10: 146.8
A11: 4 | B11: 4 | C11: طالب الصف الاول 4 | D11: 4/1 | E11: مستجد | F11: 60 | G11: 7.5 | H11: 10.5 | I11: 12.5 | J11: 30.5 | K11: 8 | L11: 12.8 | M11: 15.6 | N11: 36.4 | O11: 5.5 | P11: 7.6 | Q11: 9.6 | R11: 22.7 | S11: 7.5 | T11: 9.5 | U11: 12.5 | V11: 29.5 | W11: 8 | X11: 15.5 | Y11: 12.5 | Z11: 36 | AA11: 9 | AB11: 9.5 | AC11: 8 | AD11: 26.5 | AE11: 8.5 | AF11: 14 | AG11: 15 | AH11: 37.5 | AI11: 8.5 | AJ11: 17.5 | AK11: 13 | AL11: 39 | AM11: 9 | AN11: 17 | AO11: 15 | AP11: 41 | AQ11: 8 | AR11: 16 | AS11: 14 | AT11: 38 | AU11: 3.5 | AV11: 5.5 | AW11: غ | AX11: 9 | AY11: 6.5 | AZ11: غ | BA11: 15 | BB11: 21.5 | BC11: 3 | BD11: 4 | BE11: 5 | BF11: 7.5 | BG11: 6 | BH11: 7 | BI11: 14 | BJ11: 18.5 | BK11: 32.5 | BL11: 400.1 | BM11: 3.5 | BN11: 5 | BO11: غ | BP11: 8.5 | BQ11: 3 | BR11: 6.5 | BS11: غ | BT11: 9.5 | BU11: دورثان | BV11: فى : رياضة عامة - تربية وطنية - تربية دينية | BW11: 1 | CK11: رياضة عامة - | CO11: تربية وطنية - | CP11: تربية دينية | CS11: 147.9
A12: 5 | B12: 5 | C12: طالب الصف الاول 5 | D12: 4/1 | E12: باق | F12: 61 | G12: 8 | H12: 10 | I12: 9 | J12: 27 | K12: 8 | L12: 11.6 | M12: 5.6 | N12: 25.2 | O12: 5.5 | P12: 6.8 | Q12: 7.6 | R12: 19.9 | S12: 7.5 | T12: 15.5 | U12: 9 | V12: 32 | W12: 8 | X12: 15.5 | Y12: 6 | Z12: 29.5 | AA12: 9 | AB12: 8 | AC12: 8.5 | AD12: 25.5 | AE12: 8.5 | AF12: 19 | AG12: 13 | AH12: 40.5 | AI12: 8.5 | AJ12: 17 | AK12: 11 | AL12: 36.5 | AM12: 9 | AN12: 17 | AO12: 12 | AP12: 38 | AQ12: 8 | AR12: 16 | AS12: 13 | AT12: 37 | AU12: 3.5 | AV12: 3 | AW12: غ | AX12: 6.5 | AY12: 6.5 | AZ12: غ | BA12: 12 | BB12: 18.5 | BC12: 3 | BD12: 4 | BE12: 6 | BF12: 7 | BG12: 5 | BH12: 4 | BI12: 14 | BJ12: 15 | BK12: 29 | BL12: 365.1 | BM12: 3.5 | BN12: 3 | BO12: غ | BP12: 6.5 | BQ12: 3 | BR12: 6 | BS12: غ | BT12: 9 | BU12: دورثان | BV12: فى : رياضة عامة - تربية وطنية - تربية دينية | BW12: 1 | CK12: رياضة عامة - | CO12: تربية وطنية - | CP12: تربية دينية | CS12: 152.4
A13: 6 | B13: 6 | C13: طالب الصف الاول 6 | D13: 4/1 | E13: مستجد | F13: 62 | G13: 8 | H13: 12.5 | I13: 12.5 | J13: 33 | K13: 8 | L13: 11.6 | M13: 10.8 | N13: 30.4 | O13: 5.5 | P13: 7.6 | Q13: 9.2 | R13: 22.3 | S13: 8 | T13: 10.5 | U13: 8.5 | V13: 27 | W13: 8.5 | X13: 15 | Y13: 11.5 | Z13: 35 | AA13: 9 | AB13: 8 | AC13: 1.5 | AD13: 18.5 | AE13: 8.5 | AF13: 14 | AG13: 13 | AH13: 35.5 | AI13: 8.5 | AJ13: 16.5 | AK13: 13 | AL13: 38 | AM13: 8.5 | AN13: 17 | AO13: 15 | AP13: 40.5 | AQ13: 8 | AR13: 16 | AS13: 14 | AT13: 38 | AU13: 3.5 | AV13: 5 | AW13: غ | AX13: 8.5 | AY13: 6.5 | AZ13: غ | BA13: 15 | BB13: 21.5 | BC13: 3 | BD13: 4 | BE13: 5 | BF13: 7.5 | BG13: 5 | BH13: 7 | BI13: 13 | BJ13: 18.5 | BK13: 31.5 | BL13: 379.7 | BM13: 3.5 | BN13: 5 | BO13: غ | BP13: 8.5 | BQ13: 3 | BR13: 6 | BS13: غ | BT13: 9 | BU13: دورثان | BV13: فى : سكرتارية اجنبية - رياضة عامة - تربية وطنية - تربية دينية | BW13: 2 | CF13: سكرتارية اجنبية - | CK13: رياضة عامة - | CO13: تربية وطنية - | CP13: تربية دينية | CS13: 146.2
A14: 7 | B14: 7 | C14: طالب الصف الاول 7 | D14: 4/1 | E14: باق | F14: 63 | G14: 8.5 | H14: 12 | I14: 10.5 | J14: 31 | K14: 8 | L14: 15.2 | M14: 14 | N14: 37.2 | O14: 5.5 | P14: 8 | Q14: 10 | R14: 23.5 | S14: 7.5 | T14: 10 | U14: 10.5 | V14: 28 | W14: 8 | X14: 16 | Y14: 11.5 | Z14: 35.5 | AA14: 9 | AB14: 10.5 | AC14: 9.5 | AD14: 29 | AE14: 8.5 | AF14: 14 | AG14: 15 | AH14: 37.5 | AI14: 8.5 | AJ14: 16.5 | AK14: 14 | AL14: 39 | AM14: 9 | AN14: 16 | AO14: 15 | AP14: 40 | AQ14: 8 | AR14: 15 | AS14: 14 | AT14: 37 | AU14: 3.5 | AV14: 5 | AW14: غ | AX14: 8.5 | AY14: 6.5 | AZ14: غ | BA14: 16 | BB14: 22.5 | BC14: 3 | BD14: 4 | BE14: 6 | BF14: 7.5 | BG14: 5 | BH14: 7 | BI14: 14 | BJ14: 18.5 | BK14: 32.5 | BL14: 401.2 | BM14: 3.5 | BN14: 5 | BO14: غ | BP14: 8.5 | BQ14: 3 | BR14: 7 | BS14: غ | BT14: 10 | BU14: دورثان | BV14: فى : رياضة عامة - تربية وطنية - تربية دينية | BW14: 1 | CK14: رياضة عامة - | CO14: تربية وطنية - | CP14: تربية دينية | CS14: 151.7
A15: 8 | B15: 8 | C15: طالب الصف الاول 8 | D15: 4/1 | E15: باق | F15: 64 | G15: 8.5 | H15: 11.5 | I15: 13.5 | J15: 33.5 | K15: 8 | L15: 13.2 | M15: 15.6 | N15: 36.8 | O15: 5.5 | P15: 7.6 | Q15: 10 | R15: 23.1 | S15: 7 | T15: 15 | U15: 13.5 | V15: 35.5 | W15: 8 | X15: 14.5 | Y15: 12.5 | Z15: 35 | AA15: 9 | AB15: 9 | AC15: 5.5 | AD15: 23.5 | AE15: 8.5 | AF15: 14 | AG15: 16 | AH15: 38.5 | AI15: 8.5 | AJ15: 17.5 | AK15: 11 | AL15: 37 | AM15: 9 | AN15: 16 | AO15: 15 | AP15: 40 | AQ15: 8 | AR15: 15 | AS15: 14 | AT15: 37 | AU15: 3.5 | AV15: 5.5 | AW15: غ | AX15: 9 | AY15: 6.5 | AZ15: غ | BA15: 16 | BB15: 22.5 | BC15: 3 | BD15: 4 | BE15: 5 | BF15: 7.5 | BG15: 5 | BH15: 7 | BI15: 13 | BJ15: 18.5 | BK15: 31.5 | BL15: 402.9 | BM15: 3.5 | BN15: 5 | BO15: غ | BP15: 8.5 | BQ15: 3 | BR15: 7 | BS15: غ | BT15: 10 | BU15: دورثان | BV15: فى : رياضة عامة - تربية وطنية - تربية دينية | BW15: 1 | CK15: رياضة عامة - | CO15: تربية وطنية - | CP15: تربية دينية | CS15: 151.3
A16: 9 | B16: 9 | C16: طالب الصف الاول 9 | D16: 4/1 | E16: مستجد | F16: 65 | G16: 8 | H16: 15 | I16: 14 | J16: 37 | K16: 8 | L16: 13.2 | M16: 16.4 | N16: 37.6 | O16: 5.5 | P16: 7.6 | Q16: 10.4 | R16: 23.5 | S16: 7.5 | T16: 14.5 | U16: 14 | V16: 36 | W16: 8 | X16: 16.5 | Y16: 12 | Z16: 36.5 | AA16: 9 | AB16: 8.5 | AC16: 9.5 | AD16: 27 | AE16: 9 | AF16: 14 | AG16: 16 | AH16: 39 | AI16: 8.5 | AJ16: 17.5 | AK16: 15 | AL16: 41 | AM16: 9 | AN16: 17 | AO16: 13 | AP16: 39 | AQ16: 8 | AR16: 16 | AS16: 14 | AT16: 38 | AU16: 3.5 | AV16: 5 | AW16: غ | AX16: 8.5 | AY16: 6.5 | AZ16: غ | BA16: 16 | BB16: 22.5 | BC16: 3 | BD16: 4 | BE16: 6 | BF16: 7.5 | BG16: 5 | BH16: 7 | BI16: 14 | BJ16: 18.5 | BK16: 32.5 | BL16: 418.1 | BM16: 3.5 | BN16: 4.5 | BO16: غ | BP16: 8 | BQ16: 3 | BR16: 6.5 | BS16: غ | BT16: 9.5 | BU16: دورثان | BV16: فى : رياضة عامة - تربية وطنية - تربية دينية | BW16: 1 | CK16: رياضة عامة - | CO16: تربية وطنية - | CP16: تربية دينية | CS16: 158.3
A17: 10 | B17: 10 | C17: طالب الصف الاول 10 | D17: 4/1 | E17: مستجد | F17: 66 | G17: 8 | H17: 12 | I17: 11 | J17: 31 | K17: 8 | L17: 14 | M17: 14 | N17: 36 | O17: 5.5 | P17: 7.6 | Q17: 10 | R17: 23.1 | S17: 8 | T17: 10 | U17: 13.5 | V17: 31.5 | W17: 8.5 | X17: 14 | Y17: 12.5 | Z17: 35 | AA17: 9 | AB17: 10 | AC17: 10 | AD17: 29 | AE17: 8.5 | AF17: 14 | AG17: 16 | AH17: 38.5 | AI17: 8.5 | AJ17: 19 | AK17: 13 | AL17: 40.5 | AM17: 8.5 | AN17: 17 | AO17: غ | AP17: 25.5 | AQ17: 8 | AR17: 16 | AS17: 14 | AT17: 38 | AU17: 3.5 | AV17: 4 | AW17: غ | AX17: 7.5 | AY17: 6.5 | AZ17: 15 | BA17: 16 | BB17: 37.5 | BC17: 3 | BD17: 4 | BE17: 5 | BF17: 7.5 | BG17: 5 | BH17: 7 | BI17: 13 | BJ17: 18.5 | BK17: 31.5 | BL17: 404.6 | BM17: 3.5 | BN17: 5 | BO17: غ | BP17: 8.5 | BQ17: 3 | BR17: 6 | BS17: غ | BT17: 9 | BU17: دورثان | BV17: فى : ادارة اعمال - رياضة عامة - تربية وطنية - تربية دينية | BW17: 2 | CI17: ادارة اعمال - | CK17: رياضة عامة - | CO17: تربية وطنية - | CP17: تربية دينية | CS17: 165.1
A18: 11 | B18: 11 | C18: طالب الصف الاول 11 | D18: 4/1 | E18: مستجد | F18: 67 | G18: 8 | H18: 13.5 | I18: 12.5 | J18: 34 | K18: 8 | L18: 12 | M18: 16.4 | N18: 36.4 | O18: 5.5 | P18: 8 | Q18: 10 | R18: 23.5 | S18: 8 | T18: 11 | U18: 12.5 | V18: 31.5 | W18: 8 | X18: 15 | Y18: 11.5 | Z18: 34.5 | AA18: 9 | AB18: 11 | AC18: 6.5 | AD18: 26.5 | AE18: 8.5 | AF18: 14 | AG18: 14 | AH18: 36.5 | AI18: 8.5 | AJ18: 19.5 | AK18: 14 | AL18: 42 | AM18: 9 | AN18: 17 | AO18: غ | AP18: 26 | AQ18: 8 | AR18: 16 | AS18: غ | AT18: 24 | AU18: 3.5 | AV18: 5.5 | AW18: 9.5 | AX18: 18.5 | AY18: 6.5 | AZ18: 16 | BA18: 16 | BB18: 38.5 | BC18: 3 | BD18: 4 | BE18: 5 | BF18: 7.5 | BG18: 6 | BH18: 7 | BI18: 14 | BJ18: 18.5 | BK18: 32.5 | BL18: 404.4 | BM18: 3.5 | BN18: 5.5 | BO18: غ | BP18: 9 | BQ18: 3 | BR18: 6.5 | BS18: غ | BT18: 9.5 | BU18: دورثان | BV18: فى : ادارة اعمال - تربية وطنية - تربية دينية | BW18: 2 | CI18: ادارة اعمال - | CJ18: قانون تجارى - | CO18: تربية وطنية - | CP18: تربية دينية | CS18: 171
A19: 12 | B19: 12 | C19: طالب الصف الاول 12 | D19: 4/1 | E19: مستجد | F19: 68 | G19: 8 | H19: 13.5 | I19: 11.5 | J19: 33 | K19: 8 | L19: 14.4 | M19: 15.2 | N19: 37.6 | O19: 5.5 | P19: 6.8 | Q19: 10 | R19: 22.3 | S19: 7.5 | T19: 9.5 | U19: 11.5 | V19: 28.5 | W19: 8 | X19: 14.5 | Y19: 11.5 | Z19: 34 | AA19: 9 | AB19: 10 | AC19: 9 | AD19: 28 | AE19: 9 | AF19: 14 | AG19: 11 | AH19: 34 | AI19: 8.5 | AJ19: 17.5 | AK19: 14 | AL19: 40 | AM19: 9 | AN19: 17 | AO19: غ | AP19: 26 | AQ19: 8 | AR19: 16 | AS19: غ | AT19: 24 | AU19: 3.5 | AV19: 5 | AW19: 7.5 | AX19: 16 | AY19: 6.5 | AZ19: 13 | BA19: 16 | BB19: 35.5 | BC19: 3 | BD19: 4 | BE19: 5 | BF19: 7 | BG19: 6 | BH19: 7 | BI19: 14 | BJ19: 18 | BK19: 32 | BL19: 390.9 | BM19: 3.5 | BN19: 5 | BO19: غ | BP19: 8.5 | BQ19: 3 | BR19: 7 | BS19: غ | BT19: 10 | BU19: دورثان | BV19: فى : ادارة اعمال - تربية وطنية - تربية دينية | BW19: 2 | CI19: ادارة اعمال - | CJ19: قانون تجارى - | CO19: تربية وطنية - | CP19: تربية دينية | CS19: 163.2
A20: 13 | B20: 13 | C20: طالب الصف الاول 13 | D20: 4/1 | E20: باق | F20: 69 | G20: 7.5 | H20: 14 | I20: 15 | J20: 36.5 | K20: 8 | L20: 13.2 | M20: 15.6 | N20: 36.8 | O20: 5.5 | P20: 7.6 | Q20: 10 | R20: 23.1 | S20: 7.5 | T20: 11 | U20: 12.5 | V20: 31 | W20: 8 | X20: 12 | Y20: 12 | Z20: 32 | AA20: 9 | AB20: 9 | AC20: 5.5 | AD20: 23.5 | AE20: 8.5 | AF20: 14 | AG20: 14 | AH20: 36.5 | AI20: 8.5 | AJ20: 17.5 | AK20: 14 | AL20: 40 | AM20: 9 | AN20: 17 | AO20: غ | AP20: 26 | AQ20: 8 | AR20: 16 | AS20: غ | AT20: 24 | AU20: 3.5 | AV20: 5.5 | AW20: 0 | AX20: 9 | AY20: 6.5 | AZ20: 16 | BA20: 16 | BB20: 38.5 | BC20: 3 | BD20: 4 | BE20: 5 | BF20: 7.5 | BG20: 5 | BH20: 7 | BI20: 13 | BJ20: 18.5 | BK20: 31.5 | BL20: 388.4 | BM20: 3.5 | BN20: 4.5 | BO20: غ | BP20: 8 | BQ20: 3 | BR20: 7.5 | BS20: غ | BT20: 10.5 | BU20: راسبة | BV20: فى : ادارة اعمال - رياضة عامة - تربية وطنية - تربية دينية | BW20: 3 | CI20: ادارة اعمال - | CJ20: قانون تجارى - | CK20: رياضة عامة - | CO20: تربية وطنية - | CP20: تربية دينية | CS20: 165.3
A21: 14 | B21: 14 | C21: طالب الصف الاول 14 | D21: 4/1 | E21: باق | F21: 70 | G21: 8 | H21: 11.5 | I21: 12.5 | J21: 32 | K21: 8 | L21: 13.2 | M21: 15.2 | N21: 36.4 | O21: 5.5 | P21: 7.6 | Q21: 10 | R21: 23.1 | S21: 7.5 | T21: 9.5 | U21: 14.5 | V21: 31.5 | W21: 8 | X21: 13.5 | Y21: 13 | Z21: 34.5 | AA21: 9 | AB21: 7.5 | AC21: 8 | AD21: 24.5 | AE21: 8.5 | AF21: 14 | AG21: 15 | AH21: 37.5 | AI21: 8 | AJ21: 14 | AK21: 14 | AL21: 36 | AM21: 9 | AN21: 17 | AO21: غ | AP21: 26 | AQ21: 8 | AR21: 16 | AS21: غ | AT21: 24 | AU21: 3.5 | AV21: 5 | AW21: 10 | AX21: 18.5 | AY21: 6.5 | AZ21: 15 | BA21: 15 | BB21: 36.5 | BC21: 3 | BD21: 4 | BE21: 5 | BF21: 7.5 | BG21: 5 | BH21: 7 | BI21: 13 | BJ21: 18.5 | BK21: 31.5 | BL21: 392 | BM21: 3.5 | BN21: 4.5 | BO21: غ | BP21: 8 | BQ21: 3 | BR21: 6.5 | BS21: غ | BT21: 9.5 | BU21: دورثان | BV21: فى : ادارة اعمال - تربية وطنية - تربية دينية | BW21: 2 | CI21: ادارة اعمال - | CJ21: قانون تجارى - | CO21: تربية وطنية - | CP21: تربية دينية | CS21: 156.3
A22: 15 | B22: 15 | C22: طالب الصف الاول 15 | D22: 4/1 | E22: مستجد | F22: 71 | G22: 8 | H22: 13.5 | I22: 13.5 | J22: 35 | K22: 8 | L22: 11.6 | M22: 14.8 | N22: 34.4 | O22: 4.5 | P22: 9.2 | Q22: 9.6 | R22: 23.3 | S22: 7.5 | T22: 12 | U22: 13.5 | V22: 33 | W22: 8 | X22: 15 | Y22: 11 | Z22: 34 | AA22: 9 | AB22: غ | AC22: 7.5 | AD22: 16.5 | AE22: 8.5 | AF22: 14 | AG22: 14 | AH22: 36.5 | AI22: 8.5 | AJ22: 17.5 | AK22: غ | AL22: 26 | AM22: 9 | AN22: 17 | AO22: غ | AP22: 26 | AQ22: 8 | AR22: 16 | AS22: غ | AT22: 24 | AU22: 3.5 | AV22: 5.5 | AW22: 9 | AX22: 18 | AY22: 7 | AZ22: 15 | BA22: 16 | BB22: 38 | BC22: 2.5 | BD22: 4 | BE22: 6 | BF22: 7.5 | BG22: 6 | BH22: 7 | BI22: 14.5 | BJ22: 18.5 | BK22: 33 | BL22: 377.7 | BM22: 3.5 | BN22: 4.5 | BO22: غ | BP22: 8 | BQ22: 3 | BR22: 6.5 | BS22: غ | BT22: 9.5 | BU22: راسبة | BV22: فى : سكرتارية اجنبية - تسويق - ادارة اعمال - تربية وطنية - تربية دينية | BW22: 4 | CF22: سكرتارية اجنبية - | CH22: تسويق - | CI22: ادارة اعمال - | CJ22: قانون تجارى - | CO22: تربية وطنية - | CP22: تربية دينية | CS22: 159.8
A23: 16 | B23: 16 | C23: طالب الصف الاول 16 | D23: 4/1 | E23: مستجد | F23: 72 | G23: 8 | H23: 13.5 | I23: 16 | J23: 37.5 | K23: 8 | L23: 13.2 | M23: 15.6 | N23: 36.8 | O23: 4.5 | P23: 7.6 | Q23: 10.4 | R23: 22.5 | S23: 7.5 | T23: 12 | U23: 13.5 | V23: 33 | W23: 8.5 | X23: 16 | Y23: 12 | Z23: 36.5 | AA23: 9 | AB23: غ | AC23: 11 | AD23: 20 | AE23: 8.5 | AF23: 14 | AG23: 15 | AH23: 37.5 | AI23: 8.5 | AJ23: 17.5 | AK23: غ | AL23: 26 | AM23: 9 | AN23: 17 | AO23: غ | AP23: 26 | AQ23: 8 | AR23: 16 | AS23: غ | AT23: 24 | AU23: 3.5 | AV23: 7 | AW23: 9.5 | AX23: 20 | AY23: 6.5 | AZ23: 15 | BA23: 16 | BB23: 37.5 | BC23: 3 | BD23: 4 | BE23: 5 | BF23: 7.5 | BG23: 5 | BH23: 7 | BI23: 13 | BJ23: 18.5 | BK23: 31.5 | BL23: 388.8 | BM23: 3.5 | BN23: 4.5 | BO23: غ | BP23: 8 | BQ23: 3 | BR23: 6.5 | BS23: غ | BT23: 9.5 | BU23: راسبة | BV23: فى : تسويق - ادارة اعمال - تربية وطنية - تربية دينية | BW23: 3 | CH23: تسويق - | CI23: ادارة اعمال - | CJ23: قانون تجارى - | CO23: تربية وطنية - | CP23: تربية دينية | CS23: 161.3
A24: 17 | B24: 17 | C24: طالب الصف الاول 17 | D24: 4/1 | E24: مستجد | F24: 73 | G24: 8 | H24: 12 | I24: 14 | J24: 34 | K24: 8 | L24: 13.6 | M24: 15.6 | N24: 37.2 | O24: 4.5 | P24: 7.6 | Q24: 10 | R24: 22.1 | S24: 8 | T24: 12 | U24: 11.5 | V24: 31.5 | W24: 8 | X24: 17.5 | Y24: 13 | Z24: 38.5 | AA24: 9 | AB24: غ | AC24: 11.5 | AD24: 20.5 | AE24: 8.5 | AF24: 14 | AG24: 15 | AH24: 37.5 | AI24: 8.5 | AJ24: 16.5 | AK24: غ | AL24: 25 | AM24: 8.5 | AN24: 17 | AO24: غ | AP24: 25.5 | AQ24: 8 | AR24: 16 | AS24: غ | AT24: 24 | AU24: 3.5 | AV24: 5.5 | AW24: 8.5 | AX24: 17.5 | AY24: 7 | AZ24: 15 | BA24: 15 | BB24: 37 | BC24: 2.5 | BD24: 4 | BE24: 5 | BF24: 7.5 | BG24: 5 | BH24: 7 | BI24: 12.5 | BJ24: 18.5 | BK24: 31 | BL24: 381.3 | BM24: 3.5 | BN24: 5.5 | BO24: غ | BP24: 9 | BQ24: 3 | BR24: 6.5 | BS24: غ | BT24: 9.5 | BU24: راسبة | BV24: فى : تسويق - ادارة اعمال - تربية وطنية - تربية دينية | BW24: 3 | CH24: تسويق - | CI24: ادارة اعمال - | CJ24: قانون تجارى - | CO24: تربية وطنية - | CP24: تربية دينية | CS24: 159.2
A25: 18 | B25: 18 | C25: طالب الصف الاول 18 | D25: 4/1 | E25: باق | F25: 74 | G25: 8 | H25: 14.5 | I25: 16.5 | J25: 39 | K25: 8 | L25: 15.6 | M25: 14.8 | N25: 38.4 | O25: 4.5 | P25: 6.8 | Q25: 9.6 | R25: 20.9 | S25: 8 | T25: 12.5 | U25: 13 | V25: 33.5 | W25: 8 | X25: 14 | Y25: 13 | Z25: 35 | AA25: 9 | AB25: غ | AC25: 11 | AD25: 20 | AE25: 8.5 | AF25: 16 | AG25: 15 | AH25: 39.5 | AI25: 8.5 | AJ25: 17 | AK25: غ | AL25: 25.5 | AM25: 9 | AN25: 15 | AO25: 14 | AP25: 38 | AQ25: 8 | AR25: 16 | AS25: غ | AT25: 24 | AU25: 3.5 | AV25: 7 | AW25: 9 | AX25: 19.5 | AY25: 7 | AZ25: 14 | BA25: 15 | BB25: 36 | BC25: 2.5 | BD25: 4 | BE25: 5 | BF25: 8 | BG25: 6 | BH25: 7 | BI25: 13.5 | BJ25: 19 | BK25: 32.5 | BL25: 401.8 | BM25: 3.5 | BN25: 7 | BO25: غ | BP25: 10.5 | BQ25: 3 | BR25: 6 | BS25: غ | BT25: 9 | BU25: دورثان | BV25: فى : تسويق - تربية وطنية - تربية دينية | BW25: 2 | CH25: تسويق - | CJ25: قانون تجارى - | CO25: تربية وطنية - | CP25: تربية دينية | CS25: 161.4
A26: 19 | B26: 19 | C26: طالب الصف الاول 19 | D26: 4/1 | E26: مستجد | F26: 75 | G26: 8 | H26: 13.5 | I26: 12 | J26: 33.5 | K26: 8 | L26: 14.4 | M26: 15.2 | N26: 37.6 | O26: 5.5 | P26: 6.4 | Q26: 9.6 | R26: 21.5 | S26: 8 | T26: 13.5 | U26: 14.5 | V26: 36 | W26: 8 | X26: 14.5 | Y26: 13 | Z26: 35.5 | AA26: 9 | AB26: غ | AC26: 10 | AD26: 19 | AE26: 8.5 | AF26: 16 | AG26: 14 | AH26: 38.5 | AI26: 8.5 | AJ26: 17.5 | AK26: غ | AL26: 26 | AM26: 9 | AN26: 17 | AO26: 14 | AP26: 40 | AQ26: 8 | AR26: 16 | AS26: 13 | AT26: 37 | AU26: 3.5 | AV26: 5 | AW26: 9.5 | AX26: 18 | AY26: 7 | AZ26: 15 | BA26: 15 | BB26: 37 | BC26: 3 | BD26: 4 | BE26: 5 | BF26: 8.5 | BG26: 5 | BH26: 7 | BI26: 13 | BJ26: 19.5 | BK26: 32.5 | BL26: 412.1 | BM26: 3.5 | BN26: 6 | BO26: غ | BP26: 9.5 | BQ26: 3 | BR26: 7 | BS26: غ | BT26: 10 | BU26: دورثان | BV26: فى : سكرتارية اجنبية - تسويق - تربية وطنية - تربية دينية | BW26: 2 | CF26: سكرتارية اجنبية - | CH26: تسويق - | CO26: تربية وطنية - | CP26: تربية دينية | CS26: 162.3
A27: 20 | B27: 20 | C27: طالب الصف الاول 20 | D27: 4/1 | E27: باق | F27: 76 | G27: 8 | H27: 11.5 | I27: 10 | J27: 29.5 | K27: 8 | L27: 14.4 | M27: 13.6 | N27: 36 | O27: 5.5 | P27: 6.4 | Q27: 9.6 | R27: 21.5 | S27: 8 | T27: 13.5 | U27: 15.5 | V27: 37 | W27: 8 | X27: 16 | Y27: 13 | Z27: 37 | AA27: 9 | AB27: غ | AC27: 13.5 | AD27: 22.5 | AE27: 8.5 | AF27: 16 | AG27: 12 | AH27: 36.5 | AI27: 8.5 | AJ27: 17.5 | AK27: غ | AL27: 26 | AM27: 9 | AN27: 17 | AO27: 13 | AP27: 39 | AQ27: 8 | AR27: 16 | AS27: 16 | AT27: 40 | AU27: 3.5 | AV27: 7.5 | AW27: 10 | AX27: 21 | AY27: 7 | AZ27: 13 | BA27: 15 | BB27: 35 | BC27: 3 | BD27: 4 | BE27: 5 | BF27: 8.5 | BG27: 5 | BH27: 7 | BI27: 13 | BJ27: 19.5 | BK27: 32.5 | BL27: 413.5 | BM27: 3.5 | BN27: 6 | BO27: 7.5 | BP27: 17 | BQ27: 3 | BR27: 7 | BS27: غ | BT27: 10 | BU27: دورثان | BV27: فى : تسويق - تربية دينية | BW27: 1 | CH27: تسويق - | CP27: تربية دينية | CS27: 162.3
A28: 21 | B28: 21 | C28: طالب الصف الاول 21 | D28: 4/1 | E28: باق | F28: 77 | G28: 8 | H28: 14.5 | I28: 14 | J28: 36.5 | K28: 8 | L28: 15.6 | M28: 16.4 | N28: 40 | O28: 4.5 | P28: 8.4 | Q28: 9.6 | R28: 22.5 | S28: 8 | T28: 14.5 | U28: 15.5 | V28: 38 | W28: 8.5 | X28: 17 | Y28: 13 | Z28: 38.5 | AA28: 9 | AB28: غ | AC28: 14 | AD28: 23 | AE28: 8.5 | AF28: 16 | AG28: 14 | AH28: 38.5 | AI28: 8.5 | AJ28: 17.5 | AK28: غ | AL28: 26 | AM28: 8.5 | AN28: 18 | AO28: 13 | AP28: 39.5 | AQ28: 8 | AR28: 16 | AS28: 16 | AT28: 40 | AU28: 3.5 | AV28: 5 | AW28: 9.5 | AX28: 18 | AY28: 7 | AZ28: 15 | BA28: 16 | BB28: 38 | BC28: 2.5 | BD28: 4 | BE28: 6 | BF28: 8.5 | BG28: 6 | BH28: 7 | BI28: 14.5 | BJ28: 19.5 | BK28: 34 | BL28: 432.5 | BM28: 3.5 | BN28: 6 | BO28: 7.5 | BP28: 17 | BQ28: 3 | BR28: 7 | BS28: غ | BT28: 10 | BU28: دورثان | BV28: فى : تسويق - تربية دينية | BW28: 1 | CH28: تسويق - | CP28: تربية دينية | CS28: 172
A29: 22 | B29: 22 | C29: طالب الصف الاول 22 | D29: 4/1 | E29: مستجد | F29: 78 | G29: 8.5 | H29: 13 | I29: 14 | J29: 35.5 | K29: 8 | L29: 14.4 | M29: 14.8 | N29: 37.2 | O29: 5.5 | P29: 6.8 | Q29: 9.6 | R29: 21.9 | S29: 8 | T29: 13.5 | U29: 14 | V29: 35.5 | W29: 8.5 | X29: 18.5 | Y29: 13 | Z29: 40 | AA29: 9 | AB29: غ | AC29: 12.5 | AD29: 21.5 | AE29: 9 | AF29: 16 | AG29: 14 | AH29: 39 | AI29: 8.5 | AJ29: 17.5 | AK29: غ | AL29: 26 | AM29: 9 | AN29: 17 | AO29: 14 | AP29: 40 | AQ29: 8 | AR29: 16 | AS29: 16 | AT29: 40 | AU29: 3.5 | AV29: 8 | AW29: 10 | AX29: 21.5 | AY29: 7 | AZ29: 15 | BA29: 16 | BB29: 38 | BC29: 3 | BD29: 4 | BE29: 6 | BF29: 8.5 | BG29: 6 | BH29: 7 | BI29: 15 | BJ29: 19.5 | BK29: 34.5 | BL29: 430.6 | BM29: 3.5 | BN29: 6 | BO29: 6 | BP29: 15.5 | BQ29: 3 | BR29: 7 | BS29: 6 | BT29: 16 | BU29: دورثان | BV29: فى : تسويق - | BW29: 1 | CH29: تسويق - | CS29: 170.2
A30: 23 | B30: 23 | C30: طالب الصف الاول 23 | D30: 4/1 | E30: مستجد | F30: 79 | G30: 8 | H30: 7.5 | I30: 9.5 | J30: 25 | K30: 8 | L30: 8 | M30: 10 | N30: 26 | O30: 4.5 | P30: 7.6 | Q30: 8.8 | R30: 20.9 | S30: 8 | T30: 12 | U30: 14.5 | V30: 34.5 | W30: 8 | X30: 12 | Y30: 10 | Z30: 30 | AA30: 9 | AB30: غ | AC30: 7.5 | AD30: 16.5 | AE30: 8.5 | AF30: 16 | AG30: 12 | AH30: 36.5 | AI30: 8.5 | AJ30: 16 | AK30: غ | AL30: 24.5 | AM30: 8.5 | AN30: 15 | AO30: 12 | AP30: 35.5 | AQ30: 8 | AR30: 17 | AS30: 16 | AT30: 41 | AU30: 3.5 | AV30: 3.5 | AW30: 8 | AX30: 15 | AY30: 7 | AZ30: 12 | BA30: 13 | BB30: 32 | BC30: 2.5 | BD30: 4 | BE30: 6 | BF30: 8.5 | BG30: 6 | BH30: 7 | BI30: 14.5 | BJ30: 19.5 | BK30: 34 | BL30: 371.4 | BM30: 3.5 | BN30: 4 | BO30: 6 | BP30: 13.5 | BQ30: 3 | BR30: 7 | BS30: 4.5 | BT30: 14.5 | BU30: دورثان | BV30: فى : سكرتارية اجنبية - تسويق - | BW30: 2 | CF30: سكرتارية اجنبية - | CH30: تسويق - | CS30: 141.1
A31: 24 | B31: 24 | C31: طالب الصف الاول 24 | D31: 4/1 | E31: باق | F31: 80 | G31: 8 | H31: 13 | I31: 13 | J31: 34 | K31: 8 | L31: 13.6 | M31: 15.2 | N31: 36.8 | O31: 4.5 | P31: 8 | Q31: 9.2 | R31: 21.7 | S31: 8 | T31: 12.5 | U31: 13 | V31: 33.5 | W31: 8 | X31: 17.5 | Y31: 12 | Z31: 37.5 | AA31: 9 | AB31: 11.5 | AC31: 12.5 | AD31: 33 | AE31: 8.5 | AF31: 16 | AG31: 15 | AH31: 39.5 | AI31: 8.5 | AJ31: 18.5 | AK31: 17.5 | AL31: 44.5 | AM31: 9 | AN31: 17 | AO31: 15 | AP31: 41 | AQ31: 8 | AR31: 16 | AS31: 16 | AT31: 40 | AU31: 3.5 | AV31: 8 | AW31: 9.5 | AX31: 21 | AY31: 7 | AZ31: 14 | BA31: 15 | BB31: 36 | BC31: 3 | BD31: 4 | BE31: 6 | BF31: 9.5 | BG31: 6 | BH31: 8 | BI31: 15 | BJ31: 21.5 | BK31: 36.5 | BL31: 455 | BM31: 3.5 | BN31: 5 | BO31: 6.5 | BP31: 15 | BQ31: 3 | BR31: 7 | BS31: 7 | BT31: 17 | BU31: ناجحة | BV31: ومنقولة للصف الثانى | BW31: 0 | CS31: 181.1
A32: 25 | B32: 25 | C32: طالب الصف الاول 25 | D32: 4/1 | E32: مستجد | F32: 81 | G32: 8 | H32: 12.5 | I32: 10 | J32: 30.5 | K32: 8 | L32: 14 | M32: 16 | N32: 38 | O32: 4.5 | P32: 6.8 | Q32: 9.6 | R32: 20.9 | S32: 8 | T32: 11 | U32: 15 | V32: 34 | W32: 8.5 | X32: 17.5 | Y32: 13 | Z32: 39 | AA32: 9 | AB32: 8.5 | AC32: 10 | AD32: 27.5 | AE32: 8.5 | AF32: 16 | AG32: 14 | AH32: 38.5 | AI32: 8.5 | AJ32: 18 | AK32: 17 | AL32: 43.5 | AM32: 9 | AN32: 17 | AO32: 15 | AP32: 41 | AQ32: 8 | AR32: 17 | AS32: 16 | AT32: 41 | AU32: 3.5 | AV32: 5 | AW32: 8 | AX32: 16.5 | AY32: 7 | AZ32: 13 | BA32: 15 | BB32: 35 | BC32: 2.5 | BD32: 4 | BE32: 6 | BF32: 8.5 | BG32: 5 | BH32: 8 | BI32: 13.5 | BJ32: 20.5 | BK32: 34 | BL32: 439.4 | BM32: 3.5 | BN32: 6 | BO32: 6 | BP32: 15.5 | BQ32: 3 | BR32: 6.5 | BS32: 7 | BT32: 16.5 | BU32: ناجحة | BV32: ومنقولة للصف الثانى | BW32: 0 | CS32: 170.8
A33: 26 | B33: 26 | C33: طالب الصف الاول 26 | D33: 4/1 | E33: مستجد | F33: 82 | G33: 8 | H33: 9 | I33: 9.5 | J33: 26.5 | K33: 8 | L33: 12.4 | M33: 15.6 | N33: 36 | O33: 4.5 | P33: 6.8 | Q33: 10 | R33: 21.3 | S33: 8 | T33: 7.5 | U33: 13.5 | V33: 29 | W33: 8.5 | X33: 17.5 | Y33: 11.5 | Z33: 37.5 | AA33: 9 | AB33: 10 | AC33: 10 | AD33: 29 | AE33: 8.5 | AF33: 16 | AG33: 14 | AH33: 38.5 | AI33: 8.5 | AJ33: 13.5 | AK33: 10 | AL33: 32 | AM33: 8.5 | AN33: 17 | AO33: 16 | AP33: 41.5 | AQ33: 8 | AR33: 16 | AS33: 16 | AT33: 40 | AU33: 3.5 | AV33: 4 | AW33: 8.5 | AX33: 16 | AY33: 7 | AZ33: 15 | BA33: 15 | BB33: 37 | BC33: 2.5 | BD33: 4 | BE33: 6 | BF33: 8.5 | BG33: 6 | BH33: 7 | BI33: 14.5 | BJ33: 19.5 | BK33: 34 | BL33: 418.3 | BM33: 3.5 | BN33: 4.5 | BO33: 7.5 | BP33: 15.5 | BQ33: 3 | BR33: 6.5 | BS33: 7 | BT33: 16.5 | BU33: ناجحة | BV33: ومنقولة للصف الثانى | BW33: 0 | CS33: 159.2
A34: 27 | B34: 27 | C34: طالب الصف الاول 27 | D34: 4/1 | E34: مستجد | F34: 83 | G34: 8 | H34: 9.5 | I34: 10.5 | J34: 28 | K34: 8 | L34: 11.6 | M34: 15.2 | N34: 34.8 | O34: 4.5 | P34: 7.6 | Q34: 9.6 | R34: 21.7 | S34: 8 | T34: 13 | U34: 16 | V34: 37 | W34: 8 | X34: 14 | Y34: 12.5 | Z34: 34.5 | AA34: 9 | AB34: 10 | AC34: 11 | AD34: 30 | AE34: 8.5 | AF34: 16 | AG34: 14 | AH34: 38.5 | AI34: 8.5 | AJ34: 17.5 | AK34: 17 | AL34: 43 | AM34: 8.5 | AN34: 17 | AO34: 14 | AP34: 39.5 | AQ34: 8 | AR34: 16 | AS34: 16 | AT34: 40 | AU34: 3.5 | AV34: 6 | AW34: 9 | AX34: 18.5 | AY34: 7 | AZ34: 15 | BA34: 15 | BB34: 37 | BC34: 2.5 | BD34: 4 | BE34: 5 | BF34: 8.5 | BG34: 6 | BH34: 7 | BI34: 13.5 | BJ34: 19.5 | BK34: 33 | BL34: 435.5 | BM34: 3.5 | BN34: 5.5 | BO34: 6.5 | BP34: 15.5 | BQ34: 3 | BR34: 7.5 | BS34: 3.5 | BT34: 14 | BU34: ناجحة | BV34: ومنقولة للصف الثانى | BW34: 0 | CS34: 166.7
A35: 28 | B35: 28 | C35: طالب الصف الاول 28 | D35: 4/1 | E35: مستجد | F35: 84 | G35: 8 | H35: 15 | I35: 17 | J35: 40 | K35: 8 | L35: 15.2 | M35: 15.2 | N35: 38.4 | O35: 4.5 | P35: 7.6 | Q35: 9.2 | R35: 21.3 | S35: 8 | T35: 14.5 | U35: 17.5 | V35: 40 | W35: 8 | X35: 16 | Y35: غ | Z35: 24 | AA35: 9 | AB35: 9 | AC35: 11.5 | AD35: 29.5 | AE35: 8.5 | AF35: 16 | AG35: 14 | AH35: 38.5 | AI35: 8.5 | AJ35: 16 | AK35: 16 | AL35: 40.5 | AM35: 9 | AN35: 18 | AO35: 15 | AP35: 42 | AQ35: 8 | AR35: 16 | AS35: 16 | AT35: 40 | AU35: 3.5 | AV35: 5 | AW35: 8 | AX35: 16.5 | AY35: 7 | AZ35: 14 | BA35: 16 | BB35: 37 | BC35: 2.5 | BD35: 4 | BE35: 5 | BF35: 8.5 | BG35: 6 | BH35: 7 | BI35: 13.5 | BJ35: 19.5 | BK35: 33 | BL35: 440.7 | BM35: 3.5 | BN35: 6 | BO35: 6.5 | BP35: 16 | BQ35: 3 | BR35: 7 | BS35: غ | BT35: 10 | BU35: دورثان | BV35: فى : سكرتارية عربية - تربية دينية | BW35: 1 | CE35: سكرتارية عربية - | CP35: تربية دينية | CS35: 175.8
A36: 29 | B36: 29 | C36: طالب الصف الاول 29 | D36: 4/1 | E36: مستجد | F36: 113 | G36: 8 | H36: 14.5 | I36: 16.5 | J36: 39 | K36: 8 | L36: 16 | M36: 15.6 | N36: 39.6 | O36: 4.5 | P36: 6.8 | Q36: 6.4 | R36: 17.7 | S36: 7.5 | T36: 14 | U36: 14 | V36: 35.5 | W36: 8.5 | X36: 18 | Y36: 13 | Z36: 39.5 | AA36: 9 | AB36: 10.5 | AC36: 13 | AD36: 32.5 | AE36: 8.5 | AF36: 12 | AG36: 13 | AH36: 33.5 | AI36: 8.5 | AJ36: 16 | AK36: 16 | AL36: 40.5 | AM36: 9 | AN36: 17 | AO36: 14 | AP36: 40 | AQ36: 8 | AR36: 16 | AS36: 16 | AT36: 40 | AU36: 3.5 | AV36: 5.5 | AW36: 6 | AX36: 15 | AY36: 7 | AZ36: 15 | BA36: 15 | BB36: 37 | BC36: 2.5 | BD36: 4 | BE36: 5 | BF36: 8.5 | BG36: 6 | BH36: 7 | BI36: 13.5 | BJ36: 19.5 | BK36: 33 | BL36: 442.8 | BM36: 3.5 | BN36: 6.5 | BO36: 7.5 | BP36: 17.5 | BQ36: 3 | BR36: 6.5 | BS36: 5.5 | BT36: 15 | BU36: ناجحة | BV36: ومنقولة للصف الثانى | BW36: 0 | CS36: 174.8
A37: 30 | B37: 30 | C37: طالب الصف الاول 30 | D37: 4/1 | E37: مستجد | F37: 114 | G37: 8 | H37: 14 | I37: 14.5 | J37: 36.5 | K37: 8 | L37: 14.4 | M37: 16.4 | N37: 38.8 | O37: 4.5 | P37: 6.4 | Q37: 9.6 | R37: 20.5 | S37: 7.5 | T37: 12.5 | U37: 14 | V37: 34 | W37: 8.5 | X37: 19 | Y37: 13.5 | Z37: 41 | AA37: 9 | AB37: 10.5 | AC37: 12.5 | AD37: 32 | AE37: 8.5 | AF37: 16 | AG37: 14 | AH37: 38.5 | AI37: 8.5 | AJ37: 16 | AK37: 17 | AL37: 41.5 | AM37: 9 | AN37: 17 | AO37: 15 | AP37: 41 | AQ37: 8 | AR37: 16 | AS37: 16 | AT37: 40 | AU37: 3.5 | AV37: 4.5 | AW37: 10.5 | AX37: 18.5 | AY37: 7 | AZ37: 15 | BA37: 16 | BB37: 38 | BC37: 3 | BD37: 4 | BE37: 5 | BF37: 8.5 | BG37: 5 | BH37: 7 | BI37: 13 | BJ37: 19.5 | BK37: 32.5 | BL37: 452.8 | BM37: 3.5 | BN37: 6 | BO37: 6 | BP37: 15.5 | BQ37: 3 | BR37: 6 | BS37: 5.5 | BT37: 14.5 | BU37: ناجحة | BV37: ومنقولة للصف الثانى | BW37: 0 | CS37: 174.8
A38: 31 | B38: 31 | C38: طالب الصف الاول 31 | D38: 4/1 | E38: مستجد | F38: 115 | G38: 8 | H38: 12.5 | I38: 16 | J38: 36.5 | K38: 8 | L38: 16.8 | M38: 16.8 | N38: 41.6 | O38: 4.5 | P38: 6.4 | Q38: 9.6 | R38: 20.5 | S38: 7.5 | T38: 13 | U38: 16.5 | V38: 37 | W38: 8 | X38: 18 | Y38: 13 | Z38: 39 | AA38: 9 | AB38: 11 | AC38: 11 | AD38: 31 | AE38: 8.5 | AF38: 16 | AG38: 13 | AH38: 37.5 | AI38: 8.5 | AJ38: 17 | AK38: 16 | AL38: 41.5 | AM38: 8.5 | AN38: 17 | AO38: 13 | AP38: 38.5 | AQ38: 8 | AR38: 16 | AS38: 16 | AT38: 40 | AU38: 3.5 | AV38: 6.5 | AW38: 11 | AX38: 21 | AY38: 7 | AZ38: 15 | BA38: 15 | BB38: 37 | BC38: 2.5 | BD38: 4 | BE38: 5 | BF38: 8.5 | BG38: 5 | BH38: 7 | BI38: 12.5 | BJ38: 19.5 | BK38: 32 | BL38: 453.1 | BM38: 3.5 | BN38: 6.5 | BO38: 5.5 | BP38: 15.5 | BQ38: 3 | BR38: 6.5 | BS38: 6 | BT38: 15.5 | BU38: ناجحة | BV38: ومنقولة للصف الثانى | BW38: 0 | CS38: 178.7
A39: 32 | B39: 32 | C39: طالب الصف الاول 32 | D39: 4/1 | E39: مستجد | F39: 116 | G39: 9 | H39: 15.5 | I39: 16.5 | J39: 41 | K39: 8 | L39: 16 | M39: 14.8 | N39: 38.8 | O39: 5.5 | P39: 7.6 | Q39: 9.6 | R39: 22.7 | S39: 7.5 | T39: 13.5 | U39: 9.5 | V39: 30.5 | W39: 8.5 | X39: 17.5 | Y39: 12.5 | Z39: 38.5 | AA39: 9 | AB39: 10 | AC39: 13 | AD39: 32 | AE39: 9 | AF39: 16 | AG39: 14 | AH39: 39 | AI39: 8.5 | AJ39: 17 | AK39: 16 | AL39: 41.5 | AM39: 9 | AN39: 18 | AO39: 14 | AP39: 41 | AQ39: 8 | AR39: 16 | AS39: 17 | AT39: 41 | AU39: 3.5 | AV39: 3 | AW39: 10.5 | AX39: 17 | AY39: 6.5 | AZ39: 15 | BA39: 16 | BB39: 37.5 | BC39: 3 | BD39: 4 | BE39: 6 | BF39: 8.5 | BG39: 5 | BH39: 7 | BI39: 14 | BJ39: 19.5 | BK39: 33.5 | BL39: 454 | BM39: 3.5 | BN39: 6 | BO39: 6 | BP39: 15.5 | BQ39: 3 | BR39: 7 | BS39: 7 | BT39: 17 | BU39: ناجحة | BV39: ومنقولة للصف الثانى | BW39: 0 | CS39: 179.6
A40: 33 | B40: 33 | C40: طالب الصف الاول 33 | D40: 4/1 | E40: مستجد | F40: 117 | G40: 8 | H40: 14 | I40: 14.5 | J40: 36.5 | K40: 8 | L40: 15.6 | M40: 15.6 | N40: 39.2 | O40: 5.5 | P40: 6.8 | Q40: 8.4 | R40: 20.7 | S40: 7.5 | T40: 11.5 | U40: 13 | V40: 32 | W40: 8 | X40: 17.5 | Y40: 12 | Z40: 37.5 | AA40: 9 | AB40: 9.5 | AC40: 9 | AD40: 27.5 | AE40: 8.5 | AF40: 16 | AG40: 14 | AH40: 38.5 | AI40: 8.5 | AJ40: 16 | AK40: 16 | AL40: 40.5 | AM40: 9 | AN40: 17 | AO40: 13 | AP40: 39 | AQ40: 8 | AR40: 16 | AS40: 15 | AT40: 39 | AU40: 3.5 | AV40: 1 | AW40: 11 | AX40: 15.5 | AY40: 6.5 | AZ40: 15 | BA40: 16 | BB40: 37.5 | BC40: 3 | BD40: 4 | BE40: 6 | BF40: 8.5 | BG40: 5 | BH40: 7 | BI40: 14 | BJ40: 19.5 | BK40: 33.5 | BL40: 436.9 | BM40: 3.5 | BN40: 6.5 | BO40: 6 | BP40: 16 | BQ40: 3 | BR40: 6.5 | BS40: 6.5 | BT40: 16 | BU40: ناجحة | BV40: ومنقولة للصف الثانى | BW40: 0 | CS40: 170.4
A41: 34 | B41: 34 | C41: طالب الصف الاول 34 | D41: 4/1 | E41: مستجد | F41: 118 | G41: 8 | H41: 11 | I41: 14 | J41: 33 | K41: 8 | L41: 14.8 | M41: 16.8 | N41: 39.6 | O41: 4.5 | P41: 7.2 | Q41: 9.6 | R41: 21.3 | S41: 7.5 | T41: 10 | U41: 13 | V41: 30.5 | W41: 8 | X41: 13 | Y41: 11 | Z41: 32 | AA41: 9 | AB41: 9.5 | AC41: 8 | AD41: 26.5 | AE41: 8.5 | AF41: 16 | AG41: 9 | AH41: 33.5 | AI41: 8.5 | AJ41: 13.5 | AK41: 15 | AL41: 37 | AM41: 8 | AN41: 15 | AO41: 13 | AP41: 36 | AQ41: 8 | AR41: 15 | AS41: 16 | AT41: 39 | AU41: 3.5 | AV41: 4.5 | AW41: 10.5 | AX41: 18.5 | AY41: 7 | AZ41: 15 | BA41: 16 | BB41: 38 | BC41: 2.5 | BD41: 4 | BE41: 5 | BF41: 8.5 | BG41: 6 | BH41: 7 | BI41: 13.5 | BJ41: 19.5 | BK41: 33 | BL41: 417.9 | BM41: 3.5 | BN41: 5.5 | BO41: 6 | BP41: 15 | BQ41: 3 | BR41: 6.5 | BS41: 5.5 | BT41: 15 | BU41: ناجحة | BV41: ومنقولة للصف الثانى | BW41: 0 | CS41: 158
A42: 35 | B42: 35 | C42: طالب الصف الاول 35 | D42: 4/1 | E42: مستجد | F42: 119 | G42: 7.5 | H42: 13 | I42: 12.5 | J42: 33 | K42: 8 | L42: 14.4 | M42: 14 | N42: 36.4 | O42: 5.5 | P42: 6.4 | Q42: 9.6 | R42: 21.5 | S42: 7.5 | T42: 10 | U42: 14.5 | V42: 32 | W42: 8 | X42: 18 | Y42: 12.5 | Z42: 38.5 | AA42: 9 | AB42: 13.5 | AC42: 14.5 | AD42: 37 | AE42: 9 | AF42: 16 | AG42: 14 | AH42: 39 | AI42: 8.5 | AJ42: 17.5 | AK42: 16 | AL42: 42 | AM42: 9 | AN42: 15 | AO42: 13 | AP42: 37 | AQ42: 8 | AR42: 16 | AS42: 16 | AT42: 40 | AU42: 3.5 | AV42: 5 | AW42: 8 | AX42: 16.5 | AY42: 6.5 | AZ42: 15 | BA42: 14 | BB42: 35.5 | BC42: 3 | BD42: 4 | BE42: 6 | BF42: 8.5 | BG42: 6 | BH42: 7 | BI42: 15 | BJ42: 19.5 | BK42: 34.5 | BL42: 442.9 | BM42: 3.5 | BN42: 5.5 | BO42: 6 | BP42: 15 | BQ42: 3 | BR42: 6.5 | BS42: 6.5 | BT42: 16 | BU42: ناجحة | BV42: ومنقولة للصف الثانى | BW42: 0 | CS42: 174.3
A43: 36 | B43: 36 | C43: طالب الصف الاول 36 | D43: 4/1 | E43: مستجد | F43: 120 | G43: 8 | H43: 10.5 | I43: 11.5 | J43: 30 | K43: 8.5 | L43: 12 | M43: 10.8 | N43: 31.3 | O43: 5.5 | P43: 6 | Q43: 9.2 | R43: 20.7 | S43: 9 | T43: 12 | U43: 15 | V43: 36 | W43: 9 | X43: 18 | Y43: 13.5 | Z43: 40.5 | AA43: 9 | AB43: 13.5 | AC43: 15 | AD43: 37.5 | AE43: 8.5 | AF43: 16 | AG43: 11 | AH43: 35.5 | AI43: 9 | AJ43: 14 | AK43: 11 | AL43: 34 | AM43: 8.5 | AN43: 14.5 | AO43: 13 | AP43: 36 | AQ43: 8 | AR43: 18 | AS43: 11 | AT43: 37 | AU43: 3 | AV43: 2.5 | AW43: 9.5 | AX43: 15 | AY43: 7 | AZ43: 13 | BA43: 14 | BB43: 34 | BC43: 3 | BD43: 4 | BE43: 5 | BF43: 6 | BG43: 5 | BH43: 7 | BI43: 13 | BJ43: 17 | BK43: 30 | BL43: 417.5 | BM43: 3.5 | BN43: 4.5 | BO43: 6 | BP43: 14 | BQ43: 3.5 | BR43: 6.5 | BS43: 6 | BT43: 16 | BU43: ناجحة | BV43: ومنقولة للصف الثانى | BW43: 0 | CS43: 161
A44: 37 | B44: 37 | C44: طالب الصف الاول 37 | D44: 1/1 | E44: مستجد | F44: 121 | G44: 8 | H44: 10.5 | I44: 10 | J44: 28.5 | K44: 8.5 | L44: 12.4 | M44: 12.8 | N44: 33.7 | O44: 5.5 | P44: 6.8 | Q44: 9.2 | R44: 21.5 | S44: 9 | T44: 14 | U44: 14 | V44: 37 | W44: 9 | X44: 19 | Y44: 16 | Z44: 44 | AA44: 9 | AB44: 13.5 | AC44: 17.5 | AD44: 40 | AE44: 8.5 | AF44: 16 | AG44: 12 | AH44: 36.5 | AI44: 9 | AJ44: 15 | AK44: 11 | AL44: 35 | AM44: 8.5 | AN44: 14.5 | AO44: 15 | AP44: 38 | AQ44: 8 | AR44: 18 | AS44: 9 | AT44: 35 | AU44: 3 | AV44: 3.5 | AW44: 9 | AX44: 15.5 | AY44: 7 | AZ44: 12 | BA44: 15 | BB44: 34 | BC44: 3 | BD44: 4 | BE44: 5 | BF44: 6 | BG44: 6 | BH44: 6 | BI44: 14 | BJ44: 16 | BK44: 30 | BL44: 428.7 | BM44: 3.5 | BN44: 5 | BO44: 6 | BP44: 14.5 | BQ44: 3.5 | BR44: 6 | BS44: 7 | BT44: 16.5 | BU44: ناجحة | BV44: ومنقولة للصف الثانى | BW44: 0 | CS44: 166.2
A45: 38 | B45: 38 | C45: طالب الصف الاول 38 | D45: 1/1 | E45: مستجد | F45: 122 | G45: 8 | H45: 13 | I45: 12.5 | J45: 33.5 | K45: 8.5 | L45: 13.6 | M45: 11.6 | N45: 33.7 | O45: 5.5 | P45: 7.2 | Q45: 9.6 | R45: 22.3 | S45: 9 | T45: 17.5 | U45: 16 | V45: 42.5 | W45: 8.5 | X45: 16 | Y45: 14.5 | Z45: 39 | AA45: 9 | AB45: 13 | AC45: 17.5 | AD45: 39.5 | AE45: 8.5 | AF45: 16 | AG45: 15 | AH45: 39.5 | AI45: 9 | AJ45: 17 | AK45: 15 | AL45: 41 | AM45: 8.5 | AN45: 14.5 | AO45: 19 | AP45: 42 | AQ45: 8 | AR45: 18 | AS45: 10 | AT45: 36 | AU45: 3 | AV45: 9.5 | AW45: 9 | AX45: 21.5 | AY45: 7 | AZ45: 16 | BA45: 14 | BB45: 37 | BC45: 3 | BD45: 4 | BE45: 5 | BF45: 6 | BG45: 5 | BH45: 6 | BI45: 13 | BJ45: 16 | BK45: 29 | BL45: 456.5 | BM45: 3.5 | BN45: 6.5 | BO45: 6 | BP45: 16 | BQ45: 3.5 | BR45: 6 | BS45: 6.5 | BT45: 16 | BU45: ناجحة | BV45: ومنقولة للصف الثانى | BW45: 0 | CS45: 182.3
A46: 39 | B46: 39 | C46: طالب الصف الاول 39 | D46: 1/1 | E46: مستجد | F46: 123 | G46: 8 | H46: 13.5 | I46: 13.5 | J46: 35 | K46: 8.5 | L46: 12 | M46: 13.2 | N46: 33.7 | O46: 5.5 | P46: 5.6 | Q46: 9.2 | R46: 20.3 | S46: 9 | T46: 14.5 | U46: 18 | V46: 41.5 | W46: 9 | X46: 19 | Y46: 17.5 | Z46: 45.5 | AA46: 9 | AB46: 11.5 | AC46: 16 | AD46: 36.5 | AE46: 8.5 | AF46: 16 | AG46: 11 | AH46: 35.5 | AI46: 9 | AJ46: 15.5 | AK46: 13 | AL46: 37.5 | AM46: 8.5 | AN46: 14 | AO46: 18 | AP46: 40.5 | AQ46: 8 | AR46: 20 | AS46: 13 | AT46: 41 | AU46: 5.5 | AV46: 11 | AW46: 9.5 | AX46: 26 | AY46: 7 | AZ46: 16 | BA46: 15 | BB46: 38 | BC46: 3 | BD46: 4 | BE46: 5 | BF46: 6 | BG46: 6 | BH46: 6 | BI46: 14 | BJ46: 16 | BK46: 30 | BL46: 461 | BM46: 3.5 | BN46: 5 | BO46: 6 | BP46: 14.5 | BQ46: 3.5 | BR46: 6.5 | BS46: 6.5 | BT46: 16.5 | BU46: ناجحة | BV46: ومنقولة للصف الثانى | BW46: 0 | CS46: 179.6
A47: 40 | B47: 40 | C47: طالب الصف الاول 40 | D47: 3/1 | E47: مستجد | F47: 124 | G47: 8 | H47: 14.5 | I47: 16 | J47: 38.5 | K47: 8.5 | L47: 14 | M47: 13.6 | N47: 36.1 | O47: 5.5 | P47: 7.2 | Q47: 9.6 | R47: 22.3 | S47: 9 | T47: 18 | U47: 17.5 | V47: 44.5 | W47: 9 | X47: 19 | Y47: 13.5 | Z47: 41.5 | AA47: 9 | AB47: 17.5 | AC47: 17 | AD47: 43.5 | AE47: 8.5 | AF47: 16 | AG47: 14 | AH47: 38.5 | AI47: 9 | AJ47: 15.5 | AK47: 17 | AL47: 41.5 | AM47: 8.5 | AN47: 15 | AO47: 17 | AP47: 40.5 | AQ47: 8 | AR47: 19.5 | AS47: 12 | AT47: 39.5 | AU47: 5.5 | AV47: 11 | AW47: 9 | AX47: 25.5 | AY47: 7 | AZ47: 15 | BA47: 16 | BB47: 38 | BC47: 3 | BD47: 4 | BE47: 6 | BF47: 6.5 | BG47: 6 | BH47: 6 | BI47: 15 | BJ47: 16.5 | BK47: 31.5 | BL47: 481.4 | BM47: 3.5 | BN47: 4.5 | BO47: 6 | BP47: 14 | BQ47: 3.5 | BR47: 6.5 | BS47: 6.5 | BT47: 16.5 | BU47: ناجحة | BV47: ومنقولة للصف الثانى | BW47: 0 | CS47: 194.7
A48: 41 | B48: 41 | C48: طالب الصف الاول 41 | D48: 1/1 | E48: مستجد | F48: 125 | G48: 8 | H48: 13.5 | I48: 14 | J48: 35.5 | K48: 8 | L48: 13.2 | M48: 12.4 | N48: 33.6 | O48: 5.5 | P48: 6.4 | Q48: 9.6 | R48: 21.5 | S48: 9 | T48: 17 | U48: 17 | V48: 43 | W48: 8.5 | X48: 18 | Y48: 13 | Z48: 39.5 | AA48: 9 | AB48: 10.5 | AC48: 17.5 | AD48: 37 | AE48: 8.5 | AF48: 16 | AG48: 15 | AH48: 39.5 | AI48: 9 | AJ48: 17.5 | AK48: 15 | AL48: 41.5 | AM48: 8.5 | AN48: 11.5 | AO48: 18 | AP48: 38 | AQ48: 8 | AR48: 20 | AS48: 12 | AT48: 40 | AU48: 5.5 | AV48: 10 | AW48: 10 | AX48: 25.5 | AY48: 7 | AZ48: 16 | BA48: 16 | BB48: 39 | BC48: 3 | BD48: 4 | BE48: 5 | BF48: 6.5 | BG48: 5 | BH48: 6 | BI48: 13 | BJ48: 16.5 | BK48: 29.5 | BL48: 463.1 | BM48: 3.5 | BN48: 5 | BO48: 6 | BP48: 14.5 | BQ48: 3.5 | BR48: 6.5 | BS48: 7 | BT48: 17 | BU48: ناجحة | BV48: ومنقولة للصف الثانى | BW48: 0 | CS48: 181.1
A49: 42 | B49: 42 | C49: طالب الصف الاول 42 | D49: 1/1 | E49: مستجد | F49: 126 | G49: 8 | H49: 11 | I49: 13 | J49: 32 | K49: 8 | L49: 12.8 | M49: 12 | N49: 32.8 | O49: 5.5 | P49: 6.8 | Q49: 9.6 | R49: 21.9 | S49: 9 | T49: 17 | U49: 17 | V49: 43 | W49: 8.5 | X49: 16.5 | Y49: 12.5 | Z49: 37.5 | AA49: 9 | AB49: 10 | AC49: 16.5 | AD49: 35.5 | AE49: 8.5 | AF49: 16 | AG49: 13 | AH49: 37.5 | AI49: 9 | AJ49: 15 | AK49: 15 | AL49: 39 | AM49: 8.5 | AN49: 15.5 | AO49: 18 | AP49: 42 | AQ49: 8 | AR49: 16 | AS49: 10 | AT49: 34 | AU49: 5.5 | AV49: 7 | AW49: 9.5 | AX49: 22 | AY49: 7 | AZ49: 16 | BA49: 15 | BB49: 38 | BC49: 3 | BD49: 4 | BE49: 6 | BF49: 6.5 | BG49: 6 | BH49: 6 | BI49: 15 | BJ49: 16.5 | BK49: 31.5 | BL49: 446.7 | BM49: 3.5 | BN49: 5 | BO49: 7 | BP49: 15.5 | BQ49: 3.5 | BR49: 7 | BS49: 5.5 | BT49: 16 | BU49: ناجحة | BV49: ومنقولة للصف الثانى | BW49: 0 | CS49: 172.1
A50: 43 | B50: 43 | C50: طالب الصف الاول 43 | D50: 1/1 | E50: مستجد | F50: 127 | G50: 8 | H50: 14.5 | I50: 15.5 | J50: 38 | K50: 8 | L50: 13.2 | M50: 13.6 | N50: 34.8 | O50: 5.5 | P50: 6.8 | Q50: 9.6 | R50: 21.9 | S50: 9 | T50: 19 | U50: 17.5 | V50: 45.5 | W50: 9 | X50: 19 | Y50: 16 | Z50: 44 | AA50: 9 | AB50: 19.5 | AC50: 18 | AD50: 46.5 | AE50: 8.5 | AF50: 16 | AG50: 16 | AH50: 40.5 | AI50: 9 | AJ50: 16 | AK50: 15 | AL50: 40 | AM50: 9 | AN50: 15 | AO50: 18 | AP50: 42 | AQ50: 8 | AR50: 20 | AS50: 16 | AT50: 44 | AU50: 5.5 | AV50: 10.5 | AW50: 10 | AX50: 26 | AY50: 7 | AZ50: 16 | BA50: 15 | BB50: 38 | BC50: 3 | BD50: 4 | BE50: 5 | BF50: 6.5 | BG50: 6 | BH50: 6 | BI50: 14 | BJ50: 16.5 | BK50: 30.5 | BL50: 491.7 | BM50: 3.5 | BN50: 5.5 | BO50: 6 | BP50: 15 | BQ50: 3.5 | BR50: 7.5 | BS50: 7.5 | BT50: 18.5 | BU50: ناجحة | BV50: ومنقولة للصف الثانى | BW50: 0 | CS50: 197
A51: 44 | B51: 44 | C51: طالب الصف الاول 44 | D51: 1/1 | E51: مستجد | F51: 128 | G51: 8 | H51: 14 | I51: 13.5 | J51: 35.5 | K51: 8 | L51: 13.6 | M51: 11.2 | N51: 32.8 | O51: 5.5 | P51: 7.6 | Q51: 9.6 | R51: 22.7 | S51: 9 | T51: 14.5 | U51: 18 | V51: 41.5 | W51: 8.5 | X51: 19 | Y51: 16 | Z51: 43.5 | AA51: 9 | AB51: 17 | AC51: 16.5 | AD51: 42.5 | AE51: 8.5 | AF51: 16 | AG51: 16 | AH51: 40.5 | AI51: 9 | AJ51: 16 | AK51: 12 | AL51: 37 | AM51: 8.5 | AN51: 12.5 | AO51: 18 | AP51: 39 | AQ51: 8 | AR51: 20 | AS51: 8 | AT51: 36 | AU51: 3 | AV51: 2 | AW51: 10 | AX51: 15 | AY51: 7 | AZ51: 14 | BA51: 15 | BB51: 36 | BC51: 3 | BD51: 4 | BE51: 5 | BF51: 6 | BG51: 5 | BH51: 6 | BI51: 13 | BJ51: 16 | BK51: 29 | BL51: 451 | BM51: 3.5 | BN51: 7 | BO51: 7.5 | BP51: 18 | BQ51: 3.5 | BR51: 7 | BS51: 7 | BT51: 17.5 | BU51: ناجحة | BV51: ومنقولة للصف الثانى | BW51: 0 | CS51: 177.2
A52: 45 | B52: 45 | C52: طالب الصف الاول 45 | D52: 1/1 | E52: مستجد | F52: 129 | G52: 8 | H52: 13 | I52: 12.5 | J52: 33.5 | K52: 8.2 | L52: 13.6 | M52: 11.6 | N52: 33.4 | O52: 5.5 | P52: 8 | Q52: 9.6 | R52: 23.1 | S52: 9 | T52: 17.5 | U52: 18 | V52: 44.5 | W52: 9 | X52: 19.5 | Y52: 15.5 | Z52: 44 | AA52: 9 | AB52: 18.5 | AC52: 17.5 | AD52: 45 | AE52: 8.5 | AF52: 17 | AG52: 16 | AH52: 41.5 | AI52: 9 | AJ52: 13 | AK52: 15 | AL52: 37 | AM52: 8.5 | AN52: 14.5 | AO52: 18 | AP52: 41 | AQ52: 8 | AR52: 20 | AS52: 13 | AT52: 41 | AU52: 5.5 | AV52: 8.5 | AW52: 10 | AX52: 24 | AY52: 7 | AZ52: 15 | BA52: 15 | BB52: 37 | BC52: 3 | BD52: 4 | BE52: 6 | BF52: 6.5 | BG52: 6 | BH52: 6 | BI52: 15 | BJ52: 16.5 | BK52: 31.5 | BL52: 476.5 | BM52: 3.5 | BN52: 5.5 | BO52: 7.5 | BP52: 16.5 | BQ52: 3.5 | BR52: 7 | BS52: 7.5 | BT52: 18 | BU52: ناجحة | BV52: ومنقولة للصف الثانى | BW52: 0 | CS52: 190.6
A53: 46 | B53: 46 | C53: طالب الصف الاول 46 | D53: 1/1 | E53: مستجد | F53: 130 | G53: 8 | H53: 3.5 | I53: 13.5 | J53: 25 | K53: 8.2 | L53: 8.8 | M53: 10.8 | N53: 27.8 | O53: 5.5 | P53: 4.4 | Q53: 9.2 | R53: 19.1 | S53: 9 | T53: 11 | U53: 11 | V53: 31 | W53: 9 | X53: 10.5 | Y53: 5.5 | Z53: 25 | AA53: 9 | AB53: 2 | AC53: 9 | AD53: 20 | AE53: 8.5 | AF53: 13 | AG53: 15 | AH53: 36.5 | AI53: 9 | AJ53: 11 | AK53: 13 | AL53: 33 | AM53: 8.5 | AN53: 12 | AO53: 15 | AP53: 35.5 | AQ53: 8 | AR53: 15 | AS53: 5 | AT53: 28 | AU53: 3 | AV53: 0 | AW53: 9 | AX53: 12 | AY53: 7 | AZ53: 13 | BA53: 15 | BB53: 35 | BC53: 3 | BD53: 4 | BE53: 5 | BF53: 7 | BG53: 5 | BH53: 5 | BI53: 13 | BJ53: 16 | BK53: 29 | BL53: 356.9 | BM53: 3.5 | BN53: 4.5 | BO53: 6 | BP53: 14 | BQ53: 3.5 | BR53: 6.5 | BS53: 6.5 | BT53: 16.5 | BU53: دورثان | BV53: فى : رياضة عامة - | BW53: 1 | CK53: رياضة عامة - | CS53: 116.2
A54: 47 | B54: 47 | C54: طالب الصف الاول 47 | D54: 1/1 | E54: مستجد | F54: 131 | G54: 8 | H54: 14.5 | I54: 13.5 | J54: 36 | K54: 8.2 | L54: 14.4 | M54: 12 | N54: 34.6 | O54: 5.5 | P54: 6 | Q54: 9.6 | R54: 21.1 | S54: 9 | T54: 15.5 | U54: 16.5 | V54: 41 | W54: 9 | X54: 18 | Y54: 16 | Z54: 43 | AA54: 9 | AB54: 13.5 | AC54: 17.5 | AD54: 40 | AE54: 8.5 | AF54: 16 | AG54: 15 | AH54: 39.5 | AI54: 9 | AJ54: 16.5 | AK54: 14 | AL54: 39.5 | AM54: 8.5 | AN54: 15 | AO54: 18 | AP54: 41.5 | AQ54: 8 | AR54: 20 | AS54: 13 | AT54: 41 | AU54: 5.5 | AV54: 1.5 | AW54: 9.5 | AX54: 16.5 | AY54: 7 | AZ54: 14 | BA54: 15 | BB54: 36 | BC54: 3 | BD54: 4 | BE54: 6 | BF54: 6.5 | BG54: 5 | BH54: 5 | BI54: 14 | BJ54: 15.5 | BK54: 29.5 | BL54: 459.2 | BM54: 3.5 | BN54: 5 | BO54: 7.5 | BP54: 16 | BQ54: 3.5 | BR54: 7 | BS54: 7 | BT54: 17.5 | BU54: ناجحة | BV54: ومنقولة للصف الثانى | BW54: 0 | CS54: 177.4
A55: 48 | B55: 48 | C55: طالب الصف الاول 48 | D55: 1/1 | E55: مستجد | F55: 132 | G55: 8 | H55: 11 | I55: 12.5 | J55: 31.5 | K55: 8.2 | L55: 12.8 | M55: 11.2 | N55: 32.2 | O55: 5.5 | P55: 6.4 | Q55: 9.2 | R55: 21.1 | S55: 9 | T55: 9.5 | U55: 16 | V55: 34.5 | W55: 8.5 | X55: 18 | Y55: 12 | Z55: 38.5 | AA55: 9 | AB55: 8.5 | AC55: 16 | AD55: 33.5 | AE55: 8.5 | AF55: 16 | AG55: 16 | AH55: 40.5 | AI55: 9 | AJ55: 15.5 | AK55: 13 | AL55: 37.5 | AM55: 8.5 | AN55: 14 | AO55: 17 | AP55: 39.5 | AQ55: 8 | AR55: 17 | AS55: 13 | AT55: 38 | AU55: 5.5 | AV55: 6 | AW55: 9.5 | AX55: 21 | AY55: 7 | AZ55: 15 | BA55: 15 | BB55: 37 | BC55: 3 | BD55: 4 | BE55: 6 | BF55: 7.5 | BG55: 5 | BH55: 6 | BI55: 14 | BJ55: 17.5 | BK55: 31.5 | BL55: 436.3 | BM55: 3.5 | BN55: 5 | BO55: 5.5 | BP55: 14 | BQ55: 3.5 | BR55: 7 | BS55: 7 | BT55: 17.5 | BU55: ناجحة | BV55: ومنقولة للصف الثانى | BW55: 0 | CS55: 163.2
A56: 49 | B56: 49 | C56: طالب الصف الاول 49 | D56: 1/1 | E56: مستجد | F56: 133 | G56: 8 | H56: 10.5 | I56: 9.5 | J56: 28 | K56: 8.3 | L56: 12 | M56: 10.8 | N56: 31.1 | O56: 5.5 | P56: 6 | Q56: 8.8 | R56: 20.3 | S56: 9 | T56: 7.5 | U56: 10 | V56: 26.5 | W56: 8.5 | X56: 15 | Y56: 12 | Z56: 35.5 | AA56: 9 | AB56: 7 | AC56: 15.5 | AD56: 31.5 | AE56: 8.5 | AF56: 16 | AG56: 16 | AH56: 40.5 | AI56: 9 | AJ56: 12.5 | AK56: 12 | AL56: 33.5 | AM56: 8.5 | AN56: 15 | AO56: 18 | AP56: 41.5 | AQ56: 8 | AR56: 18.5 | AS56: 8 | AT56: 34.5 | AU56: 3 | AV56: 3 | AW56: 9 | AX56: 15 | AY56: 7 | AZ56: 13 | BA56: 13 | BB56: 33 | BC56: 3 | BD56: 4 | BE56: 5 | BF56: 7.5 | BG56: 6 | BH56: 6 | BI56: 14 | BJ56: 17.5 | BK56: 31.5 | BL56: 402.4 | BM56: 3.5 | BN56: 4.5 | BO56: 6.5 | BP56: 14.5 | BQ56: 3.5 | BR56: 6.5 | BS56: 7 | BT56: 17 | BU56: ناجحة | BV56: ومنقولة للصف الثانى | BW56: 0 | CS56: 148.5
A57: 50 | B57: 50 | C57: طالب الصف الاول 50 | D57: 1/1 | E57: مستجد | F57: 134 | G57: 8 | H57: 14 | I57: 16 | J57: 38 | K57: 8.3 | L57: 14 | M57: 11.2 | N57: 33.5 | O57: 5.5 | P57: 8 | Q57: 9.6 | R57: 23.1 | S57: 9 | T57: 16.5 | U57: 18 | V57: 43.5 | W57: 9 | X57: 19 | Y57: 15.5 | Z57: 43.5 | AA57: 9 | AB57: 13.5 | AC57: 18 | AD57: 40.5 | AE57: 8.5 | AF57: 17 | AG57: 15 | AH57: 40.5 | AI57: 9 | AJ57: 12.5 | AK57: 14 | AL57: 35.5 | AM57: 8.5 | AN57: 16 | AO57: 18 | AP57: 42.5 | AQ57: 8 | AR57: 20 | AS57: 12 | AT57: 40 | AU57: 5.5 | AV57: 10.5 | AW57: 9.5 | AX57: 25.5 | AY57: 7 | AZ57: 15 | BA57: 15 | BB57: 37 | BC57: 3 | BD57: 4 | BE57: 6 | BF57: 6.5 | BG57: 6 | BH57: 6 | BI57: 15 | BJ57: 16.5 | BK57: 31.5 | BL57: 474.6 | BM57: 3.5 | BN57: 6 | BO57: 6 | BP57: 15.5 | BQ57: 3.5 | BR57: 6.5 | BS57: 7.5 | BT57: 17.5 | BU57: ناجحة | BV57: ومنقولة للصف الثانى | BW57: 0 | CS57: 188.5
A58: 51 | B58: 51 | C58: طالب الصف الاول 51 | D58: 1/1 | E58: مستجد | F58: 135 | G58: 8 | H58: 14 | I58: 13.5 | J58: 35.5 | K58: 8.3 | L58: 12.8 | M58: 10.4 | N58: 31.5 | O58: 5.5 | P58: 8.4 | Q58: 9.6 | R58: 23.5 | S58: 9 | T58: 16.5 | U58: 18.5 | V58: 44 | W58: 9 | X58: 19 | Y58: 17 | Z58: 45 | AA58: 9 | AB58: 14 | AC58: 17.5 | AD58: 40.5 | AE58: 8.5 | AF58: 17 | AG58: 15 | AH58: 40.5 | AI58: 9 | AJ58: 12.5 | AK58: 14 | AL58: 35.5 | AM58: 8.5 | AN58: 17 | AO58: 18 | AP58: 43.5 | AQ58: 8 | AR58: 20 | AS58: 12 | AT58: 40 | AU58: 5.5 | AV58: 11 | AW58: 9.5 | AX58: 26 | AY58: 7 | AZ58: 15 | BA58: 15 | BB58: 37 | BC58: 3 | BD58: 4 | BE58: 6 | BF58: 6.5 | BG58: 5 | BH58: 6 | BI58: 14 | BJ58: 16.5 | BK58: 30.5 | BL58: 473 | BM58: 3.5 | BN58: 7 | BO58: 7.5 | BP58: 18 | BQ58: 3.5 | BR58: 7 | BS58: 7.5 | BT58: 18 | BU58: ناجحة | BV58: ومنقولة للصف الثانى | BW58: 0 | CS58: 189.7
A59: 52 | B59: 52 | C59: طالب الصف الاول 52 | D59: 1/1 | E59: مستجد | F59: 136 | G59: 8 | H59: 13.5 | I59: 14 | J59: 35.5 | K59: 8.3 | L59: 12.4 | M59: 10.4 | N59: 31.1 | O59: 5.5 | P59: 8 | Q59: 9.6 | R59: 23.1 | S59: 9 | T59: 18.5 | U59: 16 | V59: 43.5 | W59: 9 | X59: 19.5 | Y59: 16 | Z59: 44.5 | AA59: 9 | AB59: 17.5 | AC59: 17.5 | AD59: 44 | AE59: 8.5 | AF59: 17 | AG59: 15 | AH59: 40.5 | AI59: 9 | AJ59: 14.5 | AK59: 16 | AL59: 39.5 | AM59: 8.5 | AN59: 17 | AO59: 18 | AP59: 43.5 | AQ59: 8 | AR59: 20 | AS59: 16 | AT59: 44 | AU59: 5.5 | AV59: 10 | AW59: 9.5 | AX59: 25 | AY59: 7 | AZ59: 16 | BA59: 16 | BB59: 39 | BC59: 3 | BD59: 4 | BE59: 5 | BF59: 6.5 | BG59: 6 | BH59: 6 | BI59: 14 | BJ59: 16.5 | BK59: 30.5 | BL59: 483.7 | BM59: 3.5 | BN59: 4.5 | BO59: 7.5 | BP59: 15.5 | BQ59: 3.5 | BR59: 7 | BS59: 7 | BT59: 17.5 | BU59: ناجحة | BV59: ومنقولة للصف الثانى | BW59: 0 | CS59: 195.4
A60: 53 | B60: 53 | C60: طالب الصف الاول 53 | D60: 1/1 | E60: مستجد | F60: 137 | G60: 8 | H60: 12.5 | I60: 14 | J60: 34.5 | K60: 8.4 | L60: 10 | M60: 10.4 | N60: 28.8 | O60: 5.5 | P60: 7.6 | Q60: 9.6 | R60: 22.7 | S60: 9 | T60: 11.5 | U60: 14 | V60: 34.5 | W60: 9 | X60: 19 | Y60: 13.5 | Z60: 41.5 | AA60: 9 | AB60: 13 | AC60: 17 | AD60: 39 | AE60: 8.5 | AF60: 17 | AG60: 14 | AH60: 39.5 | AI60: 9 | AJ60: 13.5 | AK60: 13 | AL60: 35.5 | AM60: 8.5 | AN60: 16 | AO60: 18 | AP60: 42.5 | AQ60: 8 | AR60: 18 | AS60: 12 | AT60: 38 | AU60: 5.5 | AV60: 5 | AW60: 9.5 | AX60: 20 | AY60: 7 | AZ60: 14 | BA60: 15 | BB60: 36 | BC60: 3 | BD60: 4 | BE60: 5 | BF60: 6.5 | BG60: 6 | BH60: 6 | BI60: 14 | BJ60: 16.5 | BK60: 30.5 | BL60: 443 | BM60: 3.5 | BN60: 4 | BO60: 7 | BP60: 14.5 | BQ60: 3.5 | BR60: 7 | BS60: 7.5 | BT60: 18 | BU60: ناجحة | BV60: ومنقولة للصف الثانى | BW60: 0 | CS60: 168.6
A61: 54 | B61: 54 | C61: طالب الصف الاول 54 | D61: 1/1 | E61: مستجد | F61: 138 | G61: 8 | H61: 14 | I61: 14.5 | J61: 36.5 | K61: 8.4 | L61: 10.8 | M61: 16.8 | N61: 36 | O61: 5.5 | P61: 6.8 | Q61: 6.4 | R61: 18.7 | S61: 9 | T61: 16.5 | U61: 14.5 | V61: 40 | W61: 9 | X61: 17.5 | Y61: 16 | Z61: 42.5 | AA61: 9 | AB61: 15 | AC61: 16.5 | AD61: 40.5 | AE61: 8.5 | AF61: 18 | AG61: 14 | AH61: 40.5 | AI61: 9 | AJ61: 18 | AK61: 15 | AL61: 42 | AM61: 8.5 | AN61: 16 | AO61: 18 | AP61: 42.5 | AQ61: 8 | AR61: 18 | AS61: 18 | AT61: 44 | AU61: 3 | AV61: 9 | AW61: 9 | AX61: 21 | AY61: 7 | AZ61: 16 | BA61: 13 | BB61: 36 | BC61: 3 | BD61: 4 | BE61: 6 | BF61: 9 | BG61: 5 | BH61: 6 | BI61: 14 | BJ61: 19 | BK61: 33 | BL61: 473.2 | BM61: 3.5 | BN61: 5 | BO61: 7 | BP61: 15.5 | BQ61: 3.5 | BR61: 6.5 | BS61: 6 | BT61: 16 | BU61: ناجحة | BV61: ومنقولة للصف الثانى | BW61: 0 | CS61: 190.6
A62: 55 | B62: 55 | C62: طالب الصف الاول 55 | D62: 1/1 | E62: مستجد | F62: 139 | G62: 8 | H62: 10.5 | I62: 6.5 | J62: 25 | K62: 8.4 | L62: 8.4 | M62: 15.2 | N62: 32 | O62: 5.5 | P62: 8.4 | Q62: 6 | R62: 19.9 | S62: 9 | T62: 0 | U62: 16 | V62: 25 | W62: 9 | X62: 10.5 | Y62: 14 | Z62: 33.5 | AA62: 9 | AB62: 9 | AC62: 10 | AD62: 28 | AE62: 8.5 | AF62: 13 | AG62: 11 | AH62: 32.5 | AI62: 9 | AJ62: 13.5 | AK62: 12 | AL62: 34.5 | AM62: 8.5 | AN62: 15.5 | AO62: 19 | AP62: 43 | AQ62: 8 | AR62: 16 | AS62: 18 | AT62: 42 | AU62: 5.5 | AV62: 7.5 | AW62: 8 | AX62: 21 | AY62: 7 | AZ62: 16 | BA62: 11 | BB62: 34 | BC62: 3 | BD62: 4 | BE62: 6 | BF62: 9 | BG62: 5 | BH62: 7 | BI62: 14 | BJ62: 20 | BK62: 34 | BL62: 404.4 | BM62: 3.5 | BN62: 3.5 | BO62: 7 | BP62: 14 | BQ62: 3.5 | BR62: 5.5 | BS62: 6.5 | BT62: 15.5 | BU62: ناجحة | BV62: ومنقولة للصف الثانى | BW62: 0 | CS62: 143.3
A63: 56 | B63: 56 | C63: طالب الصف الاول 56 | D63: 1/1 | E63: مستجد | F63: 140 | G63: 8 | H63: 14 | I63: 12 | J63: 34 | K63: 8.4 | L63: 9.2 | M63: 14.8 | N63: 32.4 | O63: 5.5 | P63: 6.4 | Q63: 6 | R63: 17.9 | S63: 9 | T63: 2.5 | U63: 13.5 | V63: 25 | W63: 9 | X63: 15 | Y63: 17.5 | Z63: 41.5 | AA63: 9 | AB63: 9 | AC63: 9 | AD63: 27 | AE63: 8.5 | AF63: 18 | AG63: 15 | AH63: 41.5 | AI63: 9 | AJ63: 16 | AK63: 13 | AL63: 38 | AM63: 8.5 | AN63: 15.5 | AO63: 17 | AP63: 41 | AQ63: 8 | AR63: 15 | AS63: 17 | AT63: 40 | AU63: 5.5 | AV63: 4.5 | AW63: 6 | AX63: 16 | AY63: 7 | AZ63: 16 | BA63: 12 | BB63: 35 | BC63: 3 | BD63: 4 | BE63: 5 | BF63: 9 | BG63: 6 | BH63: 5 | BI63: 14 | BJ63: 18 | BK63: 32 | BL63: 421.3 | BM63: 3.5 | BN63: 5 | BO63: 7 | BP63: 15.5 | BQ63: 3.5 | BR63: 5.5 | BS63: 7 | BT63: 16 | BU63: ناجحة | BV63: ومنقولة للصف الثانى | BW63: 0 | CS63: 155.1
A64: 57 | B64: 57 | C64: طالب الصف الاول 57 | D64: 1/1 | E64: مستجد | F64: 1 | G64: 8 | H64: 12 | I64: 5 | J64: 25 | K64: 8.1 | L64: 8.8 | M64: 16 | N64: 32.9 | O64: 5.5 | P64: 6.4 | Q64: 6.4 | R64: 18.3 | S64: 9 | T64: 1 | U64: 15 | V64: 25 | W64: 9 | X64: 15.5 | Y64: 17 | Z64: 41.5 | AA64: 9 | AB64: 7 | AC64: 10 | AD64: 26 | AE64: 8.5 | AF64: 17 | AG64: 17 | AH64: 42.5 | AI64: 9 | AJ64: غ | AK64: 16.5 | AL64: 25.5 | AM64: 8.5 | AN64: 15.5 | AO64: 19 | AP64: 43 | AQ64: 8 | AR64: 15 | AS64: 17 | AT64: 40 | AU64: 3 | AV64: 5.5 | AW64: 7 | AX64: 15.5 | AY64: 7 | AZ64: 16 | BA64: 10 | BB64: 33 | BC64: 3 | BD64: 4 | BE64: 5 | BF64: 9 | BG64: 5 | BH64: 5 | BI64: 13 | BJ64: 18 | BK64: 31 | BL64: 399.2 | BM64: 3.5 | BN64: 4 | BO64: 7 | BP64: 14.5 | BQ64: 3.5 | BR64: 6 | BS64: 6 | BT64: 15.5 | BU64: ناجحة | BV64: ومنقولة للصف الثانى | BW64: 0 | CS64: 133.7
A65: 58 | B65: 58 | C65: طالب الصف الاول 58 | D65: 1/1 | E65: مستجد | F65: 2 | G65: 8 | H65: 12.5 | I65: 12 | J65: 32.5 | K65: 8.3 | L65: 9.2 | M65: 14.4 | N65: 31.9 | O65: 5.5 | P65: 6 | Q65: 7.2 | R65: 18.7 | S65: 9 | T65: 16.5 | U65: 16 | V65: 41.5 | W65: 9 | X65: 19.5 | Y65: 16.5 | Z65: 45 | AA65: 9 | AB65: 17.5 | AC65: 15.5 | AD65: 42 | AE65: 8.5 | AF65: 14 | AG65: 14 | AH65: 36.5 | AI65: 9 | AJ65: 16 | AK65: 14.5 | AL65: 39.5 | AM65: 8.5 | AN65: 15.5 | AO65: 18 | AP65: 42 | AQ65: 8 | AR65: 16.5 | AS65: 17 | AT65: 41.5 | AU65: 5.5 | AV65: 9.5 | AW65: 9 | AX65: 24 | AY65: 7 | AZ65: 15 | BA65: 13 | BB65: 35 | BC65: 3 | BD65: 4 | BE65: 6 | BF65: 9 | BG65: 5 | BH65: 6 | BI65: 14 | BJ65: 19 | BK65: 33 | BL65: 463.1 | BM65: 3.5 | BN65: 6.5 | BO65: 7.5 | BP65: 17.5 | BQ65: 3.5 | BR65: 6 | BS65: 7.5 | BT65: 17 | BU65: ناجحة | BV65: ومنقولة للصف الثانى | BW65: 0 | CS65: 182.7
A66: 59 | B66: 59 | C66: طالب الصف الاول 59 | D66: 1/1 | E66: مستجد | F66: 3 | G66: 8 | H66: 14.5 | I66: 13 | J66: 35.5 | K66: 8.5 | L66: 8.8 | M66: 15.6 | N66: 32.9 | O66: 5.5 | P66: 6.4 | Q66: 5.6 | R66: 17.5 | S66: 9 | T66: 15 | U66: 16 | V66: 40 | W66: 9.5 | X66: 12 | Y66: 16 | Z66: 37.5 | AA66: 9 | AB66: 17.5 | AC66: 13.5 | AD66: 40 | AE66: 8.5 | AF66: 18 | AG66: 15 | AH66: 41.5 | AI66: 9 | AJ66: 16 | AK66: 11.5 | AL66: 36.5 | AM66: 8.5 | AN66: 15.5 | AO66: 19 | AP66: 43 | AQ66: 8 | AR66: 17 | AS66: 17 | AT66: 42 | AU66: 3 | AV66: 8.5 | AW66: 10 | AX66: 21.5 | AY66: 7 | AZ66: 16 | BA66: 11 | BB66: 34 | BC66: 3 | BD66: 4 | BE66: 5 | BF66: 9 | BG66: 6 | BH66: 6 | BI66: 14 | BJ66: 19 | BK66: 33 | BL66: 454.9 | BM66: 3.5 | BN66: 6 | BO66: 7.5 | BP66: 17 | BQ66: 3.5 | BR66: 7 | BS66: 7.5 | BT66: 18 | BU66: ناجحة | BV66: ومنقولة للصف الثانى | BW66: 0 | CS66: 179.2
A67: 60 | B67: 60 | C67: طالب الصف الاول 60 | D67: 1/1 | E67: مستجد | F67: 4 | G67: 8 | H67: 15 | I67: 12 | J67: 35 | K67: 8.4 | L67: 9.2 | M67: 18 | N67: 35.6 | O67: 5.5 | P67: 7.2 | Q67: 6 | R67: 18.7 | S67: 9 | T67: 13.5 | U67: 17 | V67: 39.5 | W67: 9 | X67: 18.5 | Y67: 17 | Z67: 44.5 | AA67: 9 | AB67: 18.5 | AC67: 12 | AD67: 39.5 | AE67: 8.5 | AF67: 18 | AG67: 17 | AH67: 43.5 | AI67: 9 | AJ67: 18 | AK67: 14 | AL67: 41 | AM67: 8.5 | AN67: 15.5 | AO67: 18 | AP67: 42 | AQ67: 8 | AR67: 19.5 | AS67: 17 | AT67: 44.5 | AU67: 5.5 | AV67: 10 | AW67: 8 | AX67: 23.5 | AY67: 7 | AZ67: 16 | BA67: 13 | BB67: 36 | BC67: 3 | BD67: 4 | BE67: 6 | BF67: 9 | BG67: 6 | BH67: 6 | BI67: 15 | BJ67: 19 | BK67: 34 | BL67: 477.3 | BM67: 3.5 | BN67: 7 | BO67: 8 | BP67: 18.5 | BQ67: 3.5 | BR67: 6.5 | BS67: 8 | BT67: 18 | BU67: ناجحة | BV67: ومنقولة للصف الثانى | BW67: 0 | CS67: 193.9
A68: 61 | B68: 61 | C68: طالب الصف الاول 61 | D68: 1/1 | E68: مستجد | F68: 5 | G68: 8 | H68: 14.5 | I68: 12 | J68: 34.5 | K68: 8.2 | L68: 10 | M68: 18 | N68: 36.2 | O68: 5.5 | P68: 7.6 | Q68: 6.8 | R68: 19.9 | S68: 9 | T68: 16 | U68: 19 | V68: 44 | W68: 9 | X68: 17.5 | Y68: 17 | Z68: 43.5 | AA68: 9 | AB68: 18.5 | AC68: 13.5 | AD68: 41 | AE68: 8.5 | AF68: 18 | AG68: 17 | AH68: 43.5 | AI68: 9 | AJ68: 17 | AK68: 16 | AL68: 42 | AM68: 9 | AN68: 15.5 | AO68: 20 | AP68: 44.5 | AQ68: 8 | AR68: 17.5 | AS68: 17 | AT68: 42.5 | AU68: 5.5 | AV68: 10 | AW68: 10 | AX68: 25.5 | AY68: 7 | AZ68: 15 | BA68: 11 | BB68: 33 | BC68: 3 | BD68: 4 | BE68: 6 | BF68: 8 | BG68: 5 | BH68: 6 | BI68: 14 | BJ68: 18 | BK68: 32 | BL68: 482.1 | BM68: 3.5 | BN68: 5.5 | BO68: 8 | BP68: 17 | BQ68: 3.5 | BR68: 6.5 | BS68: 5.5 | BT68: 15.5 | BU68: ناجحة | BV68: ومنقولة للصف الثانى | BW68: 0 | CS68: 191.1
A69: 62 | B69: 62 | C69: طالب الصف الاول 62 | D69: 1/1 | E69: مستجد | F69: 6 | G69: 8 | H69: 14.5 | I69: 9 | J69: 31.5 | K69: 8.2 | L69: 10.4 | M69: 17.2 | N69: 35.8 | O69: 5.5 | P69: 6.4 | Q69: 6.4 | R69: 18.3 | S69: 9 | T69: 0.5 | U69: 15.5 | V69: 25 | W69: 9 | X69: 11 | Y69: 17 | Z69: 37 | AA69: 9 | AB69: 10.5 | AC69: 9.5 | AD69: 29 | AE69: 8.5 | AF69: 14 | AG69: 16 | AH69: 38.5 | AI69: 9 | AJ69: 17 | AK69: 15 | AL69: 41 | AM69: 8.5 | AN69: 15.5 | AO69: 19 | AP69: 43 | AQ69: 8 | AR69: 15.5 | AS69: 16 | AT69: 39.5 | AU69: 3 | AV69: 5 | AW69: 7 | AX69: 15 | AY69: 7 | AZ69: 16 | BA69: 11 | BB69: 34 | BC69: 3 | BD69: 4 | BE69: 6 | BF69: 9 | BG69: 5 | BH69: 6 | BI69: 14 | BJ69: 19 | BK69: 33 | BL69: 420.6 | BM69: 3.5 | BN69: 5 | BO69: 7.5 | BP69: 16 | BQ69: 3.5 | BR69: 7 | BS69: 7.5 | BT69: 18 | BU69: ناجحة | BV69: ومنقولة للصف الثانى | BW69: 0 | CS69: 151.3
A70: 63 | B70: 63 | C70: طالب الصف الاول 63 | D70: 1/1 | E70: مستجد | F70: 7 | G70: 8 | H70: 14 | I70: 8.5 | J70: 30.5 | K70: 8.3 | L70: 8.8 | M70: 16.8 | N70: 33.9 | O70: 5.5 | P70: 7.6 | Q70: 6.4 | R70: 19.5 | S70: 8.5 | T70: 1.5 | U70: 15 | V70: 25 | W70: 9 | X70: 16.5 | Y70: 15 | Z70: 40.5 | AA70: 9 | AB70: 9 | AC70: 11.5 | AD70: 29.5 | AE70: 8.5 | AF70: 14 | AG70: 17 | AH70: 39.5 | AI70: 9 | AJ70: 17 | AK70: 15 | AL70: 41 | AM70: 9 | AN70: 15.5 | AO70: 19 | AP70: 43.5 | AQ70: 8 | AR70: 14 | AS70: 17 | AT70: 39 | AU70: 3 | AV70: 5.5 | AW70: 6.5 | AX70: 15 | AY70: 7 | AZ70: 16 | BA70: 11 | BB70: 34 | BC70: 3 | BD70: 4 | BE70: 5 | BF70: 9 | BG70: 6 | BH70: 6 | BI70: 14 | BJ70: 19 | BK70: 33 | BL70: 423.9 | BM70: 3.5 | BN70: 4.5 | BO70: 7.5 | BP70: 15.5 | BQ70: 3.5 | BR70: 6 | BS70: 8 | BT70: 17.5 | BU70: ناجحة | BV70: ومنقولة للصف الثانى | BW70: 0 | CS70: 153.4
A71: 64 | B71: 64 | C71: طالب الصف الاول 64 | D71: 1/1 | E71: مستجد | F71: 8 | G71: 8 | H71: 13.5 | I71: 11 | J71: 32.5 | K71: 8.3 | L71: 11.2 | M71: 16 | N71: 35.5 | O71: 5.5 | P71: 9.6 | Q71: 7.2 | R71: 22.3 | S71: 9 | T71: 17 | U71: 16 | V71: 42 | W71: 9 | X71: 18.5 | Y71: 16.5 | Z71: 44 | AA71: 9 | AB71: 14.5 | AC71: 16.5 | AD71: 40 | AE71: 8.5 | AF71: 13 | AG71: 16 | AH71: 37.5 | AI71: 9 | AJ71: 16 | AK71: 16 | AL71: 41 | AM71: 8.5 | AN71: 15.5 | AO71: 20 | AP71: 44 | AQ71: 8 | AR71: 13 | AS71: 17 | AT71: 38 | AU71: 5.5 | AV71: 10.5 | AW71: 9 | AX71: 25 | AY71: 7 | AZ71: 16 | BA71: 13 | BB71: 36 | BC71: 3 | BD71: 4 | BE71: 6 | BF71: 9 | BG71: 5 | BH71: 7 | BI71: 14 | BJ71: 20 | BK71: 34 | BL71: 471.8 | BM71: 3.5 | BN71: 4.5 | BO71: 7.5 | BP71: 15.5 | BQ71: 3.5 | BR71: 6 | BS71: 8 | BT71: 17.5 | BU71: ناجحة | BV71: ومنقولة للصف الثانى | BW71: 0 | CS71: 183.3
A72: 65 | B72: 65 | C72: طالب الصف الاول 65 | D72: 1/1 | E72: مستجد | F72: 9 | G72: 8 | H72: 15.5 | I72: 13.5 | J72: =SUM(G72:I72) -> 37 | K72: 8.3 | L72: 10 | M72: 14.8 | N72: =SUM(K72:M72) -> 33.1 | O72: 5.5 | P72: 9.6 | Q72: 7.6 | R72: =SUM(O72:Q72) -> 22.7 | S72: 9 | T72: 16.5 | U72: 18 | V72: =SUM(S72:U72) -> 43.5 | W72: 9.5 | X72: 17 | Y72: 18.5 | Z72: =SUM(W72:Y72) -> 45 | AA72: 9 | AB72: 14 | AC72: 16.5 | AD72: =SUM(AA72:AC72) -> 39.5 | AE72: 8.5 | AF72: 14 | AG72: 16 | AH72: =SUM(AE72:AG72) -> 38.5 | AI72: 9 | AJ72: 15 | AK72: 19 | AL72: =SUM(AI72:AK72) -> 43 | AM72: 8.5 | AN72: 15.5 | AO72: 20 | AP72: =SUM(AM72:AO72) -> 44 | AQ72: 8 | AR72: 13 | AS72: 17 | AT72: =SUM(AQ72:AS72) -> 38 | AU72: 5.5 | AV72: 7 | AW72: 10 | AX72: =SUM(AU72:AW72) -> 22.5 | AY72: 7 | AZ72: 16 | BA72: 13 | BB72: =SUM(AY72:BA72) -> 36 | BC72: 3 | BD72: 4 | BE72: 6 | BF72: 9 | BG72: 6 | BH72: 6 | BI72: =SUM(BC72,BE72,BG72) -> 15 | BJ72: 19 | BK72: =SUM(BI72,BJ72) -> 34 | BL72: =SUM(J72,N72,R72,V72,Z72,AD72,AH72,AL72,AP72,AT72,AX72,BB72,BK72) -> 476.8 | BM72: 3.5 | BN72: 4 | BO72: 7.5 | BP72: =SUM(BM72:BO72) -> 15 | BQ72: 3.5 | BR72: 7.5 | BS72: 8 | BT72: =SUM(BQ72:BS72) -> 19 | BU72: =IF(C72="","",IF(BW72=0,"ناجحة",IF(BW72<=2,"دورثان","راسبة"))) -> ناجحة | BV72: =IF(C72="","",IF(BW72=0,"ومنقولة للصف الثانى",IF(BW72>0,"فى : "&CONCATENATE(CA72,CB72,CC72,CD72,CE72,CF72,CG72,CH72,CI72,CK72,CL72,CM72,CN72,CO72,CP72)))) -> ومنقولة للصف الثانى | BW72: 0 | CA72: =IF(C72="","",IF(OR(I72<$I$7,I72="غ",J72<$J$7),CA$3&" - ","")) ->  | CB72: =IF(C72="","",IF(OR(M72<$M$7,M72="غ",N72<$N$7),CB$3&" - ","")) ->  | CC72: =IF(C72="","",IF(OR(Q72<$Q$7,Q72="غ",R72<$R$7),CC$3&" - ","")) ->  | CD72: =IF(C72="","",IF(OR(U72<$U$7,U72="غ",V72<$V$7),CD$3&" - ","")) ->  | CE72: =IF(C72="","",IF(OR(Y72<$Y$7,Y72="غ",Z72<$Z$7),CE$3&" - ","")) ->  | CF72: =IF(C72="","",IF(OR(AC72<$AC$7,AC72="غ",AD72<$AD$7),CF$3&" - ","")) ->  | CG72: =IF(C72="","",IF(OR(AG72<$AG$7,AG72="غ",AH72<$AH$7),CG$3&" - ","")) ->  | CH72: =IF(C72="","",IF(OR(AK72<$AK$7,AK72="غ",AL72<$AL$7),CH$3&" - ","")) ->  | CI72: =IF(C72="","",IF(OR(AO72<$AO$7,AO72="غ",AP72<$AP$7),CI$3&" - ","")) ->  | CJ72: =IF(C72="","",IF(OR(AS72<$AS$7,AS72="غ",AT72<$AT$7),CJ$3&" - ","")) ->  | CK72: =IF(C72="","",IF(OR(AW72<$AW$7,AW72="غ",AX72<$AX$7),CK$3&" - ","")) ->  | CL72: =IF(C72="","",IF(OR(BA72<$BA$7,BA72="غ",BB72<$BB$7),CL$3&" - ","")) ->  | CM72: =IF(C72="","",IF(OR(BG72<$BG$7,BH72<$BH$7,BI72<$BI$7,BI72="غ",BJ72<$BJ$7,BJ72="غ"),CM$3&" - ","")) ->  | CN72: =IF(C72="","",IF(BL72<$BL$7,CN$3&" - ","")) ->  | CO72: =IF(C72="","",IF(OR(BO72<$BO$7,BO72="غ",BP72<$BP$7),CO$3&" - ","")) ->  | CP72: =IF(C72="","",IF(OR(BS72<$BS$7,BS72="غ",BT72<$BT$7),CP$3,"")) ->  | CS72: =IF(C72="","",SUM(H72,L72,P72,T72,X72,AB72,AF72,AJ72,AN72,AR72,AV72,AZ72,BE72,BF72)) -> 178.1
A73: 66 | B73: 66 | C73: طالب الصف الاول 66 | D73: 1/1 | E73: مستجد | F73: 10 | G73: 8 | H73: 14.5 | I73: 15 | J73: 37.5 | K73: 8.2 | L73: 10 | M73: 17.2 | N73: 35.4 | O73: 5.5 | P73: 7.2 | Q73: 6.4 | R73: 19.1 | S73: 9 | T73: 13 | U73: 15 | V73: 37 | W73: 9.5 | X73: 17.5 | Y73: 16 | Z73: 43 | AA73: 9 | AB73: 13 | AC73: 15.5 | AD73: 37.5 | AE73: 8.5 | AF73: 15 | AG73: 17 | AH73: 40.5 | AI73: 9 | AJ73: 18 | AK73: 17 | AL73: 44 | AM73: 8.5 | AN73: 16 | AO73: 19 | AP73: 43.5 | AQ73: 8 | AR73: 14 | AS73: 17 | AT73: 39 | AU73: 3 | AV73: 5.5 | AW73: 9.5 | AX73: 18 | AY73: 7 | AZ73: 16 | BA73: 13 | BB73: 36 | BC73: 3 | BD73: 4 | BE73: 6 | BF73: 9 | BG73: 6 | BH73: 6 | BI73: 15 | BJ73: 19 | BK73: 34 | BL73: 464.5 | BM73: 3.5 | BN73: 5 | BO73: 7.5 | BP73: 16 | BQ73: 3.5 | BR73: 6.5 | BS73: 8 | BT73: 18 | BU73: ناجحة | BV73: ومنقولة للصف الثانى | BW73: =IF(C73="","",COUNTA(CA73:CM73)-COUNTBLANK(CA73:CM73)) -> 0 | CS73: 174.7
A74: 67 | B74: 67 | C74: طالب الصف الاول 67 | D74: 1/1 | E74: مستجد | F74: 11 | G74: 8 | H74: 14 | I74: 12 | J74: 34 | K74: 8.3 | L74: 10.8 | M74: 16.4 | N74: 35.5 | O74: 5.5 | P74: 7.2 | Q74: 8 | R74: 20.7 | S74: 9 | T74: 15.5 | U74: 17.5 | V74: 42 | W74: 8.5 | X74: 16.5 | Y74: 16.5 | Z74: 41.5 | AA74: 9 | AB74: 14 | AC74: 14.5 | AD74: 37.5 | AE74: 8.5 | AF74: 17 | AG74: 16 | AH74: 41.5 | AI74: 9 | AJ74: 17 | AK74: 14 | AL74: 40 | AM74: 8.5 | AN74: 15 | AO74: 20 | AP74: 43.5 | AQ74: 8 | AR74: 14 | AS74: 17 | AT74: 39 | AU74: 5.5 | AV74: 11 | AW74: 8.5 | AX74: 25 | AY74: 7 | AZ74: 16 | BA74: 14 | BB74: 37 | BC74: 3 | BD74: 4 | BE74: 6 | BF74: 9 | BG74: 5 | BH74: 6 | BI74: 14 | BJ74: 19 | BK74: 33 | BL74: 470.2 | BM74: 3.5 | BN74: 5 | BO74: 7.5 | BP74: 16 | BQ74: 3.5 | BR74: 5.5 | BS74: 5.5 | BT74: 14.5 | BU74: ناجحة | BV74: ومنقولة للصف الثانى | BW74: 0 | CS74: 183
A75: 68 | B75: 68 | C75: طالب الصف الاول 68 | D75: 1/1 | E75: مستجد | F75: 12 | G75: 8 | H75: 15.5 | I75: 13 | J75: 36.5 | K75: 8.4 | L75: 12.4 | M75: 17.6 | N75: 38.4 | O75: 5.5 | P75: 8 | Q75: 8 | R75: 21.5 | S75: 9 | T75: 17 | U75: 18 | V75: 44 | W75: 9.5 | X75: 18.5 | Y75: 17 | Z75: 45 | AA75: 9 | AB75: 16 | AC75: 17 | AD75: 42 | AE75: 8.5 | AF75: 19 | AG75: 16 | AH75: 43.5 | AI75: 9 | AJ75: 17 | AK75: 13 | AL75: 39 | AM75: 8.5 | AN75: 17 | AO75: 20 | AP75: 45.5 | AQ75: 8 | AR75: 18 | AS75: 17 | AT75: 43 | AU75: 3 | AV75: 9 | AW75: 10.5 | AX75: 22.5 | AY75: 7 | AZ75: 16 | BA75: 14 | BB75: 37 | BC75: 3 | BD75: 4 | BE75: 6 | BF75: 9 | BG75: 5 | BH75: 6 | BI75: 14 | BJ75: 19 | BK75: 33 | BL75: 490.9 | BM75: 3.5 | BN75: 5.5 | BO75: 7.5 | BP75: 16.5 | BQ75: 3.5 | BR75: 6 | BS75: 8 | BT75: 17.5 | BU75: ناجحة | BV75: ومنقولة للصف الثانى | BW75: 0 | CS75: 198.4
A76: 69 | B76: 69 | C76: طالب الصف الاول 69 | D76: 1/1 | E76: مستجد | F76: 13 | G76: 8 | H76: 15.5 | I76: 15.5 | J76: 39 | K76: 8.2 | L76: 11.2 | M76: 18.4 | N76: 37.8 | O76: 5.5 | P76: 8 | Q76: 8 | R76: 21.5 | S76: 9 | T76: 16 | U76: 13.5 | V76: 38.5 | W76: 9.5 | X76: 18.5 | Y76: 17 | Z76: 45 | AA76: 9 | AB76: 17 | AC76: 17.5 | AD76: 43.5 | AE76: 8.5 | AF76: 19 | AG76: 16 | AH76: 43.5 | AI76: 9 | AJ76: 17 | AK76: 13 | AL76: 39 | AM76: 8.5 | AN76: 16 | AO76: 20 | AP76: 44.5 | AQ76: 8 | AR76: 17 | AS76: 17 | AT76: 42 | AU76: 5.5 | AV76: 10 | AW76: 10.5 | AX76: 26 | AY76: 7 | AZ76: 16 | BA76: 14 | BB76: 37 | BC76: 3 | BD76: 4 | BE76: 6 | BF76: 9 | BG76: 6 | BH76: 6 | BI76: 15 | BJ76: 19 | BK76: 34 | BL76: 491.3 | BM76: 3.5 | BN76: 6.5 | BO76: 7.5 | BP76: 17.5 | BQ76: 3.5 | BR76: 6.5 | BS76: 8 | BT76: 18 | BU76: ناجحة | BV76: ومنقولة للصف الثانى | BW76: 0 | CS76: 196.2
A77: 70 | B77: 70 | C77: طالب الصف الاول 70 | D77: 1/1 | E77: مستجد | F77: 14 | G77: 8 | H77: 16 | I77: 15 | J77: 39 | K77: 8.4 | L77: 11.6 | M77: 18 | N77: 38 | O77: 5.5 | P77: 8 | Q77: 8 | R77: 21.5 | S77: 9 | T77: 8.5 | U77: 16.5 | V77: 34 | W77: 9 | X77: 19 | Y77: 18 | Z77: 46 | AA77: 9 | AB77: 15 | AC77: 17.5 | AD77: 41.5 | AE77: 8.5 | AF77: 19 | AG77: 16 | AH77: 43.5 | AI77: 9 | AJ77: 17 | AK77: 16 | AL77: 42 | AM77: 8.5 | AN77: 16 | AO77: 20 | AP77: 44.5 | AQ77: 8 | AR77: 17 | AS77: 17 | AT77: 42 | AU77: 5.5 | AV77: 6.5 | AW77: 10.5 | AX77: 22.5 | AY77: 7 | AZ77: 16 | BA77: 15 | BB77: 38 | BC77: 3 | BD77: 4 | BE77: 5 | BF77: 8 | BG77: 5 | BH77: 6 | BI77: 13 | BJ77: 18 | BK77: 31 | BL77: 483.5 | BM77: 3.5 | BN77: 4.5 | BO77: 7.5 | BP77: 15.5 | BQ77: 3.5 | BR77: 6.5 | BS77: 7.5 | BT77: 17.5 | BU77: ناجحة | BV77: ومنقولة للصف الثانى | BW77: 0 | CS77: 182.6
A78: 71 | B78: 71 | C78: طالب الصف الاول 71 | D78: 1/1 | E78: مستجد | F78: 15 | G78: 8 | H78: 16.5 | I78: 16 | J78: 40.5 | K78: 8.2 | L78: 9.2 | M78: 15.2 | N78: 32.6 | O78: 5.5 | P78: 7.6 | Q78: 7.6 | R78: 20.7 | S78: 9 | T78: 9.5 | U78: 17 | V78: 35.5 | W78: 9 | X78: 19.5 | Y78: 16.5 | Z78: 45 | AA78: 9 | AB78: 15 | AC78: 13.5 | AD78: 37.5 | AE78: 8.5 | AF78: 18 | AG78: 14 | AH78: 40.5 | AI78: 9 | AJ78: 14.5 | AK78: 18 | AL78: 41.5 | AM78: 8.5 | AN78: 16 | AO78: 20 | AP78: 44.5 | AQ78: 8 | AR78: 17.5 | AS78: 18 | AT78: 43.5 | AU78: 3 | AV78: 3 | AW78: 10 | AX78: 16 | AY78: 7 | AZ78: 16 | BA78: 15 | BB78: 38 | BC78: 3 | BD78: 4 | BE78: 5 | BF78: 9 | BG78: 5 | BH78: 6 | BI78: 13 | BJ78: 19 | BK78: 32 | BL78: 467.8 | BM78: 3.5 | BN78: 5 | BO78: 7.5 | BP78: 16 | BQ78: 3.5 | BR78: 6.5 | BS78: 7.5 | BT78: 17.5 | BU78: ناجحة | BV78: ومنقولة للصف الثانى | BW78: 0 | CS78: 176.3
A79: 72 | B79: 72 | C79: طالب الصف الاول 72 | D79: 1/1 | E79: مستجد | F79: 16 | G79: 8 | H79: 16 | I79: 12 | J79: 36 | K79: 8.4 | L79: 8.8 | M79: 17.6 | N79: 34.8 | O79: 5.5 | P79: 7.2 | Q79: 7.6 | R79: 20.3 | S79: 9 | T79: 8.5 | U79: 17 | V79: 34.5 | W79: 8.5 | X79: 18 | Y79: 17 | Z79: 43.5 | AA79: 9 | AB79: 12 | AC79: 12.5 | AD79: 33.5 | AE79: 8.5 | AF79: 16 | AG79: 18 | AH79: 42.5 | AI79: 9 | AJ79: 16 | AK79: 16 | AL79: 41 | AM79: 8.5 | AN79: 16 | AO79: 20 | AP79: 44.5 | AQ79: 8 | AR79: 17 | AS79: 17 | AT79: 42 | AU79: 3 | AV79: 4.5 | AW79: 10.5 | AX79: 18 | AY79: 7 | AZ79: 16 | BA79: 14 | BB79: 37 | BC79: 3 | BD79: 4 | BE79: 5 | BF79: 10 | BG79: 5 | BH79: 6 | BI79: 13 | BJ79: 20 | BK79: 33 | BL79: 460.6 | BM79: 3.5 | BN79: 4 | BO79: 7.5 | BP79: 15 | BQ79: 3.5 | BR79: 6.5 | BS79: 8 | BT79: 18 | BU79: ناجحة | BV79: ومنقولة للصف الثانى | BW79: 0 | CS79: 171
A80: 73 | B80: 73 | C80: طالب الصف الاول 73 | D80: 1/1 | E80: مستجد | F80: 17 | G80: 8 | H80: 16.5 | I80: 16 | J80: 40.5 | K80: 8.3 | L80: 14.8 | M80: 8.4 | N80: 31.5 | O80: 5.5 | P80: 7.6 | Q80: 9.2 | R80: 22.3 | S80: 9 | T80: 17.5 | U80: 17.5 | V80: 44 | W80: 9 | X80: 18.5 | Y80: 15.5 | Z80: 43 | AA80: 9 | AB80: 13 | AC80: 15.5 | AD80: 37.5 | AE80: 8.5 | AF80: 19 | AG80: 14 | AH80: 41.5 | AI80: 9 | AJ80: 17 | AK80: 14 | AL80: 40 | AM80: 8.5 | AN80: 17 | AO80: 18 | AP80: 43.5 | AQ80: 8 | AR80: 16 | AS80: 17 | AT80: 41 | AU80: 5.5 | AV80: 7.5 | AW80: 9 | AX80: 22 | AY80: 7 | AZ80: 15 | BA80: 16 | BB80: 38 | BC80: 3 | BD80: 4 | BE80: 5 | BF80: 6 | BG80: 5 | BH80: 7 | BI80: 13 | BJ80: 17 | BK80: 30 | BL80: 474.8 | BM80: 3.5 | BN80: 4.5 | BO80: 8 | BP80: 16 | BQ80: 3.5 | BR80: 6.5 | BS80: 6 | BT80: 16 | BU80: ناجحة | BV80: ومنقولة للصف الثانى | BW80: 0 | CS80: 190.4
A81: 74 | B81: 74 | C81: طالب الصف الاول 74 | D81: 1/1 | E81: مستجد | F81: 18 | G81: 8 | H81: 13 | I81: 14 | J81: 35 | K81: 8.2 | L81: 15.6 | M81: 10.4 | N81: 34.2 | O81: 5.5 | P81: 8 | Q81: 9.6 | R81: 23.1 | S81: 9 | T81: 14 | U81: 18 | V81: 41 | W81: 9 | X81: 18 | Y81: 18 | Z81: 45 | AA81: 9 | AB81: 11 | AC81: 14.5 | AD81: 34.5 | AE81: 8.5 | AF81: 19 | AG81: 13 | AH81: 40.5 | AI81: 9 | AJ81: 17 | AK81: 12 | AL81: 38 | AM81: 8.5 | AN81: 17 | AO81: 15 | AP81: 40.5 | AQ81: 8 | AR81: 16 | AS81: 18 | AT81: 42 | AU81: 5.5 | AV81: 2.5 | AW81: 10 | AX81: 18 | AY81: 7 | AZ81: 15 | BA81: 15 | BB81: 37 | BC81: 3 | BD81: 4 | BE81: 6 | BF81: 6 | BG81: 6 | BH81: 5 | BI81: 15 | BJ81: 15 | BK81: 30 | BL81: 458.8 | BM81: 3.5 | BN81: 4 | BO81: 7 | BP81: 14.5 | BQ81: 3.5 | BR81: 6.5 | BS81: 6 | BT81: 16 | BU81: ناجحة | BV81: ومنقولة للصف الثانى | BW81: 0 | CS81: 178.1
A82: 75 | B82: 75 | C82: طالب الصف الاول 75 | D82: 2/1 | E82: مستجد | F82: 19 | G82: 8 | H82: 14.5 | I82: 16 | J82: 38.5 | K82: 8.4 | L82: 15.6 | M82: 7.6 | N82: 31.6 | O82: 5.5 | P82: 7.6 | Q82: 9.2 | R82: 22.3 | S82: 9 | T82: 15.5 | U82: 19.5 | V82: 44 | W82: 9 | X82: 18.5 | Y82: 14.5 | Z82: 42 | AA82: 9 | AB82: 15 | AC82: 17.5 | AD82: 41.5 | AE82: 8.5 | AF82: 19 | AG82: 13 | AH82: 40.5 | AI82: 9 | AJ82: 15 | AK82: 13 | AL82: 37 | AM82: 8.5 | AN82: 17 | AO82: 16 | AP82: 41.5 | AQ82: 8 | AR82: 16 | AS82: 16 | AT82: 40 | AU82: 3.5 | AV82: 9.5 | AW82: 10.5 | AX82: 23.5 | AY82: 7 | AZ82: 15 | BA82: 16 | BB82: 38 | BC82: 3 | BD82: 4 | BE82: 5 | BF82: 6 | BG82: 5 | BH82: 5 | BI82: 13 | BJ82: 15 | BK82: 28 | BL82: 468.4 | BM82: 3.5 | BN82: 5 | BO82: 8 | BP82: 16.5 | BQ82: 3.5 | BR82: 6.5 | BS82: 6.5 | BT82: 16.5 | BU82: ناجحة | BV82: ومنقولة للصف الثانى | BW82: 0 | CS82: 189.2
A83: 76 | B83: 76 | C83: طالب الصف الاول 76 | D83: 2/1 | E83: مستجد | F83: 20 | G83: 8 | H83: 14.5 | I83: 14 | J83: 36.5 | K83: 8.3 | L83: 15.2 | M83: 8.4 | N83: 31.9 | O83: 5.5 | P83: 7.2 | Q83: 10.8 | R83: 23.5 | S83: 9 | T83: 11 | U83: 15 | V83: 35 | W83: 9.5 | X83: 18 | Y83: 16.5 | Z83: 44 | AA83: 9 | AB83: 13 | AC83: 11 | AD83: 33 | AE83: 8.5 | AF83: 19 | AG83: 12 | AH83: 39.5 | AI83: 9 | AJ83: 16 | AK83: 14 | AL83: 39 | AM83: 8.5 | AN83: 17 | AO83: 16 | AP83: 41.5 | AQ83: 8 | AR83: 16 | AS83: 17 | AT83: 41 | AU83: 5.5 | AV83: 9 | AW83: 10 | AX83: 24.5 | AY83: 7 | AZ83: 15 | BA83: 16 | BB83: 38 | BC83: 3 | BD83: 4 | BE83: 5 | BF83: 6 | BG83: 6 | BH83: 6 | BI83: 14 | BJ83: 16 | BK83: 30 | BL83: 457.4 | BM83: 3.5 | BN83: 5 | BO83: 7 | BP83: 15.5 | BQ83: 3.5 | BR83: 6.5 | BS83: 6.5 | BT83: 16.5 | BU83: ناجحة | BV83: ومنقولة للصف الثانى | BW83: 0 | CS83: 181.9
A84: 77 | B84: 77 | C84: طالب الصف الاول 77 | D84: 2/1 | E84: مستجد | F84: 21 | G84: 8 | H84: 12 | I84: 14 | J84: 34 | K84: 8.2 | L84: 13.2 | M84: 8 | N84: 29.4 | O84: 5.5 | P84: 6.4 | Q84: 10.6 | R84: 22.5 | S84: 9 | T84: 15 | U84: 10.5 | V84: 34.5 | W84: 9 | X84: 16.5 | Y84: 14.5 | Z84: 40 | AA84: 9 | AB84: 10.5 | AC84: 9 | AD84: 28.5 | AE84: 8.5 | AF84: 19 | AG84: 11 | AH84: 38.5 | AI84: 9 | AJ84: 12 | AK84: 12 | AL84: 33 | AM84: 8.5 | AN84: 16 | AO84: 17 | AP84: 41.5 | AQ84: 8 | AR84: 16 | AS84: 13 | AT84: 37 | AU84: 3 | AV84: 4.5 | AW84: 8.5 | AX84: 16 | AY84: 7 | AZ84: 14 | BA84: 16 | BB84: 37 | BC84: 3 | BD84: 4 | BE84: 5 | BF84: 6 | BG84: 5 | BH84: 7 | BI84: 13 | BJ84: 17 | BK84: 30 | BL84: 421.9 | BM84: 3.5 | BN84: 5 | BO84: 8 | BP84: 16.5 | BQ84: 3.5 | BR84: 6.5 | BS84: 6.5 | BT84: 16.5 | BU84: ناجحة | BV84: ومنقولة للصف الثانى | BW84: 0 | CS84: 166.1
A85: 78 | B85: 78 | C85: طالب الصف الاول 78 | D85: 2/1 | E85: مستجد | F85: 22 | G85: 8 | H85: 13.5 | I85: 15 | J85: 36.5 | K85: 8.3 | L85: 14.8 | M85: 8.4 | N85: 31.5 | O85: 5.5 | P85: 6.8 | Q85: 9.6 | R85: 21.9 | S85: 9 | T85: 15.5 | U85: 14 | V85: 38.5 | W85: 9.5 | X85: 17 | Y85: 15.5 | Z85: 42 | AA85: 9 | AB85: 11.5 | AC85: 11.5 | AD85: 32 | AE85: 8.5 | AF85: 19 | AG85: 13 | AH85: 40.5 | AI85: 9 | AJ85: 16 | AK85: 14 | AL85: 39 | AM85: 9 | AN85: 17 | AO85: 16 | AP85: 42 | AQ85: 8 | AR85: 15 | AS85: 16 | AT85: 39 | AU85: 3 | AV85: 9.5 | AW85: 9 | AX85: 21.5 | AY85: 7 | AZ85: 14 | BA85: 16 | BB85: 37 | BC85: 3 | BD85: 4 | BE85: 6 | BF85: 5 | BG85: 5 | BH85: 6 | BI85: 14 | BJ85: 15 | BK85: 29 | BL85: 450.4 | BM85: 3.5 | BN85: 6 | BO85: 8 | BP85: 17.5 | BQ85: 3.5 | BR85: 6.5 | BS85: 7 | BT85: 17 | BU85: ناجحة | BV85: ومنقولة للصف الثانى | BW85: 0 | CS85: 180.6
A86: 79 | B86: 79 | C86: طالب الصف الاول 79 | D86: 2/1 | E86: مستجد | F86: 23 | G86: 8 | H86: 13.5 | I86: 14.5 | J86: 36 | K86: 8.2 | L86: 15.2 | M86: 8.4 | N86: 31.8 | O86: 5.5 | P86: 8.8 | Q86: 10.4 | R86: 24.7 | S86: 9 | T86: 16.5 | U86: 8 | V86: 33.5 | W86: 9 | X86: 18.5 | Y86: 15 | Z86: 42.5 | AA86: 9 | AB86: 14.5 | AC86: 9 | AD86: 32.5 | AE86: 8.5 | AF86: 19 | AG86: 13 | AH86: 40.5 | AI86: 9 | AJ86: 17 | AK86: 13 | AL86: 39 | AM86: 9 | AN86: 18 | AO86: 17 | AP86: 44 | AQ86: 8 | AR86: 15 | AS86: 17 | AT86: 40 | AU86: 5.5 | AV86: 11 | AW86: 9 | AX86: 25.5 | AY86: 7 | AZ86: 15 | BA86: 16 | BB86: 38 | BC86: 3 | BD86: 4 | BE86: 6 | BF86: 6 | BG86: 6 | BH86: 5 | BI86: 15 | BJ86: 15 | BK86: 30 | BL86: 458 | BM86: 3.5 | BN86: 5 | BO86: 8 | BP86: 16.5 | BQ86: 3.5 | BR86: 6.5 | BS86: 6.5 | BT86: 16.5 | BU86: ناجحة | BV86: ومنقولة للصف الثانى | BW86: 0 | CS86: 194
A87: 80 | B87: 80 | C87: طالب الصف الاول 80 | D87: 2/1 | E87: مستجد | F87: 24 | G87: 8.5 | H87: 16.5 | I87: 17.5 | J87: 42.5 | K87: 8.2 | L87: 16 | M87: 9.6 | N87: 33.8 | O87: 5.5 | P87: 7.6 | Q87: 9.6 | R87: 22.7 | S87: 9 | T87: 18 | U87: 16 | V87: 43 | W87: 9.5 | X87: 19 | Y87: 17 | Z87: 45.5 | AA87: 9 | AB87: 14.5 | AC87: 17 | AD87: 40.5 | AE87: 8.5 | AF87: 19 | AG87: 14 | AH87: 41.5 | AI87: 9 | AJ87: 17 | AK87: 13 | AL87: 39 | AM87: 8.5 | AN87: 15 | AO87: 18 | AP87: 41.5 | AQ87: 8 | AR87: 16 | AS87: 16 | AT87: 40 | AU87: 5.5 | AV87: 10.5 | AW87: 10.5 | AX87: 26.5 | AY87: 7 | AZ87: 15 | BA87: 16 | BB87: 38 | BC87: 3 | BD87: 4 | BE87: 6 | BF87: 6 | BG87: 5 | BH87: 6 | BI87: 14 | BJ87: 16 | BK87: 30 | BL87: 484.5 | BM87: 3.5 | BN87: 7 | BO87: 8 | BP87: 18.5 | BQ87: 3.5 | BR87: 7 | BS87: 6.5 | BT87: 17 | BU87: ناجحة | BV87: ومنقولة للصف الثانى | BW87: 0 | CS87: 196.1
A88: 81 | B88: 81 | C88: طالب الصف الاول 81 | D88: 2/1 | E88: مستجد | F88: 25 | G88: 8 | H88: 10 | I88: 12 | J88: 30 | K88: 8.2 | L88: 10.8 | M88: 5.6 | N88: 24.6 | O88: 5.5 | P88: 8.4 | Q88: 10 | R88: 23.9 | S88: 8.5 | T88: 11.5 | U88: 7.5 | V88: 27.5 | W88: 8.5 | X88: 12 | Y88: 5 | Z88: 25.5 | AA88: 9 | AB88: 3.5 | AC88: 11 | AD88: 23.5 | AE88: 8.5 | AF88: 19 | AG88: 12 | AH88: 39.5 | AI88: 9 | AJ88: 16 | AK88: 11 | AL88: 36 | AM88: 8.5 | AN88: 17 | AO88: 11 | AP88: 36.5 | AQ88: 8 | AR88: 16 | AS88: 12 | AT88: 36 | AU88: 3.5 | AV88: 1.5 | AW88: 7 | AX88: 12 | AY88: 7 | AZ88: 14 | BA88: 15 | BB88: 36 | BC88: 3 | BD88: 4 | BE88: 6 | BF88: 6 | BG88: 6 | BH88: 6 | BI88: 15 | BJ88: 16 | BK88: 31 | BL88: 382 | BM88: 3.5 | BN88: 5 | BO88: 8 | BP88: 16.5 | BQ88: 3.5 | BR88: 5.5 | BS88: 5.5 | BT88: 14.5 | BU88: دورثان | BV88: فى : رياضة عامة - | BW88: 1 | CK88: رياضة عامة - | CS88: 151.7
A89: 82 | B89: 82 | C89: طالب الصف الاول 82 | D89: 2/1 | E89: مستجد | F89: 26 | G89: 8 | H89: 11 | I89: 12.5 | J89: 31.5 | K89: 8.2 | L89: 15.2 | M89: 6.4 | N89: 29.8 | O89: 5.5 | P89: 8.4 | Q89: 9.6 | R89: 23.5 | S89: 9 | T89: 14 | U89: 12 | V89: 35 | W89: 9 | X89: 17 | Y89: 12.5 | Z89: 38.5 | AA89: 9 | AB89: 7.5 | AC89: 12 | AD89: 28.5 | AE89: 8.5 | AF89: 19 | AG89: 15 | AH89: 42.5 | AI89: 9 | AJ89: 14.5 | AK89: 14 | AL89: 37.5 | AM89: 8.5 | AN89: 17 | AO89: 14 | AP89: 39.5 | AQ89: 8 | AR89: 16 | AS89: 14 | AT89: 38 | AU89: 3 | AV89: 4.5 | AW89: 10 | AX89: 17.5 | AY89: 7 | AZ89: 15 | BA89: 16 | BB89: 38 | BC89: 3 | BD89: 4 | BE89: 5 | BF89: 5 | BG89: 6 | BH89: 6 | BI89: 14 | BJ89: 15 | BK89: 29 | BL89: 428.8 | BM89: 3.5 | BN89: 5.5 | BO89: 8 | BP89: 17 | BQ89: 3.5 | BR89: 7 | BS89: 6 | BT89: 16.5 | BU89: ناجحة | BV89: ومنقولة للصف الثانى | BW89: 0 | CS89: 169.1
A90: 83 | B90: 83 | C90: طالب الصف الاول 83 | D90: 2/1 | E90: مستجد | F90: 27 | G90: 8 | H90: 12.5 | I90: 16 | J90: 36.5 | K90: 8.3 | L90: 14.8 | M90: 10 | N90: 33.1 | O90: 5.5 | P90: 9.2 | Q90: 10 | R90: 24.7 | S90: 9 | T90: 18 | U90: 18 | V90: 45 | W90: 9 | X90: 19.5 | Y90: 18.5 | Z90: 47 | AA90: 9 | AB90: 15 | AC90: 18 | AD90: 42 | AE90: 8.5 | AF90: 19 | AG90: 13 | AH90: 40.5 | AI90: 9 | AJ90: 18 | AK90: 16 | AL90: 43 | AM90: 8.5 | AN90: 19 | AO90: 13 | AP90: 40.5 | AQ90: 8 | AR90: 15 | AS90: 18 | AT90: 41 | AU90: 5.5 | AV90: 10 | AW90: 11 | AX90: 26.5 | AY90: 7 | AZ90: 15 | BA90: 16 | BB90: 38 | BC90: 3 | BD90: 4 | BE90: 5 | BF90: 6 | BG90: 5 | BH90: 7 | BI90: 13 | BJ90: 17 | BK90: 30 | BL90: 487.8 | BM90: 3.5 | BN90: 7 | BO90: 8 | BP90: 18.5 | BQ90: 3.5 | BR90: 8 | BS90: 7.5 | BT90: 19 | BU90: ناجحة | BV90: ومنقولة للصف الثانى | BW90: 0 | CS90: 196
A91: 84 | B91: 84 | C91: طالب الصف الاول 84 | D91: 2/1 | E91: مستجد | F91: 28 | G91: 8 | H91: 13 | I91: 15 | J91: 36 | K91: 8.4 | L91: 16 | M91: 8.4 | N91: 32.8 | O91: 5.5 | P91: 6.4 | Q91: 9.6 | R91: 21.5 | S91: 9 | T91: 12.5 | U91: 15.5 | V91: 37 | W91: 9 | X91: 18 | Y91: 13 | Z91: 40 | AA91: 9 | AB91: 13 | AC91: 13 | AD91: 35 | AE91: 8.5 | AF91: 19 | AG91: 16 | AH91: 43.5 | AI91: 9 | AJ91: 15.5 | AK91: 14 | AL91: 38.5 | AM91: 8.5 | AN91: 17 | AO91: 16 | AP91: 41.5 | AQ91: 8 | AR91: 18 | AS91: 17 | AT91: 43 | AU91: 3 | AV91: 7.5 | AW91: 9 | AX91: 19.5 | AY91: 7 | AZ91: 14 | BA91: 16 | BB91: 37 | BC91: 3 | BD91: 4 | BE91: 5 | BF91: 5 | BG91: 5 | BH91: 6 | BI91: 13 | BJ91: 15 | BK91: 28 | BL91: 453.3 | BM91: 3.5 | BN91: 4 | BO91: 8 | BP91: 15.5 | BQ91: 3.5 | BR91: 7 | BS91: 7 | BT91: 17.5 | BU91: ناجحة | BV91: ومنقولة للصف الثانى | BW91: 0 | CS91: 179.9
A92: 85 | B92: 85 | C92: طالب الصف الاول 85 | D92: 2/1 | E92: مستجد | F92: 153 | G92: 8 | H92: 11.5 | I92: 11.5 | J92: 31 | K92: 8.3 | L92: 16.4 | M92: 7.6 | N92: 32.3 | O92: 5.5 | P92: 8 | Q92: 8.8 | R92: 22.3 | S92: 8 | T92: 17.5 | U92: 19 | V92: 44.5 | W92: 9 | X92: 18 | Y92: 14 | Z92: 41 | AA92: 9 | AB92: 15 | AC92: 16.5 | AD92: 40.5 | AE92: 9 | AF92: 19 | AG92: 16 | AH92: 44 | AI92: 9 | AJ92: 14.5 | AK92: 14 | AL92: 37.5 | AM92: 9 | AN92: 17 | AO92: 14 | AP92: 40 | AQ92: 8 | AR92: 18 | AS92: 14 | AT92: 40 | AU92: 3 | AV92: 7 | AW92: 10.5 | AX92: 20.5 | AY92: 7 | AZ92: 14 | BA92: 15 | BB92: 36 | BC92: 3 | BD92: 4 | BE92: 5 | BF92: 6 | BG92: 5 | BH92: 6 | BI92: 13 | BJ92: 16 | BK92: 29 | BL92: 458.6 | BM92: 3.5 | BN92: 5.5 | BO92: 8 | BP92: 17 | BQ92: 3.5 | BR92: 7 | BS92: 5.5 | BT92: 16 | BU92: ناجحة | BV92: ومنقولة للصف الثانى | BW92: 0 | CS92: 186.9
A93: 86 | B93: 86 | C93: طالب الصف الاول 86 | D93: 2/1 | E93: مستجد | F93: 154 | G93: 8 | H93: 11 | I93: 13 | J93: 32 | K93: 9 | L93: 14.4 | M93: 8.4 | N93: 31.8 | O93: 4.5 | P93: 6.4 | Q93: 8.8 | R93: 19.7 | S93: 8 | T93: 17 | U93: 18 | V93: 43 | W93: 9 | X93: 18 | Y93: 15 | Z93: 42 | AA93: 9 | AB93: 12 | AC93: 17.5 | AD93: 38.5 | AE93: 9 | AF93: 19 | AG93: 14 | AH93: 42 | AI93: 9 | AJ93: 14.5 | AK93: 13 | AL93: 36.5 | AM93: 9 | AN93: 16 | AO93: 15 | AP93: 40 | AQ93: 8 | AR93: 17 | AS93: 14 | AT93: 39 | AU93: 5.5 | AV93: 7.5 | AW93: 10.5 | AX93: 23.5 | AY93: 7 | AZ93: 13 | BA93: 15 | BB93: 35 | BC93: 2.5 | BD93: 4 | BE93: 5 | BF93: 6 | BG93: 6 | BH93: 6 | BI93: 13.5 | BJ93: 16 | BK93: 29.5 | BL93: 452.5 | BM93: 3.5 | BN93: 5 | BO93: 8 | BP93: 16.5 | BQ93: 3.5 | BR93: 6.5 | BS93: 5.5 | BT93: 15.5 | BU93: ناجحة | BV93: ومنقولة للصف الثانى | BW93: 0 | CS93: 176.8
A94: 87 | B94: 87 | C94: طالب الصف الاول 87 | D94: 2/1 | E94: مستجد | F94: 155 | G94: 8 | H94: 8 | I94: 11 | J94: 27 | K94: 8.5 | L94: 14 | M94: 6.8 | N94: 29.3 | O94: 4.5 | P94: 8 | Q94: 8.4 | R94: 20.9 | S94: 8 | T94: 11 | U94: 11.5 | V94: 30.5 | W94: 9 | X94: 17 | Y94: 10 | Z94: 36 | AA94: 9 | AB94: 10.5 | AC94: 15 | AD94: 34.5 | AE94: 9 | AF94: 19 | AG94: 11 | AH94: 39 | AI94: 8.5 | AJ94: 13.5 | AK94: 15 | AL94: 37 | AM94: 9 | AN94: 17 | AO94: 14 | AP94: 40 | AQ94: 8 | AR94: 17 | AS94: 14 | AT94: 39 | AU94: 3 | AV94: 1.5 | AW94: 10.5 | AX94: 15 | AY94: 7 | AZ94: 14 | BA94: 16 | BB94: 37 | BC94: 2.5 | BD94: 4 | BE94: 6 | BF94: 7 | BG94: 5 | BH94: 5 | BI94: 13.5 | BJ94: 16 | BK94: 29.5 | BL94: 414.7 | BM94: 3.5 | BN94: 3.5 | BO94: 8 | BP94: 15 | BQ94: 3.5 | BR94: 7 | BS94: 5.5 | BT94: 16 | BU94: ناجحة | BV94: ومنقولة للصف الثانى | BW94: 0 | CS94: 163.5
A95: 88 | B95: 88 | C95: طالب الصف الاول 88 | D95: 2/1 | E95: مستجد | F95: 156 | G95: 8.5 | H95: 14 | I95: 14 | J95: 36.5 | K95: 9 | L95: 12.4 | M95: 7.2 | N95: 28.6 | O95: 5.5 | P95: 9.6 | Q95: 9.2 | R95: 24.3 | S95: 8 | T95: 18 | U95: 17 | V95: 43 | W95: 9 | X95: 19 | Y95: 16 | Z95: 44 | AA95: 9 | AB95: 13 | AC95: 17 | AD95: 39 | AE95: 9 | AF95: 17 | AG95: 12 | AH95: 38 | AI95: 8.5 | AJ95: 12 | AK95: 14 | AL95: 34.5 | AM95: 9 | AN95: 18 | AO95: 16 | AP95: 43 | AQ95: 8 | AR95: 18 | AS95: 16 | AT95: 42 | AU95: 5.5 | AV95: 8.5 | AW95: 10.5 | AX95: 24.5 | AY95: 7 | AZ95: 14 | BA95: 16 | BB95: 37 | BC95: 3 | BD95: 4 | BE95: 6 | BF95: 7 | BG95: 5 | BH95: 6 | BI95: 14 | BJ95: 17 | BK95: 31 | BL95: 465.4 | BM95: 3.5 | BN95: 6 | BO95: 8 | BP95: 17.5 | BQ95: 3.5 | BR95: 7 | BS95: 4.5 | BT95: 15 | BU95: ناجحة | BV95: ومنقولة للصف الثانى | BW95: 0 | CS95: 186.5
A96: 89 | B96: 89 | C96: طالب الصف الاول 89 | D96: 2/1 | E96: مستجد | F96: 157 | G96: 9 | H96: 13.5 | I96: 13.5 | J96: 36 | K96: 8 | L96: 13.2 | M96: 9.6 | N96: 30.8 | O96: 4.5 | P96: 8.4 | Q96: 9.6 | R96: 22.5 | S96: 8 | T96: 17 | U96: 16 | V96: 41 | W96: 9 | X96: 16 | Y96: 14 | Z96: 39 | AA96: 9 | AB96: 11.5 | AC96: 13.5 | AD96: 34 | AE96: 9 | AF96: 17 | AG96: 13 | AH96: 39 | AI96: 8.5 | AJ96: 12 | AK96: 14 | AL96: 34.5 | AM96: 9 | AN96: 20 | AO96: 14 | AP96: 43 | AQ96: 8 | AR96: 17 | AS96: 15 | AT96: 40 | AU96: 5.5 | AV96: 1.5 | AW96: 10.5 | AX96: 17.5 | AY96: 7 | AZ96: 15 | BA96: 16 | BB96: 38 | BC96: 3 | BD96: 4.5 | BE96: 5 | BF96: 6 | BG96: 6 | BH96: 5 | BI96: 14 | BJ96: 15.5 | BK96: 29.5 | BL96: 444.8 | BM96: 3.5 | BN96: 8 | BO96: 8 | BP96: 19.5 | BQ96: 3.5 | BR96: 7.5 | BS96: 7 | BT96: 18 | BU96: ناجحة | BV96: ومنقولة للصف الثانى | BW96: 0 | CS96: 173.1
A97: 90 | B97: 90 | C97: طالب الصف الاول 90 | D97: 2/1 | E97: مستجد | F97: 158 | G97: 8 | H97: 11.5 | I97: 13 | J97: 32.5 | K97: 8.5 | L97: 13.2 | M97: 8 | N97: 29.7 | O97: 5 | P97: 8.4 | Q97: 9.6 | R97: 23 | S97: 8 | T97: 16 | U97: 13 | V97: 37 | W97: 9 | X97: 17.5 | Y97: 14.5 | Z97: 41 | AA97: 9 | AB97: 12.5 | AC97: 11 | AD97: 32.5 | AE97: 9 | AF97: 19 | AG97: 10 | AH97: 38 | AI97: 8.5 | AJ97: 17.5 | AK97: 14 | AL97: 40 | AM97: 9 | AN97: 17 | AO97: 12 | AP97: 38 | AQ97: 8 | AR97: 18 | AS97: 16 | AT97: 42 | AU97: 2.5 | AV97: 4.5 | AW97: 10.5 | AX97: 17.5 | AY97: 7 | AZ97: 15 | BA97: 16 | BB97: 38 | BC97: 3 | BD97: 4.5 | BE97: 5 | BF97: 7 | BG97: 5 | BH97: 5 | BI97: 13 | BJ97: 16.5 | BK97: 29.5 | BL97: 438.7 | BM97: 3.5 | BN97: 4 | BO97: 8 | BP97: 15.5 | BQ97: 3.5 | BR97: 6.5 | BS97: 7 | BT97: 17 | BU97: ناجحة | BV97: ومنقولة للصف الثانى | BW97: 0 | CS97: 182.1
A98: 91 | B98: 91 | C98: طالب الصف الاول 91 | D98: 2/1 | E98: مستجد | F98: 159 | G98: 8 | H98: 11 | I98: 14.5 | J98: 33.5 | K98: 8.5 | L98: 16 | M98: 6.4 | N98: 30.9 | O98: 4.5 | P98: 6 | Q98: 8.8 | R98: 19.3 | S98: 8 | T98: 9.5 | U98: 10.5 | V98: 28 | W98: 9 | X98: 11.5 | Y98: 10.5 | Z98: 31 | AA98: 9 | AB98: 5.5 | AC98: 8.5 | AD98: 23 | AE98: 9 | AF98: 17 | AG98: 11 | AH98: 37 | AI98: 8.5 | AJ98: 16 | AK98: 10 | AL98: 34.5 | AM98: 9 | AN98: 17 | AO98: 9 | AP98: 35 | AQ98: 8 | AR98: 18 | AS98: 16 | AT98: 42 | AU98: 2.5 | AV98: 7 | AW98: 8 | AX98: 17.5 | AY98: 7 | AZ98: 15 | BA98: 16 | BB98: 38 | BC98: 3 | BD98: 4.5 | BE98: 6 | BF98: 7 | BG98: 5 | BH98: 5 | BI98: 14 | BJ98: 16.5 | BK98: 30.5 | BL98: 400.2 | BM98: 3.5 | BN98: 3 | BO98: 8 | BP98: 14.5 | BQ98: 3.5 | BR98: 6.5 | BS98: 7 | BT98: 17 | BU98: ناجحة | BV98: ومنقولة للصف الثانى | BW98: 0 | CS98: 162.5
A99: 92 | B99: 92 | C99: طالب الصف الاول 92 | D99: 2/1 | E99: مستجد | F99: 160 | G99: 8 | H99: 13 | I99: 14.5 | J99: 35.5 | K99: 9 | L99: 16 | M99: 6.4 | N99: 31.4 | O99: 4.5 | P99: 8.8 | Q99: 8.8 | R99: 22.1 | S99: 8 | T99: 12.5 | U99: 15 | V99: 35.5 | W99: 9 | X99: 16 | Y99: 11 | Z99: 36 | AA99: 9 | AB99: 12 | AC99: 13 | AD99: 34 | AE99: 9 | AF99: 19 | AG99: 11 | AH99: 39 | AI99: 8.5 | AJ99: 17 | AK99: 13 | AL99: 38.5 | AM99: 9 | AN99: 17 | AO99: 10 | AP99: 36 | AQ99: 8 | AR99: 18 | AS99: 16 | AT99: 42 | AU99: 3 | AV99: 6.5 | AW99: 9.5 | AX99: 19 | AY99: 7 | AZ99: 14 | BA99: 16 | BB99: 37 | BC99: 3 | BD99: 4.5 | BE99: 5 | BF99: 7 | BG99: 6 | BH99: 5 | BI99: 14 | BJ99: 16.5 | BK99: 30.5 | BL99: 436.5 | BM99: 3.5 | BN99: 3 | BO99: 8 | BP99: 14.5 | BQ99: 3.5 | BR99: 6 | BS99: 5.5 | BT99: 15 | BU99: ناجحة | BV99: ومنقولة للصف الثانى | BW99: 0 | CS99: 181.8
A100: 93 | B100: 93 | C100: طالب الصف الاول 93 | D100: 2/1 | E100: مستجد | F100: 161 | G100: 8 | H100: 9 | I100: 11.5 | J100: 28.5 | K100: 9 | L100: 9.6 | M100: 12.8 | N100: 31.4 | O100: 4.5 | P100: 5.2 | Q100: 8.4 | R100: 18.1 | S100: 8 | T100: 4.5 | U100: 12.5 | V100: 25 | W100: 9 | X100: 16 | Y100: 16 | Z100: 41 | AA100: 9 | AB100: 10 | AC100: 7 | AD100: 26 | AE100: 9 | AF100: 17 | AG100: 6 | AH100: 32 | AI100: 9 | AJ100: 8 | AK100: 3 | AL100: 20 | AM100: 9 | AN100: 18 | AO100: 13 | AP100: 40 | AQ100: 8 | AR100: 12 | AS100: 13 | AT100: 33 | AU100: 5.5 | AV100: 5 | AW100: 10 | AX100: 20.5 | AY100: 7 | AZ100: 10 | BA100: 11 | BB100: 28 | BC100: 3 | BD100: 4.5 | BE100: 6 | BF100: 7 | BG100: 6 | BH100: 6 | BI100: 15 | BJ100: 17.5 | BK100: 32.5 | BL100: 376 | BM100: 3.5 | BN100: 4.5 | BO100: 8 | BP100: 16 | BQ100: 3.5 | BR100: 6.5 | BS100: 6 | BT100: 16 | BU100: دورثان | BV100: فى : تسويق - | BW100: 1 | CH100: تسويق - | CS100: 137.3
A101: 94 | B101: 94 | C101: طالب الصف الاول 94 | D101: 2/1 | E101: مستجد | F101: 162 | G101: 8 | H101: 10 | I101: 12.5 | J101: 30.5 | K101: 8.5 | L101: 10 | M101: 12.4 | N101: 30.9 | O101: 4.5 | P101: 4.4 | Q101: 7.2 | R101: 16.1 | S101: 8 | T101: 10 | U101: 9.5 | V101: 27.5 | W101: 9 | X101: 16 | Y101: 14.5 | Z101: 39.5 | AA101: 9 | AB101: 11 | AC101: 6.5 | AD101: 26.5 | AE101: 9 | AF101: 17 | AG101: 9 | AH101: 35 | AI101: 9 | AJ101: 5 | AK101: 4 | AL101: 18 | AM101: 9 | AN101: 19 | AO101: 13 | AP101: 41 | AQ101: 8 | AR101: 10 | AS101: 14 | AT101: 32 | AU101: 3 | AV101: 1.5 | AW101: 8 | AX101: 12.5 | AY101: 7 | AZ101: 10 | BA101: 12 | BB101: 29 | BC101: 2.5 | BD101: 4 | BE101: 5 | BF101: 7 | BG101: 6 | BH101: 6 | BI101: 13.5 | BJ101: 17 | BK101: 30.5 | BL101: 369 | BM101: 3.5 | BN101: 5 | BO101: 8 | BP101: 16.5 | BQ101: 3.5 | BR101: 6 | BS101: 6.5 | BT101: 16 | BU101: دورثان | BV101: فى : تسويق - رياضة عامة - | BW101: 2 | CH101: تسويق - | CK101: رياضة عامة - | CS101: 135.9
A102: 95 | B102: 95 | C102: طالب الصف الاول 95 | D102: 2/1 | E102: مستجد | F102: 163 | G102: 8 | H102: 13.5 | I102: 14 | J102: 35.5 | K102: 8.5 | L102: 10.4 | M102: 14.8 | N102: 33.7 | O102: 4.5 | P102: 5.2 | Q102: 8 | R102: 17.7 | S102: 8 | T102: 9 | U102: 10 | V102: 27 | W102: 9 | X102: 18 | Y102: 14.5 | Z102: 41.5 | AA102: 9 | AB102: 13 | AC102: 8.5 | AD102: 30.5 | AE102: 9 | AF102: 15 | AG102: 10 | AH102: 34 | AI102: 9 | AJ102: 8 | AK102: 8 | AL102: 25 | AM102: 9 | AN102: 19 | AO102: 13 | AP102: 41 | AQ102: 8 | AR102: 15 | AS102: 13 | AT102: 36 | AU102: 5.5 | AV102: 3 | AW102: 10 | AX102: 18.5 | AY102: 7 | AZ102: 11 | BA102: 11 | BB102: 29 | BC102: 2.5 | BD102: 4 | BE102: 5 | BF102: 7 | BG102: 5 | BH102: 7 | BI102: 12.5 | BJ102: 18 | BK102: 30.5 | BL102: 399.9 | BM102: 3.5 | BN102: 5 | BO102: 8 | BP102: 16.5 | BQ102: 3.5 | BR102: 6 | BS102: 7 | BT102: 16.5 | BU102: ناجحة | BV102: ومنقولة للصف الثانى | BW102: 0 | CS102: 152.1
A103: 96 | B103: 96 | C103: طالب الصف الاول 96 | D103: 2/1 | E103: مستجد | F103: 164 | G103: 8 | H103: 12 | I103: 14.5 | J103: 34.5 | K103: 8.5 | L103: 10 | M103: 13.2 | N103: 31.7 | O103: 5 | P103: 4 | Q103: 8 | R103: 17 | S103: 8 | T103: 3 | U103: 9 | V103: 20 | W103: 9 | X103: 15 | Y103: 5.5 | Z103: 29.5 | AA103: 9 | AB103: 8.5 | AC103: 6.5 | AD103: 24 | AE103: 9 | AF103: 15 | AG103: 10 | AH103: 34 | AI103: 8.5 | AJ103: 8 | AK103: 8.5 | AL103: 25 | AM103: 9 | AN103: 19 | AO103: 12 | AP103: 40 | AQ103: 8 | AR103: 16 | AS103: 12 | AT103: 36 | AU103: 5.5 | AV103: 2 | AW103: 9.5 | AX103: 17 | AY103: 7 | AZ103: 11 | BA103: 9 | BB103: 27 | BC103: 2.5 | BD103: 4 | BE103: 5 | BF103: 7 | BG103: 6 | BH103: 6 | BI103: 13.5 | BJ103: 17 | BK103: 30.5 | BL103: 366.2 | BM103: 3.5 | BN103: 5.5 | BO103: 7 | BP103: 16 | BQ103: 3.5 | BR103: 5.5 | BS103: 7 | BT103: 16 | BU103: دورثان | BV103: فى : محاسبة مالية - | BW103: 1 | CD103: محاسبة مالية - | CS103: 135.5
A104: 97 | B104: 97 | C104: طالب الصف الاول 97 | D104: 2/1 | E104: مستجد | F104: 165 | G104: 8 | H104: 12 | I104: 13 | J104: 33 | K104: 9 | L104: 9.2 | M104: 15.6 | N104: 33.8 | O104: 4.5 | P104: 4.8 | Q104: 8.4 | R104: 17.7 | S104: 8 | T104: 4.5 | U104: 14 | V104: 26.5 | W104: 9 | X104: 17 | Y104: 15.5 | Z104: 41.5 | AA104: 9 | AB104: 8 | AC104: 11.5 | AD104: 28.5 | AE104: 9 | AF104: 17 | AG104: 13 | AH104: 39 | AI104: 8.5 | AJ104: 7 | AK104: 10 | AL104: 25.5 | AM104: 9 | AN104: 17 | AO104: 14 | AP104: 40 | AQ104: 8 | AR104: 13 | AS104: 10 | AT104: 31 | AU104: 5.5 | AV104: 2.5 | AW104: 10 | AX104: 18 | AY104: 7 | AZ104: 12 | BA104: 10 | BB104: 29 | BC104: 2.5 | BD104: 4 | BE104: 6 | BF104: 8 | BG104: 5 | BH104: 6 | BI104: 13.5 | BJ104: 18 | BK104: 31.5 | BL104: 395 | BM104: 3.5 | BN104: 3.5 | BO104: 6 | BP104: 13 | BQ104: 3.5 | BR104: 6 | BS104: 6.5 | BT104: 16 | BU104: ناجحة | BV104: ومنقولة للصف الثانى | BW104: 0 | CS104: 138
A105: 98 | B105: 98 | C105: طالب الصف الاول 98 | D105: 2/1 | E105: مستجد | F105: 166 | G105: 8 | H105: 11.5 | I105: 12 | J105: 31.5 | K105: 9 | L105: 10.4 | M105: 14.4 | N105: 33.8 | O105: 4.5 | P105: 4.4 | Q105: 8.4 | R105: 17.3 | S105: 8 | T105: 9.5 | U105: 14.5 | V105: 32 | W105: 9 | X105: 17 | Y105: 13.5 | Z105: 39.5 | AA105: 9 | AB105: 12 | AC105: 7 | AD105: 28 | AE105: 9 | AF105: 17 | AG105: 10 | AH105: 36 | AI105: 9 | AJ105: 7 | AK105: 9 | AL105: 25 | AM105: 9 | AN105: 18 | AO105: 15 | AP105: 42 | AQ105: 8 | AR105: 12 | AS105: 14 | AT105: 34 | AU105: 3 | AV105: 6 | AW105: 10.5 | AX105: 19.5 | AY105: 7 | AZ105: 12 | BA105: 11 | BB105: 30 | BC105: 2.5 | BD105: 4.5 | BE105: 5 | BF105: 8 | BG105: 5 | BH105: 7 | BI105: 12.5 | BJ105: 19.5 | BK105: 32 | BL105: 400.6 | BM105: 3.5 | BN105: 6 | BO105: 6.5 | BP105: 16 | BQ105: 3.5 | BR105: 6 | BS105: 6 | BT105: 15.5 | BU105: ناجحة | BV105: ومنقولة للصف الثانى | BW105: 0 | CS105: 149.8
A106: 99 | B106: 99 | C106: طالب الصف الاول 99 | D106: 2/1 | E106: مستجد | F106: 167 | G106: 8 | H106: 11 | I106: 12.5 | J106: 31.5 | K106: 8.5 | L106: 11.2 | M106: 16.4 | N106: 36.1 | O106: 4.5 | P106: 4.8 | Q106: 8 | R106: 17.3 | S106: 8 | T106: 4.5 | U106: 15.5 | V106: 28 | W106: 9 | X106: 18 | Y106: 14.5 | Z106: 41.5 | AA106: 9 | AB106: 10.5 | AC106: 11 | AD106: 30.5 | AE106: 9 | AF106: 17 | AG106: 10 | AH106: 36 | AI106: 9 | AJ106: 9 | AK106: 7 | AL106: 25 | AM106: 9 | AN106: 18 | AO106: 14 | AP106: 41 | AQ106: 8 | AR106: 13 | AS106: 14 | AT106: 35 | AU106: 3 | AV106: 4.5 | AW106: 10.5 | AX106: 18 | AY106: 7 | AZ106: 12 | BA106: 10 | BB106: 29 | BC106: 2.5 | BD106: 4 | BE106: 5 | BF106: 8 | BG106: 5 | BH106: 7 | BI106: 12.5 | BJ106: 19 | BK106: 31.5 | BL106: 400.4 | BM106: 3.5 | BN106: 5.5 | BO106: 7.5 | BP106: 16.5 | BQ106: 3.5 | BR106: 7 | BS106: 6.5 | BT106: 17 | BU106: ناجحة | BV106: ومنقولة للصف الثانى | BW106: 0 | CS106: 146.5
A107: 100 | B107: 100 | C107: طالب الصف الاول 100 | D107: 2/1 | E107: مستجد | F107: 168 | G107: 8 | H107: 12.5 | I107: 13 | J107: 33.5 | K107: 8.5 | L107: 10.8 | M107: 15.2 | N107: 34.5 | O107: 4.5 | P107: 3.6 | Q107: 8.4 | R107: 16.5 | S107: 8 | T107: 16.5 | U107: 16.5 | V107: 41 | W107: 9 | X107: 19.5 | Y107: 14.5 | Z107: 43 | AA107: 9 | AB107: 17 | AC107: 14 | AD107: 40 | AE107: 9 | AF107: 17 | AG107: 12 | AH107: 38 | AI107: 9 | AJ107: 8 | AK107: 8 | AL107: 25 | AM107: 9 | AN107: 18 | AO107: 14 | AP107: 41 | AQ107: 8 | AR107: 14 | AS107: 16 | AT107: 38 | AU107: 5.5 | AV107: 10.5 | AW107: 9.5 | AX107: 25.5 | AY107: 7 | AZ107: 13 | BA107: 10 | BB107: 30 | BC107: 2.5 | BD107: 4.5 | BE107: 5 | BF107: 8.5 | BG107: 5 | BH107: 8 | BI107: 12.5 | BJ107: 21 | BK107: 33.5 | BL107: 439.5 | BM107: 3.5 | BN107: 5.5 | BO107: 7.5 | BP107: 16.5 | BQ107: 3.5 | BR107: 6 | BS107: 6.5 | BT107: 16 | BU107: ناجحة | BV107: ومنقولة للصف الثانى | BW107: 0 | CS107: 173.9
A108: 101 | B108: 101 | C108: طالب الصف الاول 101 | D108: 2/1 | E108: مستجد | F108: 169 | G108: 8 | H108: 14 | I108: 13.5 | J108: 35.5 | K108: 8.5 | L108: 10.8 | M108: 17.2 | N108: 36.5 | O108: 4.5 | P108: 5.2 | Q108: 8 | R108: 17.7 | S108: 8 | T108: 5 | U108: 13 | V108: 26 | W108: 9 | X108: 18.5 | Y108: 11.5 | Z108: 39 | AA108: 9 | AB108: 10 | AC108: 9 | AD108: 28 | AE108: 9 | AF108: 17 | AG108: 15 | AH108: 41 | AI108: 8.5 | AJ108: 11 | AK108: 12 | AL108: 31.5 | AM108: 9 | AN108: 19 | AO108: 14 | AP108: 42 | AQ108: 8 | AR108: 14 | AS108: 17 | AT108: 39 | AU108: 2.5 | AV108: 6.5 | AW108: 10 | AX108: 19 | AY108: 7 | AZ108: 13 | BA108: 15 | BB108: 35 | BC108: 3 | BD108: 4.5 | BE108: 6 | BF108: 8.5 | BG108: 6 | BH108: 8 | BI108: 15 | BJ108: 21 | BK108: 36 | BL108: 426.2 | BM108: 3.5 | BN108: 4.5 | BO108: 7.5 | BP108: 15.5 | BQ108: 3.5 | BR108: 6 | BS108: 7.5 | BT108: 17 | BU108: ناجحة | BV108: ومنقولة للصف الثانى | BW108: 0 | CS108: 158.5
A109: 102 | B109: 102 | C109: طالب الصف الاول 102 | D109: 2/1 | E109: مستجد | F109: 170 | G109: 8.5 | H109: 16 | I109: 17 | J109: 41.5 | K109: 8.5 | L109: 11.6 | M109: 18 | N109: 38.1 | O109: 4.5 | P109: 6 | Q109: 8 | R109: 18.5 | S109: 8 | T109: 11.5 | U109: 11 | V109: 30.5 | W109: 9 | X109: 19 | Y109: 15.5 | Z109: 43.5 | AA109: 9 | AB109: 16.5 | AC109: 15 | AD109: 40.5 | AE109: 9 | AF109: 17 | AG109: 20 | AH109: 46 | AI109: 9 | AJ109: 11 | AK109: 10 | AL109: 30 | AM109: 9 | AN109: 17 | AO109: 14 | AP109: 40 | AQ109: 8 | AR109: 13 | AS109: 16 | AT109: 37 | AU109: 5.5 | AV109: 4 | AW109: 12 | AX109: 21.5 | AY109: 7 | AZ109: 13 | BA109: 13 | BB109: 33 | BC109: 3 | BD109: 4.5 | BE109: 5 | BF109: 8.5 | BG109: 5 | BH109: 8 | BI109: 13 | BJ109: 21 | BK109: 34 | BL109: 454.1 | BM109: 3.5 | BN109: 5 | BO109: 7.5 | BP109: 16 | BQ109: 3.5 | BR109: 6 | BS109: 7.5 | BT109: 17 | BU109: ناجحة | BV109: ومنقولة للصف الثانى | BW109: 0 | CS109: 169.1
A110: 103 | B110: 103 | C110: طالب الصف الاول 103 | D110: 2/1 | E110: مستجد | F110: 171 | G110: 8 | H110: 15 | I110: 12.5 | J110: 35.5 | K110: 9 | L110: 12 | M110: 16.8 | N110: 37.8 | O110: 4.5 | P110: 4.4 | Q110: 8.4 | R110: 17.3 | S110: 8 | T110: 11.5 | U110: 11.5 | V110: 31 | W110: 9 | X110: 19 | Y110: 12 | Z110: 40 | AA110: 9 | AB110: 16.5 | AC110: 12.5 | AD110: 38 | AE110: 9.5 | AF110: 17 | AG110: 11 | AH110: 37.5 | AI110: 8.5 | AJ110: 11 | AK110: 7 | AL110: 26.5 | AM110: 9 | AN110: 18 | AO110: 15 | AP110: 42 | AQ110: 8 | AR110: 14 | AS110: 14 | AT110: 36 | AU110: 5.5 | AV110: 5 | AW110: 9 | AX110: 19.5 | AY110: 7 | AZ110: 14 | BA110: 13 | BB110: 34 | BC110: 2.5 | BD110: 4.5 | BE110: 6 | BF110: 9 | BG110: 5 | BH110: 8 | BI110: 13.5 | BJ110: 21.5 | BK110: 35 | BL110: 430.1 | BM110: 4 | BN110: 6 | BO110: 7 | BP110: 17 | BQ110: 3.5 | BR110: 6.5 | BS110: 6.5 | BT110: 16.5 | BU110: ناجحة | BV110: ومنقولة للصف الثانى | BW110: 0 | CS110: 172.4
A111: 104 | B111: 104 | C111: طالب الصف الاول 104 | D111: 2/1 | E111: مستجد | F111: 172 | G111: 8 | H111: 15.5 | I111: 15 | J111: 38.5 | K111: 9 | L111: 10.4 | M111: 18.4 | N111: 37.8 | O111: 4.5 | P111: 4.8 | Q111: 8.4 | R111: 17.7 | S111: 8 | T111: 17 | U111: 13.5 | V111: 38.5 | W111: 9 | X111: 19.5 | Y111: 17.5 | Z111: 46 | AA111: 9 | AB111: 16.5 | AC111: 13 | AD111: 38.5 | AE111: 9.5 | AF111: 17 | AG111: 9 | AH111: 35.5 | AI111: 9 | AJ111: 8 | AK111: 8 | AL111: 25 | AM111: 9 | AN111: 18 | AO111: 16 | AP111: 43 | AQ111: 8 | AR111: 8 | AS111: 14 | AT111: 30 | AU111: 5.5 | AV111: 11 | AW111: 9.5 | AX111: 26 | AY111: 7 | AZ111: 14 | BA111: 12 | BB111: 33 | BC111: 2.5 | BD111: 4.5 | BE111: 5 | BF111: 8.5 | BG111: 6 | BH111: 8 | BI111: 13.5 | BJ111: 21 | BK111: 34.5 | BL111: 444 | BM111: 4 | BN111: 5.5 | BO111: 7 | BP111: 16.5 | BQ111: 3.5 | BR111: 6 | BS111: 7.5 | BT111: 17 | BU111: ناجحة | BV111: ومنقولة للصف الثانى | BW111: 0 | CS111: 173.2
A112: 105 | B112: 105 | C112: طالب الصف الاول 105 | D112: 2/1 | E112: مستجد | F112: 173 | G112: 8 | H112: 14 | I112: 14 | J112: 36 | K112: 9 | L112: 10.4 | M112: 10 | N112: 29.4 | O112: 4.5 | P112: 6 | Q112: 8 | R112: 18.5 | S112: 8 | T112: 13 | U112: 13.5 | V112: 34.5 | W112: 9 | X112: 19.5 | Y112: 14 | Z112: 42.5 | AA112: 9 | AB112: 13 | AC112: 9 | AD112: 31 | AE112: 9 | AF112: 17 | AG112: 10 | AH112: 36 | AI112: 8.5 | AJ112: 9 | AK112: 7.5 | AL112: 25 | AM112: 9 | AN112: 18.5 | AO112: 14 | AP112: 41.5 | AQ112: 8 | AR112: 11 | AS112: 13 | AT112: 32 | AU112: 5.5 | AV112: 5 | AW112: 10.5 | AX112: 21 | AY112: 7 | AZ112: 12 | BA112: 9 | BB112: 28 | BC112: 2.5 | BD112: 4.5 | BE112: 6 | BF112: 9 | BG112: 5 | BH112: 8 | BI112: 13.5 | BJ112: 21.5 | BK112: 35 | BL112: 410.4 | BM112: 4 | BN112: 5 | BO112: 8 | BP112: 17 | BQ112: 3.5 | BR112: 6.5 | BS112: 7 | BT112: 17 | BU112: ناجحة | BV112: ومنقولة للصف الثانى | BW112: 0 | CS112: 163.4
A113: 106 | B113: 106 | C113: طالب الصف الاول 106 | D113: 2/1 | E113: مستجد | F113: 174 | G113: 8 | H113: 12.5 | I113: 12.5 | J113: 33 | K113: 8.5 | L113: 8.4 | M113: 9.2 | N113: 26.1 | O113: 4.5 | P113: 6.4 | Q113: 8 | R113: 18.9 | S113: 8 | T113: 0 | U113: 8.5 | V113: 16.5 | W113: 9 | X113: 15 | Y113: 7 | Z113: 31 | AA113: 9 | AB113: 7.5 | AC113: 6 | AD113: 22.5 | AE113: 9 | AF113: 15 | AG113: 10 | AH113: 34 | AI113: 8.5 | AJ113: 7 | AK113: 9.5 | AL113: 25 | AM113: 9 | AN113: 15 | AO113: 15 | AP113: 39 | AQ113: 8 | AR113: 10 | AS113: 14 | AT113: 32 | AU113: 3 | AV113: 0 | AW113: 7.5 | AX113: 10.5 | AY113: 7 | AZ113: 12 | BA113: 11 | BB113: 30 | BC113: 2.5 | BD113: 4.5 | BE113: 5 | BF113: 9 | BG113: 5 | BH113: 8 | BI113: 12.5 | BJ113: 21.5 | BK113: 34 | BL113: 352.5 | BM113: 4 | BN113: 4.5 | BO113: 5.5 | BP113: 14 | BQ113: 3.5 | BR113: 5.5 | BS113: 6.5 | BT113: 15.5 | BU113: دورثان | BV113: فى : محاسبة مالية - رياضة عامة - | BW113: 2 | CD113: محاسبة مالية - | CK113: رياضة عامة - | CS113: 122.8
A114: 107 | B114: 107 | C114: طالب الصف الاول 107 | D114: 2/1 | E114: مستجد | F114: 175 | G114: 8.5 | H114: 15 | I114: 14.5 | J114: 38 | K114: 8.5 | L114: 11.6 | M114: 15.2 | N114: 35.3 | O114: 4.5 | P114: 6.8 | Q114: 8.4 | R114: 19.7 | S114: 8 | T114: 14 | U114: 15 | V114: 37 | W114: 9 | X114: 17.5 | Y114: 15 | Z114: 41.5 | AA114: 9 | AB114: 16.5 | AC114: 10 | AD114: 35.5 | AE114: 9 | AF114: 16 | AG114: 10 | AH114: 35 | AI114: 8.5 | AJ114: 8 | AK114: 4 | AL114: 20.5 | AM114: 9 | AN114: 18 | AO114: 14 | AP114: 41 | AQ114: 8 | AR114: 13 | AS114: 15 | AT114: 36 | AU114: 3 | AV114: 9.5 | AW114: 8 | AX114: 20.5 | AY114: 7 | AZ114: 13 | BA114: 9 | BB114: 29 | BC114: 2.5 | BD114: 4 | BE114: 5 | BF114: 9 | BG114: 5 | BH114: 8 | BI114: 12.5 | BJ114: 21 | BK114: 33.5 | BL114: 422.5 | BM114: 4 | BN114: 4 | BO114: 7.5 | BP114: 15.5 | BQ114: 3.5 | BR114: 6.5 | BS114: 7 | BT114: 17 | BU114: دورثان | BV114: فى : تسويق - | BW114: 1 | CH114: تسويق - | CS114: 172.9
A115: 108 | B115: 108 | C115: طالب الصف الاول 108 | D115: 2/1 | E115: مستجد | F115: 176 | G115: 8 | H115: 14 | I115: 14 | J115: 36 | K115: 8.5 | L115: 11.2 | M115: 14.8 | N115: 34.5 | O115: 5.5 | P115: 8 | Q115: 8 | R115: 21.5 | S115: 8 | T115: 11.5 | U115: 14.5 | V115: 34 | W115: 9 | X115: 18.5 | Y115: 13 | Z115: 40.5 | AA115: 9 | AB115: 15 | AC115: 13.5 | AD115: 37.5 | AE115: 9.5 | AF115: 14 | AG115: 9 | AH115: 32.5 | AI115: 9 | AJ115: 9 | AK115: 10 | AL115: 28 | AM115: 9 | AN115: 18.5 | AO115: 15 | AP115: 42.5 | AQ115: 8 | AR115: 14 | AS115: 15 | AT115: 37 | AU115: 3 | AV115: 6 | AW115: 7 | AX115: 16 | AY115: 7 | AZ115: 12 | BA115: 11 | BB115: 30 | BC115: 3 | BD115: 4.5 | BE115: 5 | BF115: 9 | BG115: 6 | BH115: 8 | BI115: 14 | BJ115: 21.5 | BK115: 35.5 | BL115: 425.5 | BM115: 4 | BN115: 5.5 | BO115: 6.5 | BP115: 16 | BQ115: 3.5 | BR115: 6.5 | BS115: 7 | BT115: 17 | BU115: ناجحة | BV115: ومنقولة للصف الثانى | BW115: 0 | CS115: 165.7
A116: 109 | B116: 109 | C116: طالب الصف الاول 109 | D116: 2/1 | E116: مستجد | F116: 177 | G116: 8 | H116: 13.5 | I116: 14 | J116: 35.5 | K116: 8.5 | L116: 10.4 | M116: 14.8 | N116: 33.7 | O116: 4.5 | P116: 5.6 | Q116: 8.4 | R116: 18.5 | S116: 8 | T116: 9.5 | U116: 13 | V116: 30.5 | W116: 9 | X116: 18 | Y116: 10.5 | Z116: 37.5 | AA116: 9 | AB116: 11 | AC116: 9.5 | AD116: 29.5 | AE116: 9.5 | AF116: 17 | AG116: 7 | AH116: 33.5 | AI116: 9 | AJ116: 7 | AK116: 9 | AL116: 25 | AM116: 9 | AN116: 19 | AO116: 15 | AP116: 43 | AQ116: 8 | AR116: 12 | AS116: 15 | AT116: 35 | AU116: 5.5 | AV116: 6 | AW116: 7 | AX116: 18.5 | AY116: 7 | AZ116: 11 | BA116: 10 | BB116: 28 | BC116: 3 | BD116: 4.5 | BE116: 5 | BF116: 9 | BG116: 5 | BH116: 8 | BI116: 13 | BJ116: 21.5 | BK116: 34.5 | BL116: 402.7 | BM116: 4 | BN116: 4 | BO116: 7 | BP116: 15 | BQ116: 3.5 | BR116: 6 | BS116: 7 | BT116: 16.5 | BU116: ناجحة | BV116: ومنقولة للصف الثانى | BW116: 0 | CS116: 154
A117: 110 | B117: 110 | C117: طالب الصف الاول 110 | D117: 2/1 | E117: مستجد | F117: 178 | G117: 8 | H117: 14.5 | I117: 14.5 | J117: 37 | K117: 8.5 | L117: 10.4 | M117: 14.4 | N117: 33.3 | O117: 4.5 | P117: 5.2 | Q117: 8.4 | R117: 18.1 | S117: 8 | T117: 8 | U117: 14 | V117: 30 | W117: 9 | X117: 18.5 | Y117: 12.5 | Z117: 40 | AA117: 9 | AB117: 11.5 | AC117: 10.5 | AD117: 31 | AE117: 9.5 | AF117: 16 | AG117: 11 | AH117: 36.5 | AI117: 8.5 | AJ117: 6 | AK117: 10.5 | AL117: 25 | AM117: 9 | AN117: 19 | AO117: 15 | AP117: 43 | AQ117: 8 | AR117: 14 | AS117: 16 | AT117: 38 | AU117: 5.5 | AV117: 6.5 | AW117: 5.5 | AX117: 17.5 | AY117: 7 | AZ117: 12 | BA117: 11 | BB117: 30 | BC117: 3 | BD117: 4.5 | BE117: 6 | BF117: 9 | BG117: 6 | BH117: 7 | BI117: 15 | BJ117: 20.5 | BK117: 35.5 | BL117: 414.9 | BM117: 4 | BN117: 4.5 | BO117: 7 | BP117: 15.5 | BQ117: 3.5 | BR117: 6 | BS117: 7 | BT117: 16.5 | BU117: ناجحة | BV117: ومنقولة للصف الثانى | BW117: 0 | CS117: 156.6
A118: 111 | B118: 111 | C118: طالب الصف الاول 111 | D118: 2/1 | E118: مستجد | F118: 179 | G118: 8.5 | H118: 13 | I118: 16.5 | J118: 38 | K118: 8.5 | L118: 10.8 | M118: 17.2 | N118: 36.5 | O118: 4.5 | P118: 7.2 | Q118: 8.4 | R118: 20.1 | S118: 8 | T118: 14 | U118: 12 | V118: 34 | W118: 9 | X118: 16.5 | Y118: 11.5 | Z118: 37 | AA118: 9 | AB118: 16.5 | AC118: 6 | AD118: 31.5 | AE118: 9 | AF118: 15 | AG118: 8 | AH118: 32 | AI118: 9 | AJ118: 11 | AK118: 7 | AL118: 27 | AM118: 9 | AN118: 20 | AO118: 15 | AP118: 44 | AQ118: 8 | AR118: 13 | AS118: 14 | AT118: 35 | AU118: 3 | AV118: 5.5 | AW118: 8.5 | AX118: 17 | AY118: 7 | AZ118: 13 | BA118: 13 | BB118: 33 | BC118: 3 | BD118: 4.5 | BE118: 6 | BF118: 8 | BG118: 5 | BH118: 8 | BI118: 14 | BJ118: 20.5 | BK118: 34.5 | BL118: 419.6 | BM118: 4 | BN118: 5 | BO118: 7 | BP118: 16 | BQ118: 3.5 | BR118: 6 | BS118: 7 | BT118: 16.5 | BU118: ناجحة | BV118: ومنقولة للصف الثانى | BW118: 0 | CS118: 169.5
A119: 112 | B119: 112 | C119: طالب الصف الاول 112 | D119: 2/1 | E119: مستجد | F119: 180 | G119: 8 | H119: 13.5 | I119: 14.5 | J119: 36 | K119: 9 | L119: 11.6 | M119: 16.4 | N119: 37 | O119: 4.5 | P119: 5.6 | Q119: 8.4 | R119: 18.5 | S119: 8 | T119: 13 | U119: 15.5 | V119: 36.5 | W119: 9 | X119: 19.5 | Y119: 13.5 | Z119: 42 | AA119: 9 | AB119: 19.5 | AC119: 14.5 | AD119: 43 | AE119: 9.5 | AF119: 15 | AG119: 10 | AH119: 34.5 | AI119: 7.5 | AJ119: 17 | AK119: 7 | AL119: 31.5 | AM119: 9 | AN119: 18 | AO119: 16 | AP119: 43 | AQ119: 8 | AR119: 17 | AS119: 14 | AT119: 39 | AU119: 5.5 | AV119: 8 | AW119: 9.5 | AX119: 23 | AY119: 7 | AZ119: 13 | BA119: 9 | BB119: 29 | BC119: 3 | BD119: 4.5 | BE119: 6 | BF119: 9 | BG119: 6 | BH119: 8 | BI119: 15 | BJ119: 21.5 | BK119: 36.5 | BL119: 449.5 | BM119: 4 | BN119: 5 | BO119: 7 | BP119: 16 | BQ119: 3.5 | BR119: 6.5 | BS119: 7.5 | BT119: 17.5 | BU119: ناجحة | BV119: ومنقولة للصف الثانى | BW119: 0 | CS119: 185.7
A120: 113 | B120: 113 | C120: طالب الصف الاول 113 | D120: 2/1 | E120: مستجد | F120: 29 | G120: 8.5 | H120: 14 | I120: 13.5 | J120: 36 | K120: 9 | L120: 11.6 | M120: 11.2 | N120: 31.8 | O120: 4.5 | P120: 9.6 | Q120: 8.8 | R120: 22.9 | S120: 8 | T120: 12 | U120: 13.5 | V120: 33.5 | W120: 8.5 | X120: 18 | Y120: 16.5 | Z120: 43 | AA120: 9 | AB120: 15 | AC120: 12 | AD120: 36 | AE120: 9 | AF120: 13 | AG120: 14 | AH120: 36 | AI120: 8 | AJ120: 12 | AK120: 10 | AL120: 30 | AM120: 8 | AN120: 19 | AO120: 19 | AP120: 46 | AQ120: 8 | AR120: 12 | AS120: 16 | AT120: 36 | AU120: 3 | AV120: 6 | AW120: 9.5 | AX120: 18.5 | AY120: 7 | AZ120: 12 | BA120: 16 | BB120: 35 | BC120: 2.5 | BD120: 4 | BE120: 6 | BF120: 8 | BG120: 5 | BH120: 7 | BI120: 13.5 | BJ120: 19 | BK120: 32.5 | BL120: 437.2 | BM120: 4 | BN120: 6.5 | BO120: 8 | BP120: 18.5 | BQ120: 3.5 | BR120: 6 | BS120: 7.5 | BT120: 17 | BU120: ناجحة | BV120: ومنقولة للصف الثانى | BW120: 0 | CS120: 168.2
A121: 114 | B121: 114 | C121: طالب الصف الاول 114 | D121: 2/1 | E121: مستجد | F121: 30 | G121: 8 | H121: 13 | I121: 10.5 | J121: 31.5 | K121: 9 | L121: 9.2 | M121: 12.4 | N121: 30.6 | O121: 4.5 | P121: 9.6 | Q121: 8 | R121: 22.1 | S121: 8 | T121: 13.5 | U121: 13.5 | V121: 35 | W121: 8.5 | X121: 18 | Y121: 17 | Z121: 43.5 | AA121: 9 | AB121: 15 | AC121: 10 | AD121: 34 | AE121: 9.5 | AF121: 16 | AG121: 11 | AH121: 36.5 | AI121: 9 | AJ121: 13.5 | AK121: 8 | AL121: 30.5 | AM121: 8 | AN121: 19 | AO121: 18 | AP121: 45 | AQ121: 8 | AR121: 10 | AS121: 16 | AT121: 34 | AU121: 3 | AV121: 8 | AW121: 8 | AX121: 19 | AY121: 7 | AZ121: 12 | BA121: 15 | BB121: 34 | BC121: 2.5 | BD121: 4 | BE121: 6 | BF121: 8 | BG121: 6 | BH121: 6 | BI121: 14.5 | BJ121: 18 | BK121: 32.5 | BL121: 428.2 | BM121: 4 | BN121: 6 | BO121: 8 | BP121: 18 | BQ121: 3.5 | BR121: 6 | BS121: 7 | BT121: 16.5 | BU121: ناجحة | BV121: ومنقولة للصف الثانى | BW121: 0 | CS121: 170.8
A122: 115 | B122: 115 | C122: طالب الصف الاول 115 | D122: 2/1 | E122: مستجد | F122: 31 | G122: 8 | H122: 15 | I122: 11.5 | J122: 34.5 | K122: 8.5 | L122: 10 | M122: 6 | N122: 24.5 | O122: 4.5 | P122: 9.6 | Q122: 8 | R122: 22.1 | S122: 8 | T122: 13 | U122: 13 | V122: 34 | W122: 9 | X122: 19 | Y122: 16.5 | Z122: 44.5 | AA122: 9 | AB122: 14.5 | AC122: 7.5 | AD122: 31 | AE122: 9.5 | AF122: 16 | AG122: 10 | AH122: 35.5 | AI122: 8.5 | AJ122: 15 | AK122: 8 | AL122: 31.5 | AM122: 8 | AN122: 18 | AO122: 17 | AP122: 43 | AQ122: 8 | AR122: 11 | AS122: 17 | AT122: 36 | AU122: 4 | AV122: 8.5 | AW122: 8 | AX122: 20.5 | AY122: 7 | AZ122: 13 | BA122: 16 | BB122: 36 | BC122: 2.5 | BD122: 4.5 | BE122: 6 | BF122: 7 | BG122: 5 | BH122: 6 | BI122: 13.5 | BJ122: 17.5 | BK122: 31 | BL122: 424.1 | BM122: 4 | BN122: 6.5 | BO122: 7.5 | BP122: 18 | BQ122: 3.5 | BR122: 6 | BS122: 4.5 | BT122: 14 | BU122: ناجحة | BV122: ومنقولة للصف الثانى | BW122: 0 | CS122: 175.6
A123: 116 | B123: 116 | C123: طالب الصف الاول 116 | D123: 2/1 | E123: مستجد | F123: 32 | G123: 8.5 | H123: 13 | I123: 12 | J123: 33.5 | K123: 9 | L123: 8.4 | M123: 6.4 | N123: 23.8 | O123: 4.5 | P123: 8.4 | Q123: 7.6 | R123: 20.5 | S123: 8 | T123: 18.5 | U123: 17 | V123: 43.5 | W123: 9.5 | X123: 19.5 | Y123: 17.5 | Z123: 46.5 | AA123: 9 | AB123: 16 | AC123: 13.5 | AD123: 38.5 | AE123: 9.5 | AF123: غ | AG123: 15.5 | AH123: 25 | AI123: 8.5 | AJ123: 15 | AK123: 10 | AL123: 33.5 | AM123: 8 | AN123: 20 | AO123: 19 | AP123: 47 | AQ123: 8 | AR123: 13 | AS123: 17 | AT123: 38 | AU123: 5.5 | AV123: 11 | AW123: 9.5 | AX123: 26 | AY123: 7 | AZ123: غ | BA123: 16 | BB123: 23 | BC123: 2.5 | BD123: 4 | BE123: 6 | BF123: 9 | BG123: 5 | BH123: 6 | BI123: 13.5 | BJ123: 19 | BK123: 32.5 | BL123: 431.3 | BM123: 4 | BN123: 7 | BO123: 7.5 | BP123: 18.5 | BQ123: 3.5 | BR123: 7 | BS123: 5.5 | BT123: 16 | BU123: ناجحة | BV123: ومنقولة للصف الثانى | BW123: 0 | CS123: 157.8
A124: 117 | B124: 117 | C124: طالب الصف الاول 117 | D124: 2/1 | E124: مستجد | F124: 33 | G124: 8 | H124: 15 | I124: 13 | J124: 36 | K124: 8 | L124: 8.8 | M124: 6.4 | N124: 23.2 | O124: 5.5 | P124: 10.4 | Q124: 8 | R124: 23.9 | S124: 8 | T124: 18 | U124: 16.5 | V124: 42.5 | W124: 9.5 | X124: 18.5 | Y124: 16.5 | Z124: 44.5 | AA124: 9 | AB124: 15.5 | AC124: 11.5 | AD124: 36 | AE124: 9.5 | AF124: 17 | AG124: 10 | AH124: 36.5 | AI124: 8.5 | AJ124: 13 | AK124: 8 | AL124: 29.5 | AM124: 8 | AN124: 20 | AO124: 17 | AP124: 45 | AQ124: 8 | AR124: 11 | AS124: 18 | AT124: 37 | AU124: 3 | AV124: 6.5 | AW124: 8 | AX124: 17.5 | AY124: 7 | AZ124: 12 | BA124: 10 | BB124: 29 | BC124: 2.5 | BD124: 4.5 | BE124: 6 | BF124: 9 | BG124: 6 | BH124: 6 | BI124: 14.5 | BJ124: 19.5 | BK124: 34 | BL124: 434.6 | BM124: 4 | BN124: 7 | BO124: 7.5 | BP124: 18.5 | BQ124: 3.5 | BR124: 7 | BS124: 6.5 | BT124: 17 | BU124: ناجحة | BV124: ومنقولة للصف الثانى | BW124: 0 | CS124: 180.7
A125: 118 | B125: 118 | C125: طالب الصف الاول 118 | D125: 2/1 | E125: مستجد | F125: 34 | G125: 8 | H125: 14 | I125: 14 | J125: 36 | K125: 8.5 | L125: 11.6 | M125: 6.4 | N125: 26.5 | O125: 4.5 | P125: 9.2 | Q125: 7.6 | R125: 21.3 | S125: 8 | T125: 18 | U125: 16.5 | V125: 42.5 | W125: 8.5 | X125: 18.5 | Y125: 17.5 | Z125: 44.5 | AA125: 9 | AB125: 15 | AC125: 11.5 | AD125: 35.5 | AE125: 9.5 | AF125: 16 | AG125: 13 | AH125: 38.5 | AI125: 9 | AJ125: 11.5 | AK125: 9 | AL125: 29.5 | AM125: 8 | AN125: 20 | AO125: 16 | AP125: 44 | AQ125: 8 | AR125: 11 | AS125: 16 | AT125: 35 | AU125: 3 | AV125: 8.5 | AW125: 5 | AX125: 16.5 | AY125: 7 | AZ125: 12 | BA125: 15 | BB125: 34 | BC125: 2.5 | BD125: 4.5 | BE125: 5 | BF125: 9 | BG125: 5 | BH125: 6 | BI125: 12.5 | BJ125: 19.5 | BK125: 32 | BL125: 435.8 | BM125: 4 | BN125: 5 | BO125: 7.5 | BP125: 16.5 | BQ125: 3.5 | BR125: 6.5 | BS125: 5.5 | BT125: 15.5 | BU125: ناجحة | BV125: ومنقولة للصف الثانى | BW125: 0 | CS125: 179.3
A126: 119 | B126: 119 | C126: طالب الصف الاول 119 | D126: 2/1 | E126: مستجد | F126: 35 | G126: 8 | H126: 12.5 | I126: 12.5 | J126: 33 | K126: 7.5 | L126: 8.8 | M126: 2.8 | N126: 19.1 | O126: 4.5 | P126: 8.8 | Q126: 9.2 | R126: 22.5 | S126: 8 | T126: 13.5 | U126: 9.5 | V126: 31 | W126: 8.5 | X126: 17.5 | Y126: 13.5 | Z126: 39.5 | AA126: 9 | AB126: 8.5 | AC126: 6 | AD126: 23.5 | AE126: 9 | AF126: 16 | AG126: 14 | AH126: 39 | AI126: 9 | AJ126: 9.5 | AK126: 9 | AL126: 27.5 | AM126: 8 | AN126: 19 | AO126: 16 | AP126: 43 | AQ126: 8 | AR126: 10 | AS126: 16 | AT126: 34 | AU126: 3 | AV126: 0.5 | AW126: 4.5 | AX126: 8 | AY126: 7 | AZ126: 12 | BA126: 15 | BB126: 34 | BC126: 3 | BD126: 4 | BE126: 6 | BF126: 9 | BG126: 6 | BH126: 6 | BI126: 15 | BJ126: 19 | BK126: 34 | BL126: 388.1 | BM126: 4 | BN126: 5.5 | BO126: 7.5 | BP126: 17 | BQ126: 3.5 | BR126: 6 | BS126: 7 | BT126: 16.5 | BU126: دورثان | BV126: فى : لغة انجليزية - رياضة عامة - | BW126: 2 | CB126: لغة انجليزية - | CK126: رياضة عامة - | CS126: 151.6
A127: 120 | B127: 120 | C127: طالب الصف الاول 120 | D127: 2/1 | E127: مستجد | F127: 36 | G127: 8 | H127: 13.5 | I127: غ | J127: 21.5 | K127: 8.5 | L127: 10 | M127: غ | N127: 18.5 | O127: 4.5 | P127: 8.8 | Q127: غ | R127: 13.3 | S127: 8 | T127: 10.5 | U127: غ | V127: 18.5 | W127: 8.5 | X127: 17.5 | Y127: غ | Z127: 26 | AA127: 9 | AB127: 12.5 | AC127: غ | AD127: 21.5 | AE127: 9 | AF127: 14 | AG127: غ | AH127: 23 | AI127: 8 | AJ127: 15 | AK127: غ | AL127: 23 | AM127: 8 | AN127: 20 | AO127: غ | AP127: 28 | AQ127: 8 | AR127: 9 | AS127: غ | AT127: 17 | AU127: 3 | AV127: 1.5 | AW127: غ | AX127: 4.5 | AY127: 7 | AZ127: 13 | BA127: غ | BB127: 20 | BC127: 2.5 | BD127: 4.5 | BE127: 5 | BF127: 9 | BG127: غ | BH127: غ | BI127: 7.5 | BJ127: 13.5 | BK127: 21 | BL127: 255.8 | BM127: 4 | BN127: 5 | BO127: غ | BP127: 9 | BQ127: 3.5 | BR127: 6 | BS127: غ | BT127: 9.5 | BU127: راسبة | BV127: فى : لغة عربية - لغة انجليزية - لغة فرنسية - محاسبة مالية - سكرتارية عربية - سكرتارية اجنبية - اقتصاد - تسويق - ادارة اعمال - رياضة عامة - جغرافيا - حاسب ألى - مجموع - تربية وطنية - تربية دينية | BW127: 13 | CA127: لغة عربية - | CB127: لغة انجليزية - | CC127: لغة فرنسية - | CD127: محاسبة مالية - | CE127: سكرتارية عربية - | CF127: سكرتارية اجنبية - | CG127: اقتصاد - | CH127: تسويق - | CI127: ادارة اعمال - | CJ127: قانون تجارى - | CK127: رياضة عامة - | CL127: جغرافيا - | CM127: حاسب ألى - | CN127: مجموع - | CO127: تربية وطنية - | CP127: تربية دينية | CS127: 159.3
A128: 121 | B128: 121 | C128: طالب الصف الاول 121 | D128: 2/1 | E128: مستجد | F128: 37 | G128: 8 | H128: 16 | I128: 17.5 | J128: 41.5 | K128: 9 | L128: 12.4 | M128: 14 | N128: 35.4 | O128: 4.5 | P128: 9.6 | Q128: 8.4 | R128: 22.5 | S128: 8 | T128: 11.5 | U128: 16.5 | V128: 36 | W128: 8.5 | X128: 19 | Y128: 18 | Z128: 45.5 | AA128: 9 | AB128: 15 | AC128: 14.5 | AD128: 38.5 | AE128: 9 | AF128: 15 | AG128: 15 | AH128: 39 | AI128: 8.5 | AJ128: 15 | AK128: 14 | AL128: 37.5 | AM128: 8 | AN128: 20 | AO128: 19 | AP128: 47 | AQ128: 8 | AR128: 13 | AS128: 18 | AT128: 39 | AU128: 3 | AV128: 7 | AW128: 8.5 | AX128: 18.5 | AY128: 7 | AZ128: 13 | BA128: 16 | BB128: 36 | BC128: 3 | BD128: 4.5 | BE128: 5 | BF128: 9 | BG128: 6 | BH128: 5 | BI128: 14 | BJ128: 18.5 | BK128: 32.5 | BL128: 468.9 | BM128: 4 | BN128: 7 | BO128: 7.5 | BP128: 18.5 | BQ128: 3.5 | BR128: 6 | BS128: 7.5 | BT128: 17 | BU128: ناجحة | BV128: ومنقولة للصف الثانى | BW128: 0 | CS128: 180.5
A129: 122 | B129: 122 | C129: طالب الصف الاول 122 | D129: 3/1 | E129: مستجد | F129: 38 | G129: 8.5 | H129: 14.5 | I129: 14.5 | J129: 37.5 | K129: 8.5 | L129: 9.2 | M129: 11.2 | N129: 28.9 | O129: 4.5 | P129: 8 | Q129: 8.8 | R129: 21.3 | S129: 8 | T129: 17.5 | U129: 17.5 | V129: 43 | W129: 8.5 | X129: 17.5 | Y129: 16.5 | Z129: 42.5 | AA129: 9 | AB129: 17 | AC129: 14 | AD129: 40 | AE129: 9 | AF129: 18 | AG129: 16 | AH129: 43 | AI129: 9 | AJ129: 14 | AK129: 14 | AL129: 37 | AM129: 8 | AN129: 20 | AO129: 17 | AP129: 45 | AQ129: 8 | AR129: 11 | AS129: 18 | AT129: 37 | AU129: 3 | AV129: 9.5 | AW129: 10.5 | AX129: 23 | AY129: 7 | AZ129: 12 | BA129: 16 | BB129: 35 | BC129: 3 | BD129: 4 | BE129: 5 | BF129: 9 | BG129: 5 | BH129: 7 | BI129: 13 | BJ129: 20 | BK129: 33 | BL129: 466.2 | BM129: 4 | BN129: 7 | BO129: 7.5 | BP129: 18.5 | BQ129: 3.5 | BR129: 6.5 | BS129: 7 | BT129: 17 | BU129: ناجحة | BV129: ومنقولة للصف الثانى | BW129: 0 | CS129: 182.2
A130: 123 | B130: 123 | C130: طالب الصف الاول 123 | D130: 3/1 | E130: مستجد | F130: 39 | G130: 8.5 | H130: 10.5 | I130: 7.5 | J130: 26.5 | K130: 9 | L130: 10 | M130: 5.2 | N130: 24.2 | O130: 4.5 | P130: 8.4 | Q130: 7.2 | R130: 20.1 | S130: 8 | T130: 8 | U130: 10 | V130: 26 | W130: 9 | X130: 17.5 | Y130: 14.5 | Z130: 41 | AA130: 9 | AB130: 9 | AC130: 5 | AD130: 23 | AE130: 9 | AF130: 17 | AG130: 7 | AH130: 33 | AI130: 8.5 | AJ130: 13.5 | AK130: 9 | AL130: 31 | AM130: 8 | AN130: 20 | AO130: 17 | AP130: 45 | AQ130: 8 | AR130: 11 | AS130: 14 | AT130: 33 | AU130: 3 | AV130: 1 | AW130: 6.5 | AX130: 10.5 | AY130: 7 | AZ130: 11 | BA130: 13 | BB130: 31 | BC130: 2.5 | BD130: 4.5 | BE130: 6 | BF130: 9 | BG130: 5 | BH130: 5 | BI130: 13.5 | BJ130: 18.5 | BK130: 32 | BL130: 376.3 | BM130: 3 | BN130: 4.5 | BO130: 6 | BP130: 13.5 | BQ130: 3.5 | BR130: 6.5 | BS130: 4.5 | BT130: 14.5 | BU130: دورثان | BV130: فى : رياضة عامة - | BW130: 1 | CK130: رياضة عامة - | CS130: 151.9
A131: 124 | B131: 124 | C131: طالب الصف الاول 124 | D131: 3/1 | E131: مستجد | F131: 40 | G131: 8.5 | H131: 14.5 | I131: 12.5 | J131: 35.5 | K131: 8.5 | L131: 9.2 | M131: 8 | N131: 25.7 | O131: 4.5 | P131: 8.4 | Q131: 7.6 | R131: 20.5 | S131: 8 | T131: 12.5 | U131: 12 | V131: 32.5 | W131: 9 | X131: 19 | Y131: 17 | Z131: 45 | AA131: 9 | AB131: 16 | AC131: 10 | AD131: 35 | AE131: 9 | AF131: 17 | AG131: 15 | AH131: 41 | AI131: 8 | AJ131: 14 | AK131: 9 | AL131: 31 | AM131: 8 | AN131: 18 | AO131: 17 | AP131: 43 | AQ131: 8 | AR131: 15 | AS131: 17 | AT131: 40 | AU131: 5.5 | AV131: 7.5 | AW131: 9 | AX131: 22 | AY131: 7 | AZ131: 12 | BA131: 15 | BB131: 34 | BC131: 3 | BD131: 4 | BE131: 5 | BF131: 9 | BG131: 5 | BH131: 6 | BI131: 13 | BJ131: 19 | BK131: 32 | BL131: 437.2 | BM131: 3 | BN131: 6 | BO131: 7.5 | BP131: 16.5 | BQ131: 3.5 | BR131: 6.5 | BS131: 6.5 | BT131: 16.5 | BU131: ناجحة | BV131: ومنقولة للصف الثانى | BW131: 0 | CS131: 177.1
A132: 125 | B132: 125 | C132: طالب الصف الاول 125 | D132: 3/1 | E132: مستجد | F132: 41 | G132: 8 | H132: 7.5 | I132: 9.5 | J132: 25 | K132: 8.5 | L132: 6.8 | M132: 5.2 | N132: 20.5 | O132: 4.5 | P132: 8 | Q132: 8 | R132: 20.5 | S132: 8 | T132: 5.5 | U132: 11.5 | V132: 25 | W132: 9 | X132: 17.5 | Y132: 13 | Z132: 39.5 | AA132: 9 | AB132: 9.5 | AC132: 2 | AD132: 20.5 | AE132: 9 | AF132: 17 | AG132: 12 | AH132: 38 | AI132: 8 | AJ132: 10 | AK132: 7 | AL132: 25 | AM132: 8 | AN132: 17.5 | AO132: 15 | AP132: 40.5 | AQ132: 8 | AR132: 10 | AS132: 14 | AT132: 32 | AU132: 3 | AV132: 0.5 | AW132: 7 | AX132: 10.5 | AY132: 7 | AZ132: 9 | BA132: 15 | BB132: 31 | BC132: 2.5 | BD132: 4 | BE132: 5 | BF132: 9 | BG132: 5 | BH132: 6 | BI132: 12.5 | BJ132: 19 | BK132: 31.5 | BL132: 359.5 | BM132: 3 | BN132: 3 | BO132: 7.5 | BP132: 13.5 | BQ132: 3.5 | BR132: 5 | BS132: 4 | BT132: 12.5 | BU132: دورثان | BV132: فى : سكرتارية اجنبية - رياضة عامة - | BW132: 2 | CF132: سكرتارية اجنبية - | CK132: رياضة عامة - | CS132: 132.8
A133: 126 | B133: 126 | C133: طالب الصف الاول 126 | D133: 3/1 | E133: مستجد | F133: 42 | G133: 8 | H133: 10 | I133: 11 | J133: 29 | K133: 7.5 | L133: 7.6 | M133: 8.4 | N133: 23.5 | O133: 4.5 | P133: 9.6 | Q133: 8 | R133: 22.1 | S133: 8 | T133: 11 | U133: 14 | V133: 33 | W133: 8.5 | X133: 19 | Y133: 15 | Z133: 42.5 | AA133: 9 | AB133: 13 | AC133: 5 | AD133: 27 | AE133: 9 | AF133: 16 | AG133: 14 | AH133: 39 | AI133: 8.5 | AJ133: 13 | AK133: 8 | AL133: 29.5 | AM133: 8 | AN133: 18.5 | AO133: 17 | AP133: 43.5 | AQ133: 8 | AR133: 14 | AS133: 16 | AT133: 38 | AU133: 3 | AV133: 5.5 | AW133: 8.5 | AX133: 17 | AY133: 7 | AZ133: 12 | BA133: 16 | BB133: 35 | BC133: 3 | BD133: 4 | BE133: 5 | BF133: 9 | BG133: 5 | BH133: 6 | BI133: 13 | BJ133: 19 | BK133: 32 | BL133: 411.1 | BM133: 3 | BN133: 6 | BO133: 7.5 | BP133: 16.5 | BQ133: 3.5 | BR133: 6.5 | BS133: 6 | BT133: 16 | BU133: ناجحة | BV133: ومنقولة للصف الثانى | BW133: 0 | CS133: 163.2
A134: 127 | B134: 127 | C134: طالب الصف الاول 127 | D134: 3/1 | E134: مستجد | F134: 43 | G134: 8 | H134: 12 | I134: 11 | J134: 31 | K134: 8.5 | L134: 9.2 | M134: 8 | N134: 25.7 | O134: 4.5 | P134: 9.2 | Q134: 8.4 | R134: 22.1 | S134: 8 | T134: 8 | U134: 10.5 | V134: 26.5 | W134: 9 | X134: 17.5 | Y134: 17 | Z134: 43.5 | AA134: 9 | AB134: 11.5 | AC134: 7 | AD134: 27.5 | AE134: 9 | AF134: 17 | AG134: 14 | AH134: 40 | AI134: 8 | AJ134: 12.5 | AK134: 9 | AL134: 29.5 | AM134: 8 | AN134: 17.5 | AO134: 17 | AP134: 42.5 | AQ134: 8 | AR134: 10 | AS134: 14 | AT134: 32 | AU134: 3 | AV134: 3 | AW134: 9 | AX134: 15 | AY134: 7 | AZ134: 10 | BA134: 15 | BB134: 32 | BC134: 3 | BD134: 4 | BE134: 6 | BF134: 9 | BG134: 5 | BH134: 7 | BI134: 14 | BJ134: 20 | BK134: 34 | BL134: 401.3 | BM134: 4 | BN134: 4 | BO134: 7 | BP134: 15 | BQ134: 3.5 | BR134: 6 | BS134: 7 | BT134: 16.5 | BU134: ناجحة | BV134: ومنقولة للصف الثانى | BW134: 0 | CS134: 152.4
A135: 128 | B135: 128 | C135: طالب الصف الاول 128 | D135: 3/1 | E135: مستجد | F135: 44 | G135: 8.5 | H135: 15.5 | I135: 13 | J135: 37 | K135: 8.5 | L135: 9.2 | M135: 11.2 | N135: 28.9 | O135: 4.5 | P135: 8.8 | Q135: 8.4 | R135: 21.7 | S135: 8 | T135: 12.5 | U135: 13 | V135: 33.5 | W135: 9 | X135: 18 | Y135: 14.5 | Z135: 41.5 | AA135: 9 | AB135: 15.5 | AC135: 5.5 | AD135: 30 | AE135: 9 | AF135: 15 | AG135: 14 | AH135: 38 | AI135: 8.5 | AJ135: 13 | AK135: 9 | AL135: 30.5 | AM135: 8 | AN135: 18.5 | AO135: 17 | AP135: 43.5 | AQ135: 8 | AR135: 14 | AS135: 17 | AT135: 39 | AU135: 3 | AV135: 5 | AW135: 8.5 | AX135: 16.5 | AY135: 7 | AZ135: 11 | BA135: 16 | BB135: 34 | BC135: 3 | BD135: 4 | BE135: 6 | BF135: 9 | BG135: 6 | BH135: 7 | BI135: 15 | BJ135: 20 | BK135: 35 | BL135: 429.1 | BM135: 4 | BN135: 5 | BO135: 7.5 | BP135: 16.5 | BQ135: 3.5 | BR135: 6.5 | BS135: 7 | BT135: 17 | BU135: ناجحة | BV135: ومنقولة للصف الثانى | BW135: 0 | CS135: 171
A136: 129 | B136: 129 | C136: طالب الصف الاول 129 | D136: 3/1 | E136: مستجد | F136: 45 | G136: 8.5 | H136: 16 | I136: 11 | J136: =SUM(G136:I136) -> 35.5 | K136: 9 | L136: 10.8 | M136: 8.8 | N136: =SUM(K136:M136) -> 28.6 | O136: 4.5 | P136: 6.8 | Q136: 8.8 | R136: =SUM(O136:Q136) -> 20.1 | S136: 8 | T136: 15 | U136: 12.5 | V136: =SUM(S136:U136) -> 35.5 | W136: 9 | X136: 15.5 | Y136: 17 | Z136: =SUM(W136:Y136) -> 41.5 | AA136: 9 | AB136: 15 | AC136: 9.5 | AD136: =SUM(AA136:AC136) -> 33.5 | AE136: 9 | AF136: 16 | AG136: 14 | AH136: =SUM(AE136:AG136) -> 39 | AI136: 8.5 | AJ136: 14 | AK136: 10 | AL136: =SUM(AI136:AK136) -> 32.5 | AM136: 8 | AN136: 18 | AO136: 17 | AP136: =SUM(AM136:AO136) -> 43 | AQ136: 8 | AR136: 10 | AS136: 18 | AT136: =SUM(AQ136:AS136) -> 36 | AU136: 3 | AV136: 7 | AW136: 9 | AX136: =SUM(AU136:AW136) -> 19 | AY136: 7 | AZ136: 11 | BA136: 16 | BB136: =SUM(AY136:BA136) -> 34 | BC136: 2.5 | BD136: 4.5 | BE136: 4 | BF136: 8 | BG136: 5 | BH136: 6 | BI136: =SUM(BC136,BE136,BG136) -> 11.5 | BJ136: 18.5 | BK136: =SUM(BI136,BJ136) -> 30 | BL136: =SUM(J136,N136,R136,V136,Z136,AD136,AH136,AL136,AP136,AT136,AX136,BB136,BK136) -> 428.2 | BM136: 4 | BN136: 5 | BO136: 7.5 | BP136: =SUM(BM136:BO136) -> 16.5 | BQ136: 3.5 | BR136: 6 | BS136: 7 | BT136: =SUM(BQ136:BS136) -> 16.5 | BU136: =IF(C136="","",IF(BW136=0,"ناجحة",IF(BW136<=2,"دورثان","راسبة"))) -> ناجحة | BV136: =IF(C136="","",IF(BW136=0,"ومنقولة للصف الثانى",IF(BW136>0,"فى : "&CONCATENATE(CA136,CB136,CC136,CD136,CE136,CF136,CG136,CH136,CI136,CK136,CL136,CM136,CN136,CO136,CP136)))) -> ومنقولة للصف الثانى | BW136: 0 | CA136: =IF(C136="","",IF(OR(I136<$I$7,I136="غ",J136<$J$7),CA$3&" - ","")) ->  | CB136: =IF(C136="","",IF(OR(M136<$M$7,M136="غ",N136<$N$7),CB$3&" - ","")) ->  | CC136: =IF(C136="","",IF(OR(Q136<$Q$7,Q136="غ",R136<$R$7),CC$3&" - ","")) ->  | CD136: =IF(C136="","",IF(OR(U136<$U$7,U136="غ",V136<$V$7),CD$3&" - ","")) ->  | CE136: =IF(C136="","",IF(OR(Y136<$Y$7,Y136="غ",Z136<$Z$7),CE$3&" - ","")) ->  | CF136: =IF(C136="","",IF(OR(AC136<$AC$7,AC136="غ",AD136<$AD$7),CF$3&" - ","")) ->  | CG136: =IF(C136="","",IF(OR(AG136<$AG$7,AG136="غ",AH136<$AH$7),CG$3&" - ","")) ->  | CH136: =IF(C136="","",IF(OR(AK136<$AK$7,AK136="غ",AL136<$AL$7),CH$3&" - ","")) ->  | CI136: =IF(C136="","",IF(OR(AO136<$AO$7,AO136="غ",AP136<$AP$7),CI$3&" - ","")) ->  | CJ136: =IF(C136="","",IF(OR(AS136<$AS$7,AS136="غ",AT136<$AT$7),CJ$3&" - ","")) ->  | CK136: =IF(C136="","",IF(OR(AW136<$AW$7,AW136="غ",AX136<$AX$7),CK$3&" - ","")) ->  | CL136: =IF(C136="","",IF(OR(BA136<$BA$7,BA136="غ",BB136<$BB$7),CL$3&" - ","")) ->  | CM136: =IF(C136="","",IF(OR(BG136<$BG$7,BH136<$BH$7,BI136<$BI$7,BI136="غ",BJ136<$BJ$7,BJ136="غ"),CM$3&" - ","")) ->  | CN136: =IF(C136="","",IF(BL136<$BL$7,CN$3&" - ","")) ->  | CO136: =IF(C136="","",IF(OR(BO136<$BO$7,BO136="غ",BP136<$BP$7),CO$3&" - ","")) ->  | CP136: =IF(C136="","",IF(OR(BS136<$BS$7,BS136="غ",BT136<$BT$7),CP$3,"")) ->  | CS136: =IF(C136="","",SUM(H136,L136,P136,T136,X136,AB136,AF136,AJ136,AN136,AR136,AV136,AZ136,BE136,BF136)) -> 167.1
A137: 130 | B137: 130 | C137: طالب الصف الاول 130 | D137: 3/1 | E137: مستجد | F137: 46 | G137: 8.5 | H137: 16.5 | I137: 13 | J137: 38 | K137: 8.5 | L137: 11.6 | M137: 8.4 | N137: 28.5 | O137: 4.5 | P137: 9.2 | Q137: 9.6 | R137: 23.3 | S137: 8 | T137: 16 | U137: 15.5 | V137: 39.5 | W137: 9 | X137: 19 | Y137: 16 | Z137: 44 | AA137: 9 | AB137: 18 | AC137: 11 | AD137: 38 | AE137: 9 | AF137: 17 | AG137: 17 | AH137: 43 | AI137: 9 | AJ137: 17 | AK137: 14 | AL137: 40 | AM137: 8 | AN137: 20 | AO137: 16 | AP137: 44 | AQ137: 8 | AR137: 13 | AS137: 16 | AT137: 37 | AU137: 3 | AV137: 7 | AW137: 10 | AX137: 20 | AY137: 7 | AZ137: 11 | BA137: 15 | BB137: 33 | BC137: 3 | BD137: 4.5 | BE137: 5 | BF137: 9 | BG137: 6 | BH137: 7 | BI137: 14 | BJ137: 20.5 | BK137: 34.5 | BL137: 462.8 | BM137: 4 | BN137: 4.5 | BO137: 8 | BP137: 16.5 | BQ137: 3.5 | BR137: 6 | BS137: 7 | BT137: 16.5 | BU137: ناجحة | BV137: ومنقولة للصف الثانى | BW137: =IF(C137="","",COUNTA(CA137:CM137)-COUNTBLANK(CA137:CM137)) -> 0 | CS137: 189.3
A138: 131 | B138: 131 | C138: طالب الصف الاول 131 | D138: 3/1 | E138: مستجد | F138: 47 | G138: 8.5 | H138: 7.5 | I138: 9 | J138: 25 | K138: 8.5 | L138: 5.2 | M138: 1.6 | N138: 15.3 | O138: 4.5 | P138: 7.2 | Q138: 7.2 | R138: 18.9 | S138: 8 | T138: 9 | U138: 4.5 | V138: 21.5 | W138: 8.5 | X138: 10.5 | Y138: 11 | Z138: 30 | AA138: 9 | AB138: 6.5 | AC138: 1 | AD138: 16.5 | AE138: 9 | AF138: 14 | AG138: 8 | AH138: 31 | AI138: 9 | AJ138: 11.5 | AK138: 18 | AL138: 38.5 | AM138: 8 | AN138: 13.5 | AO138: 15 | AP138: 36.5 | AQ138: 8 | AR138: 8 | AS138: 9 | AT138: 25 | AU138: 3 | AV138: 1 | AW138: 1 | AX138: 5 | AY138: 7 | AZ138: 11 | BA138: 13 | BB138: 31 | BC138: 3 | BD138: 4.5 | BE138: 5 | BF138: 7 | BG138: 6 | BH138: 4 | BI138: 14 | BJ138: 15.5 | BK138: 29.5 | BL138: 323.7 | BM138: 4 | BN138: 2.5 | BO138: 7 | BP138: 13.5 | BQ138: 3.5 | BR138: 5 | BS138: 4.5 | BT138: 13 | BU138: راسبة | BV138: فى : لغة انجليزية - محاسبة مالية - سكرتارية اجنبية - رياضة عامة - | BW138: 4 | CB138: لغة انجليزية - | CD138: محاسبة مالية - | CF138: سكرتارية اجنبية - | CK138: رياضة عامة - | CS138: 116.9
A139: 132 | B139: 132 | C139: طالب الصف الاول 132 | D139: 3/1 | E139: مستجد | F139: 48 | G139: 8 | H139: 14 | I139: 14.5 | J139: 36.5 | K139: 8.5 | L139: 9.2 | M139: 5.2 | N139: 22.9 | O139: 4.5 | P139: 9.6 | Q139: 7.6 | R139: 21.7 | S139: 8 | T139: 12.5 | U139: 17 | V139: 37.5 | W139: 8.5 | X139: 17.5 | Y139: 17 | Z139: 43 | AA139: 9 | AB139: 12.5 | AC139: 11 | AD139: 32.5 | AE139: 9 | AF139: 17 | AG139: 13 | AH139: 39 | AI139: 8.5 | AJ139: 15 | AK139: 14 | AL139: 37.5 | AM139: 8 | AN139: 20 | AO139: 15 | AP139: 43 | AQ139: 8 | AR139: 11 | AS139: 18 | AT139: 37 | AU139: 5.5 | AV139: 1 | AW139: 11 | AX139: 17.5 | AY139: 7 | AZ139: 11 | BA139: 16 | BB139: 34 | BC139: 2.5 | BD139: 4.5 | BE139: 6 | BF139: 9 | BG139: 6 | BH139: 5 | BI139: 14.5 | BJ139: 18.5 | BK139: 33 | BL139: 435.1 | BM139: 4 | BN139: 3 | BO139: 7.5 | BP139: 14.5 | BQ139: 3.5 | BR139: 5 | BS139: 6.5 | BT139: 15 | BU139: ناجحة | BV139: ومنقولة للصف الثانى | BW139: 0 | CS139: 165.3
A140: 133 | B140: 133 | C140: طالب الصف الاول 133 | D140: 3/1 | E140: مستجد | F140: 49 | G140: 8 | H140: 16.5 | I140: 18 | J140: 42.5 | K140: 8.5 | L140: 12.8 | M140: 12 | N140: 33.3 | O140: 4.5 | P140: 7.6 | Q140: 8.8 | R140: 20.9 | S140: 8 | T140: 15 | U140: 18.5 | V140: 41.5 | W140: 8.5 | X140: 17 | Y140: 14.5 | Z140: 40 | AA140: 9 | AB140: 16 | AC140: 9 | AD140: 34 | AE140: 9 | AF140: 18 | AG140: 18 | AH140: 45 | AI140: 9 | AJ140: 18.5 | AK140: 18 | AL140: 45.5 | AM140: 8 | AN140: 19 | AO140: 17 | AP140: 44 | AQ140: 8 | AR140: 19 | AS140: 18 | AT140: 45 | AU140: 3 | AV140: 2 | AW140: 10 | AX140: 15 | AY140: 7 | AZ140: 15 | BA140: 15 | BB140: 37 | BC140: 3 | BD140: 4 | BE140: 5 | BF140: 5 | BG140: 6 | BH140: 7 | BI140: 14 | BJ140: 16 | BK140: 30 | BL140: 473.7 | BM140: 4 | BN140: 7 | BO140: 7 | BP140: 18 | BQ140: 3.5 | BR140: 5 | BS140: 7 | BT140: 15.5 | BU140: ناجحة | BV140: ومنقولة للصف الثانى | BW140: 0 | CS140: 186.4
A141: 134 | B141: 134 | C141: طالب الصف الاول 134 | D141: 3/1 | E141: مستجد | F141: 50 | G141: 8 | H141: 14.5 | I141: 13.5 | J141: 36 | K141: 8.5 | L141: 11.2 | M141: 10 | N141: 29.7 | O141: 4.5 | P141: 8 | Q141: 8.4 | R141: 20.9 | S141: 8 | T141: 12 | U141: 14.5 | V141: 34.5 | W141: 8.5 | X141: 15 | Y141: 14.5 | Z141: 38 | AA141: 9 | AB141: 10 | AC141: 9 | AD141: 28 | AE141: 9 | AF141: 19 | AG141: 18 | AH141: 46 | AI141: 8.5 | AJ141: 17 | AK141: 14 | AL141: 39.5 | AM141: 8 | AN141: 19 | AO141: 18 | AP141: 45 | AQ141: 8 | AR141: 19 | AS141: 18 | AT141: 45 | AU141: 3 | AV141: 3 | AW141: 9 | AX141: 15 | AY141: 7 | AZ141: 14 | BA141: 16 | BB141: 37 | BC141: 2.5 | BD141: 4.5 | BE141: 5 | BF141: 6 | BG141: 6 | BH141: 7 | BI141: 13.5 | BJ141: 17.5 | BK141: 31 | BL141: 445.6 | BM141: 4 | BN141: 7 | BO141: 7.5 | BP141: 18.5 | BQ141: 3.5 | BR141: 6 | BS141: 5 | BT141: 14.5 | BU141: ناجحة | BV141: ومنقولة للصف الثانى | BW141: 0 | CS141: 172.7
A142: 135 | B142: 135 | C142: طالب الصف الاول 135 | D142: 3/1 | E142: مستجد | F142: 51 | G142: 8 | H142: 15.5 | I142: 16.5 | J142: 40 | K142: 8.5 | L142: 13.6 | M142: 13.2 | N142: 35.3 | O142: 4.5 | P142: 8.4 | Q142: 8.8 | R142: 21.7 | S142: 8 | T142: 16.5 | U142: 16 | V142: 40.5 | W142: 8.5 | X142: 17.5 | Y142: 16 | Z142: 42 | AA142: 9 | AB142: 18 | AC142: 12.5 | AD142: 39.5 | AE142: 9 | AF142: 19 | AG142: 17 | AH142: 45 | AI142: 8.5 | AJ142: 19 | AK142: 16 | AL142: 43.5 | AM142: 8 | AN142: 20 | AO142: 19 | AP142: 47 | AQ142: 8 | AR142: 20 | AS142: 18 | AT142: 46 | AU142: 5.5 | AV142: 10 | AW142: 9 | AX142: 24.5 | AY142: 7 | AZ142: 16 | BA142: 16 | BB142: 39 | BC142: 3 | BD142: 4.5 | BE142: 6 | BF142: 6 | BG142: 6 | BH142: 7 | BI142: 15 | BJ142: 17.5 | BK142: 32.5 | BL142: 496.5 | BM142: 4 | BN142: 7 | BO142: 7.5 | BP142: 18.5 | BQ142: 3.5 | BR142: 6 | BS142: 7 | BT142: 16.5 | BU142: ناجحة | BV142: ومنقولة للصف الثانى | BW142: 0 | CS142: 205.5
A143: 136 | B143: 136 | C143: طالب الصف الاول 136 | D143: 3/1 | E143: مستجد | F143: 52 | G143: 8 | H143: 16.5 | I143: 18 | J143: 42.5 | K143: 8.5 | L143: 14 | M143: 12 | N143: 34.5 | O143: 4.5 | P143: 7.6 | Q143: 10 | R143: 22.1 | S143: 8 | T143: 18 | U143: 20 | V143: 46 | W143: 8.5 | X143: 17.5 | Y143: 18 | Z143: 44 | AA143: 9 | AB143: 18 | AC143: 15.5 | AD143: 42.5 | AE143: 9 | AF143: 19 | AG143: 18 | AH143: 46 | AI143: 8.5 | AJ143: 19 | AK143: 17 | AL143: 44.5 | AM143: 8 | AN143: 20 | AO143: 19 | AP143: 47 | AQ143: 8 | AR143: 20 | AS143: 17 | AT143: 45 | AU143: 3 | AV143: 6 | AW143: 9.5 | AX143: 18.5 | AY143: 7 | AZ143: 16 | BA143: 16 | BB143: 39 | BC143: 3 | BD143: 4.5 | BE143: 6 | BF143: 6 | BG143: 5 | BH143: 7 | BI143: 14 | BJ143: 17.5 | BK143: 31.5 | BL143: 503.1 | BM143: 4 | BN143: 6.5 | BO143: 6.5 | BP143: 17 | BQ143: 3.5 | BR143: 5.5 | BS143: 7 | BT143: 16 | BU143: ناجحة | BV143: ومنقولة للصف الثانى | BW143: 0 | CS143: 203.6
A144: 137 | B144: 137 | C144: طالب الصف الاول 137 | D144: 3/1 | E144: مستجد | F144: 53 | G144: 8 | H144: 9.5 | I144: 10 | J144: 27.5 | K144: 8.5 | L144: 14 | M144: 9.2 | N144: 31.7 | O144: 4.5 | P144: 8.4 | Q144: 8.4 | R144: 21.3 | S144: 8 | T144: 12 | U144: 10 | V144: 30 | W144: 9 | X144: 9.5 | Y144: 14 | Z144: 32.5 | AA144: 9 | AB144: 8.5 | AC144: 5 | AD144: 22.5 | AE144: 9 | AF144: 19 | AG144: 15 | AH144: 43 | AI144: 9 | AJ144: 18 | AK144: 7 | AL144: 34 | AM144: 8 | AN144: 18.5 | AO144: 17 | AP144: 43.5 | AQ144: 8 | AR144: 18 | AS144: 17 | AT144: 43 | AU144: 3 | AV144: 5.5 | AW144: 6.5 | AX144: 15 | AY144: 7 | AZ144: 15 | BA144: 14 | BB144: 36 | BC144: 2.5 | BD144: 4 | BE144: 5 | BF144: 6 | BG144: 6 | BH144: 7 | BI144: 13.5 | BJ144: 17 | BK144: 30.5 | BL144: 410.5 | BM144: 4 | BN144: 5.5 | BO144: 6.5 | BP144: 16 | BQ144: 3.5 | BR144: 5.5 | BS144: 6 | BT144: 15 | BU144: ناجحة | BV144: ومنقولة للصف الثانى | BW144: 0 | CS144: 166.9
A145: 138 | B145: 138 | C145: طالب الصف الاول 138 | D145: 3/1 | E145: مستجد | F145: 54 | G145: 8 | H145: 14.5 | I145: 17.5 | J145: 40 | K145: 8.5 | L145: 14 | M145: 12.4 | N145: 34.9 | O145: 5 | P145: 8.8 | Q145: 9.6 | R145: 23.4 | S145: 8 | T145: 16 | U145: 15 | V145: 39 | W145: 9 | X145: 19 | Y145: 14 | Z145: 42 | AA145: 9 | AB145: 17 | AC145: 13.5 | AD145: 39.5 | AE145: 9 | AF145: 19 | AG145: 18 | AH145: 46 | AI145: 9 | AJ145: 18 | AK145: 16 | AL145: 43 | AM145: 8 | AN145: 20 | AO145: 17 | AP145: 45 | AQ145: 8 | AR145: 20 | AS145: 17 | AT145: 45 | AU145: 3 | AV145: 10.5 | AW145: 8.5 | AX145: 22 | AY145: 7 | AZ145: 16 | BA145: 16 | BB145: 39 | BC145: 3 | BD145: 4.5 | BE145: 5 | BF145: 6 | BG145: 6 | BH145: 8 | BI145: 14 | BJ145: 18.5 | BK145: 32.5 | BL145: 491.3 | BM145: 4 | BN145: 7 | BO145: 7 | BP145: 18 | BQ145: 3.5 | BR145: 6.5 | BS145: 7 | BT145: 17 | BU145: ناجحة | BV145: ومنقولة للصف الثانى | BW145: 0 | CS145: 203.8
A146: 139 | B146: 139 | C146: طالب الصف الاول 139 | D146: 3/1 | E146: مستجد | F146: 55 | G146: 8 | H146: 15.5 | I146: 16.5 | J146: 40 | K146: 8.5 | L146: 14.4 | M146: 12.4 | N146: 35.3 | O146: 5 | P146: 8.4 | Q146: 10 | R146: 23.4 | S146: 8 | T146: 17.5 | U146: 17.5 | V146: 43 | W146: 9 | X146: 19.5 | Y146: 17 | Z146: 45.5 | AA146: 9 | AB146: 18.5 | AC146: 18.5 | AD146: 46 | AE146: 9 | AF146: 19 | AG146: 19 | AH146: 47 | AI146: 9 | AJ146: 19 | AK146: 17 | AL146: 45 | AM146: 8 | AN146: 20 | AO146: 19 | AP146: 47 | AQ146: 8 | AR146: 20 | AS146: 17 | AT146: 45 | AU146: 3 | AV146: 8.5 | AW146: 10.5 | AX146: 22 | AY146: 7 | AZ146: 16 | BA146: 16 | BB146: 39 | BC146: 3 | BD146: 4.5 | BE146: 5 | BF146: 6 | BG146: 5 | BH146: 7 | BI146: 13 | BJ146: 17.5 | BK146: 30.5 | BL146: 508.7 | BM146: 4 | BN146: 7.5 | BO146: 7.5 | BP146: 19 | BQ146: 3.5 | BR146: 6 | BS146: 6 | BT146: 15.5 | BU146: ناجحة | BV146: ومنقولة للصف الثانى | BW146: 0 | CS146: 207.3
A147: 140 | B147: 140 | C147: طالب الصف الاول 140 | D147: 3/1 | E147: مستجد | F147: 56 | G147: 8 | H147: 15 | I147: 16.5 | J147: 39.5 | K147: 8.5 | L147: 14.4 | M147: 12 | N147: 34.9 | O147: 4.5 | P147: 10 | Q147: 9.6 | R147: 24.1 | S147: 8 | T147: 18 | U147: 19 | V147: 45 | W147: 9 | X147: 18.5 | Y147: 17 | Z147: 44.5 | AA147: 9 | AB147: 16.5 | AC147: 17 | AD147: 42.5 | AE147: 9 | AF147: 19 | AG147: 18 | AH147: 46 | AI147: 9 | AJ147: 19 | AK147: 19 | AL147: 47 | AM147: 8 | AN147: 20 | AO147: 18 | AP147: 46 | AQ147: 8 | AR147: 20 | AS147: 16 | AT147: 44 | AU147: 3 | AV147: 10 | AW147: 10 | AX147: 23 | AY147: 7 | AZ147: 15 | BA147: 16 | BB147: 38 | BC147: 3 | BD147: 4.5 | BE147: 6 | BF147: 7 | BG147: 6 | BH147: 7 | BI147: 15 | BJ147: 18.5 | BK147: 33.5 | BL147: 508 | BM147: 4 | BN147: 6 | BO147: 8 | BP147: 18 | BQ147: 3.5 | BR147: 5.5 | BS147: 7 | BT147: 16 | BU147: ناجحة | BV147: ومنقولة للصف الثانى | BW147: 0 | CS147: 208.4
A148: 141 | B148: 141 | C148: طالب الصف الاول 141 | D148: 3/1 | E148: مستجد | F148: 181 | G148: 9 | H148: 17 | I148: 15 | J148: 41 | K148: 8.5 | L148: 13.6 | M148: 9.2 | N148: 31.3 | O148: 4.5 | P148: 4.8 | Q148: 7.6 | R148: 16.9 | S148: 8 | T148: 9 | U148: 2 | V148: 19 | W148: 9 | X148: 16 | Y148: 12.5 | Z148: 37.5 | AA148: 9 | AB148: 11 | AC148: 5 | AD148: 25 | AE148: 9 | AF148: 19 | AG148: 18 | AH148: 46 | AI148: 9 | AJ148: 18.5 | AK148: 14 | AL148: 41.5 | AM148: 8 | AN148: 19.5 | AO148: 13 | AP148: 40.5 | AQ148: 8 | AR148: 20 | AS148: 17 | AT148: 45 | AU148: 3.5 | AV148: 3.5 | AW148: 10 | AX148: 17 | AY148: 7 | AZ148: 16 | BA148: 16 | BB148: 39 | BC148: 3 | BD148: 4.5 | BE148: 5 | BF148: 6 | BG148: 6 | BH148: 8 | BI148: 14 | BJ148: 18.5 | BK148: 32.5 | BL148: 432.2 | BM148: 4 | BN148: 6.5 | BO148: 7.5 | BP148: 18 | BQ148: 3.5 | BR148: 6.5 | BS148: 7 | BT148: 17 | BU148: دورثان | BV148: فى : محاسبة مالية - | BW148: 1 | CD148: محاسبة مالية - | CS148: 178.9
A149: 142 | B149: 142 | C149: طالب الصف الاول 142 | D149: 3/1 | E149: مستجد | F149: 182 | G149: 8 | H149: 18 | I149: 17.5 | J149: 43.5 | K149: 8.5 | L149: 14.4 | M149: 11.6 | N149: 34.5 | O149: 4.5 | P149: 8.8 | Q149: 9.2 | R149: 22.5 | S149: 8 | T149: 15.5 | U149: 15 | V149: 38.5 | W149: 8.5 | X149: 17.5 | Y149: 14 | Z149: 40 | AA149: 9 | AB149: 15 | AC149: 15.5 | AD149: 39.5 | AE149: 9 | AF149: 19 | AG149: 18 | AH149: 46 | AI149: 9 | AJ149: 19 | AK149: 16 | AL149: 44 | AM149: 8 | AN149: 19 | AO149: 17 | AP149: 44 | AQ149: 8 | AR149: 20 | AS149: 17 | AT149: 45 | AU149: 3.5 | AV149: 7 | AW149: 10.5 | AX149: 21 | AY149: 7 | AZ149: 16 | BA149: 16 | BB149: 39 | BC149: 3 | BD149: 4.5 | BE149: 5 | BF149: 6 | BG149: 5 | BH149: 9 | BI149: 13 | BJ149: 19.5 | BK149: 32.5 | BL149: 490 | BM149: 4 | BN149: 6.5 | BO149: 7.5 | BP149: 18 | BQ149: 3.5 | BR149: 6 | BS149: 7.5 | BT149: 17 | BU149: ناجحة | BV149: ومنقولة للصف الثانى | BW149: 0 | CS149: 200.2
A150: 143 | B150: 143 | C150: طالب الصف الاول 143 | D150: 3/1 | E150: مستجد | F150: 183 | G150: 8 | H150: 8 | I150: 10.5 | J150: 26.5 | K150: 8.5 | L150: 14.4 | M150: 12 | N150: 34.9 | O150: 4.5 | P150: 7.2 | Q150: 8.8 | R150: 20.5 | S150: 8 | T150: 13.5 | U150: 15.5 | V150: 37 | W150: 9 | X150: 14.5 | Y150: 12.5 | Z150: 36 | AA150: 9 | AB150: 10 | AC150: 11 | AD150: 30 | AE150: 9 | AF150: 16 | AG150: 15 | AH150: 40 | AI150: 9 | AJ150: 18 | AK150: 11 | AL150: 38 | AM150: 8 | AN150: 17 | AO150: 16 | AP150: 41 | AQ150: 8 | AR150: 18 | AS150: 17 | AT150: 43 | AU150: 3 | AV150: 1.5 | AW150: 10.5 | AX150: 15 | AY150: 7 | AZ150: 16 | BA150: 13 | BB150: 36 | BC150: 2.5 | BD150: 4.5 | BE150: 6 | BF150: 6 | BG150: 6 | BH150: 7 | BI150: 14.5 | BJ150: 17.5 | BK150: 32 | BL150: 429.9 | BM150: 4 | BN150: 6.5 | BO150: 7.5 | BP150: 18 | BQ150: 3.5 | BR150: 6 | BS150: 6 | BT150: 15.5 | BU150: ناجحة | BV150: ومنقولة للصف الثانى | BW150: 0 | CS150: 166.1
A151: 144 | B151: 144 | C151: طالب الصف الاول 144 | D151: 3/1 | E151: مستجد | F151: 184 | G151: 9 | H151: 17.5 | I151: 18.5 | J151: 45 | K151: 8.5 | L151: 15.2 | M151: 13.6 | N151: 37.3 | O151: 5 | P151: 8.4 | Q151: 8.8 | R151: 22.2 | S151: 8 | T151: 18.5 | U151: 19 | V151: 45.5 | W151: 9 | X151: 19.5 | Y151: 17.5 | Z151: 46 | AA151: 9 | AB151: 19 | AC151: 17 | AD151: 45 | AE151: 9 | AF151: 19 | AG151: 19 | AH151: 47 | AI151: 9 | AJ151: 19 | AK151: 18 | AL151: 46 | AM151: 8 | AN151: 20 | AO151: 17 | AP151: 45 | AQ151: 8 | AR151: 20 | AS151: 18 | AT151: 46 | AU151: 3.5 | AV151: 10 | AW151: 11.5 | AX151: 25 | AY151: 7 | AZ151: 16 | BA151: 16 | BB151: 39 | BC151: 3 | BD151: 4.5 | BE151: 5 | BF151: 6 | BG151: 5 | BH151: 9 | BI151: 13 | BJ151: 19.5 | BK151: 32.5 | BL151: 521.5 | BM151: 4 | BN151: 7 | BO151: 7.5 | BP151: 18.5 | BQ151: 3.5 | BR151: 6 | BS151: 7 | BT151: 16.5 | BU151: ناجحة | BV151: ومنقولة للصف الثانى | BW151: 0 | CS151: 213.1
A152: 145 | B152: 145 | C152: طالب الصف الاول 145 | D152: 3/1 | E152: مستجد | F152: 185 | G152: 9 | H152: 16 | I152: 19 | J152: 44 | K152: 8.5 | L152: 14.8 | M152: 12.4 | N152: 35.7 | O152: 5 | P152: 8.8 | Q152: 9.6 | R152: 23.4 | S152: 8 | T152: 18.5 | U152: 19 | V152: 45.5 | W152: 9.5 | X152: 19 | Y152: 17.5 | Z152: 46 | AA152: 9 | AB152: 17.5 | AC152: 17.5 | AD152: 44 | AE152: 9 | AF152: 19 | AG152: 15 | AH152: 43 | AI152: 9 | AJ152: 18 | AK152: 17 | AL152: 44 | AM152: 8 | AN152: 18 | AO152: 14 | AP152: 40 | AQ152: 8 | AR152: 20 | AS152: 18 | AT152: 46 | AU152: 5.5 | AV152: 9.5 | AW152: 9.5 | AX152: 24.5 | AY152: 7 | AZ152: 16 | BA152: 16 | BB152: 39 | BC152: 3 | BD152: 4.5 | BE152: 6 | BF152: 6 | BG152: 5 | BH152: 8 | BI152: 14 | BJ152: 18.5 | BK152: 32.5 | BL152: 507.6 | BM152: 4 | BN152: 7 | BO152: 7.5 | BP152: 18.5 | BQ152: 3.5 | BR152: 6 | BS152: 7 | BT152: 16.5 | BU152: ناجحة | BV152: ومنقولة للصف الثانى | BW152: 0 | CS152: 207.1
A153: 146 | B153: 146 | C153: طالب الصف الاول 146 | D153: 3/1 | E153: مستجد | F153: 186 | G153: 8 | H153: 14.5 | I153: 13.5 | J153: 36 | K153: 8.5 | L153: 15.2 | M153: 11.2 | N153: 34.9 | O153: 4.5 | P153: 7.2 | Q153: 9.6 | R153: 21.3 | S153: 8 | T153: 16.5 | U153: 13.5 | V153: 38 | W153: 9 | X153: 18.5 | Y153: 17.5 | Z153: 45 | AA153: 9 | AB153: 15 | AC153: 13 | AD153: 37 | AE153: 9 | AF153: 19 | AG153: 16 | AH153: 44 | AI153: 9 | AJ153: 19 | AK153: 16 | AL153: 44 | AM153: 8 | AN153: 17.5 | AO153: 16 | AP153: 41.5 | AQ153: 8 | AR153: 20 | AS153: 17 | AT153: 45 | AU153: 3 | AV153: 2 | AW153: 10 | AX153: 15 | AY153: 7 | AZ153: 14 | BA153: 16 | BB153: 37 | BC153: 2.5 | BD153: 4.5 | BE153: 6 | BF153: 6 | BG153: 5 | BH153: 9 | BI153: 13.5 | BJ153: 19.5 | BK153: 33 | BL153: 471.7 | BM153: 4 | BN153: 7 | BO153: 7.5 | BP153: 18.5 | BQ153: 3.5 | BR153: 6 | BS153: 7 | BT153: 16.5 | BU153: ناجحة | BV153: ومنقولة للصف الثانى | BW153: 0 | CS153: 190.4
A154: 147 | B154: 147 | C154: طالب الصف الاول 147 | D154: 3/1 | E154: مستجد | F154: 187 | G154: 8.5 | H154: 12.5 | I154: 16.5 | J154: 37.5 | K154: 8.5 | L154: 14.8 | M154: 11.2 | N154: 34.5 | O154: 4.5 | P154: 7.6 | Q154: 8.8 | R154: 20.9 | S154: 8 | T154: 17.5 | U154: 13 | V154: 38.5 | W154: 8.5 | X154: 18 | Y154: 19 | Z154: 45.5 | AA154: 9 | AB154: 16.5 | AC154: 14 | AD154: 39.5 | AE154: 9 | AF154: 19 | AG154: 16 | AH154: 44 | AI154: 9 | AJ154: 19 | AK154: 17 | AL154: 45 | AM154: 8 | AN154: 19 | AO154: 17 | AP154: 44 | AQ154: 8 | AR154: 20 | AS154: 17 | AT154: 45 | AU154: 3 | AV154: 2.5 | AW154: 9.5 | AX154: 15 | AY154: 7 | AZ154: 14 | BA154: 16 | BB154: 37 | BC154: 3 | BD154: 4.5 | BE154: 6 | BF154: 6 | BG154: 6 | BH154: 8 | BI154: 15 | BJ154: 18.5 | BK154: 33.5 | BL154: 479.9 | BM154: 4 | BN154: 7 | BO154: 7.5 | BP154: 18.5 | BQ154: 3.5 | BR154: 5.5 | BS154: 7 | BT154: 16 | BU154: ناجحة | BV154: ومنقولة للصف الثانى | BW154: 0 | CS154: 192.4
A155: 148 | B155: 148 | C155: طالب الصف الاول 148 | D155: 3/1 | E155: مستجد | F155: 188 | G155: 8.5 | H155: 9.5 | I155: 19 | J155: 37 | K155: 8.5 | L155: 14.4 | M155: 10.8 | N155: 33.7 | O155: 4.5 | P155: 6 | Q155: 8.8 | R155: 19.3 | S155: 8 | T155: 16 | U155: 15 | V155: 39 | W155: 9 | X155: 15.5 | Y155: 17 | Z155: 41.5 | AA155: 9 | AB155: 14.5 | AC155: 14 | AD155: 37.5 | AE155: 9 | AF155: 19 | AG155: 16 | AH155: 44 | AI155: 9 | AJ155: 18 | AK155: 15 | AL155: 42 | AM155: 8 | AN155: 18 | AO155: 17 | AP155: 43 | AQ155: 8 | AR155: 19 | AS155: 17 | AT155: 44 | AU155: 3 | AV155: 5 | AW155: 7 | AX155: 15 | AY155: 7 | AZ155: 12 | BA155: 16 | BB155: 35 | BC155: 3 | BD155: 4.5 | BE155: 6 | BF155: 6 | BG155: 5 | BH155: 8 | BI155: 14 | BJ155: 18.5 | BK155: 32.5 | BL155: 463.5 | BM155: 4 | BN155: 7 | BO155: 7.5 | BP155: 18.5 | BQ155: 3.5 | BR155: 5.5 | BS155: 7 | BT155: 16 | BU155: ناجحة | BV155: ومنقولة للصف الثانى | BW155: 0 | CS155: 178.9
A156: 149 | B156: 149 | C156: طالب الصف الاول 149 | D156: 3/1 | E156: مستجد | F156: 189 | G156: 8.5 | H156: 15 | I156: 16.5 | J156: 40 | K156: 8.5 | L156: 15.6 | M156: 11.6 | N156: 35.7 | O156: 4.5 | P156: 6.4 | Q156: 8.8 | R156: 19.7 | S156: 8 | T156: 17 | U156: 17.5 | V156: 42.5 | W156: 9 | X156: 17 | Y156: 16 | Z156: 42 | AA156: 9 | AB156: 13.5 | AC156: 14.5 | AD156: 37 | AE156: 9 | AF156: 19 | AG156: 16 | AH156: 44 | AI156: 9 | AJ156: 18 | AK156: 14 | AL156: 41 | AM156: 8 | AN156: 18 | AO156: 17 | AP156: 43 | AQ156: 8 | AR156: 20 | AS156: 17 | AT156: 45 | AU156: 5.5 | AV156: 9 | AW156: 9 | AX156: 23.5 | AY156: 7 | AZ156: 15 | BA156: 16 | BB156: 38 | BC156: 3 | BD156: 4.5 | BE156: 6 | BF156: 6 | BG156: 5 | BH156: 8 | BI156: 14 | BJ156: 18.5 | BK156: 32.5 | BL156: 483.9 | BM156: 4 | BN156: 7 | BO156: 7.5 | BP156: 18.5 | BQ156: 3.5 | BR156: 6.5 | BS156: 7 | BT156: 17 | BU156: ناجحة | BV156: ومنقولة للصف الثانى | BW156: 0 | CS156: 195.5
A157: 150 | B157: 150 | C157: طالب الصف الاول 150 | D157: 3/1 | E157: مستجد | F157: 190 | G157: 8 | H157: 16 | I157: 15 | J157: 39 | K157: 8.5 | L157: 14.4 | M157: 12.4 | N157: 35.3 | O157: 4.5 | P157: 9.2 | Q157: 10 | R157: 23.7 | S157: 8 | T157: 15.5 | U157: 17 | V157: 40.5 | W157: 9 | X157: 16.5 | Y157: 16.5 | Z157: 42 | AA157: 9 | AB157: 12 | AC157: 15 | AD157: 36 | AE157: 9 | AF157: 19 | AG157: 19 | AH157: 47 | AI157: 9 | AJ157: 19 | AK157: 14 | AL157: 42 | AM157: 8 | AN157: 20 | AO157: 17 | AP157: 45 | AQ157: 8 | AR157: 20 | AS157: 18 | AT157: 46 | AU157: 3 | AV157: 7.5 | AW157: 10 | AX157: 20.5 | AY157: 7 | AZ157: 15 | BA157: 16 | BB157: 38 | BC157: 3 | BD157: 4.5 | BE157: 5 | BF157: 6 | BG157: 6 | BH157: 9 | BI157: 14 | BJ157: 19.5 | BK157: 33.5 | BL157: 488.5 | BM157: 4 | BN157: 7 | BO157: 7.5 | BP157: 18.5 | BQ157: 3.5 | BR157: 6 | BS157: 7.5 | BT157: 17 | BU157: ناجحة | BV157: ومنقولة للصف الثانى | BW157: 0 | CS157: 195.1
A158: 151 | B158: 151 | C158: طالب الصف الاول 151 | D158: 3/1 | E158: مستجد | F158: 191 | G158: 8.5 | H158: 16.5 | I158: 17 | J158: 42 | K158: 8.5 | L158: 14 | M158: 12.4 | N158: 34.9 | O158: 5 | P158: 9.2 | Q158: 10 | R158: 24.2 | S158: 8 | T158: 16.5 | U158: 17.5 | V158: 42 | W158: 9 | X158: 18 | Y158: 17 | Z158: 44 | AA158: 9 | AB158: 18.5 | AC158: 16 | AD158: 43.5 | AE158: 9 | AF158: 19 | AG158: 19 | AH158: 47 | AI158: 9 | AJ158: 19 | AK158: 20 | AL158: 48 | AM158: 8 | AN158: 20 | AO158: 17 | AP158: 45 | AQ158: 8 | AR158: 20 | AS158: 18 | AT158: 46 | AU158: 2.5 | AV158: 9 | AW158: 10 | AX158: 21.5 | AY158: 7 | AZ158: 15 | BA158: 16 | BB158: 38 | BC158: 2.5 | BD158: 4.5 | BE158: 5 | BF158: 6 | BG158: 6 | BH158: 8 | BI158: 13.5 | BJ158: 18.5 | BK158: 32 | BL158: 508.1 | BM158: 4 | BN158: 7 | BO158: 8 | BP158: 19 | BQ158: 3.5 | BR158: 6 | BS158: 7 | BT158: 16.5 | BU158: ناجحة | BV158: ومنقولة للصف الثانى | BW158: 0 | CS158: 205.7
A159: 152 | B159: 152 | C159: طالب الصف الاول 152 | D159: 3/1 | E159: مستجد | F159: 192 | G159: 8.5 | H159: 15.5 | I159: 17 | J159: 41 | K159: 8.5 | L159: 14.8 | M159: 12.8 | N159: 36.1 | O159: 4.5 | P159: 9.6 | Q159: 10.4 | R159: 24.5 | S159: 8 | T159: 16.5 | U159: 16.5 | V159: 41 | W159: 9 | X159: 18 | Y159: 17 | Z159: 44 | AA159: 9 | AB159: 17 | AC159: 14.5 | AD159: 40.5 | AE159: 9 | AF159: 19 | AG159: 14 | AH159: 42 | AI159: 9 | AJ159: 19 | AK159: 18 | AL159: 46 | AM159: 8 | AN159: 20 | AO159: 17 | AP159: 45 | AQ159: 8 | AR159: 20 | AS159: 16 | AT159: 44 | AU159: 5.5 | AV159: 9 | AW159: 10 | AX159: 24.5 | AY159: 7 | AZ159: 13 | BA159: 15 | BB159: 35 | BC159: 3 | BD159: 4.5 | BE159: 7 | BF159: 6 | BG159: 6 | BH159: 8 | BI159: 16 | BJ159: 18.5 | BK159: 34.5 | BL159: 498.1 | BM159: 4 | BN159: 7 | BO159: 8 | BP159: 19 | BQ159: 3.5 | BR159: 6 | BS159: 6.5 | BT159: 16 | BU159: ناجحة | BV159: ومنقولة للصف الثانى | BW159: 0 | CS159: 204.4
A160: 153 | B160: 153 | C160: طالب الصف الاول 153 | E160: عمال | F160: 207 | H160: 9 | I160: 16 | J160: 25 | L160: 18 | M160: 18.5 | N160: 36.5 | P160: 9.5 | Q160: 8 | R160: 17.5 | T160: 10 | U160: 15.5 | V160: 25.5 | X160: 17 | Y160: غ | Z160: 17 | AB160: 11 | AC160: 14.5 | AD160: 25.5 | AF160: 17.5 | AG160: 16.5 | AH160: 34 | AJ160: 23 | AK160: 16.5 | AL160: 39.5 | AN160: 20 | AO160: 16.5 | AP160: 36.5 | AR160: 23.5 | AS160: 17.5 | AT160: 41 | AV160: 6.5 | AW160: 9 | AX160: 15.5 | AZ160: 16.5 | BA160: 19 | BB160: 35.5 | BE160: 7 | BF160: 10 | BG160: 7 | BH160: 7.5 | BI160: 14 | BJ160: 17.5 | BK160: 31.5 | BL160: 380.5 | BN160: 3.5 | BO160: 9 | BP160: 12.5 | BR160: 9.5 | BS160: غ | BT160: 9.5 | BU160: دورثان | BV160: فى : سكرتارية عربية - تربية دينية | BW160: 1 | CE160: سكرتارية عربية - | CP160: تربية دينية | CS160: 198.5
A161: 154 | B161: 154 | C161: طالب الصف الاول 154 | E161: عمال | F161: 193 | H161: 7 | I161: 18 | J161: 25 | L161: 19 | M161: 17.5 | N161: 36.5 | P161: 9 | Q161: 8 | R161: 17 | T161: 12.5 | U161: 12.5 | V161: 25 | X161: 17 | Y161: 8.5 | Z161: 25.5 | AB161: 9 | AC161: 11 | AD161: 20 | AF161: 17.5 | AG161: 14 | AH161: 31.5 | AJ161: 21 | AK161: 16.5 | AL161: 37.5 | AN161: 21.5 | AO161: 15 | AP161: 36.5 | AR161: 20 | AS161: 16.5 | AT161: 36.5 | AV161: 6.5 | AW161: 9 | AX161: 15.5 | AZ161: 16.5 | BA161: 20 | BB161: 36.5 | BE161: 7 | BF161: 10 | BG161: 7 | BH161: 9 | BI161: 14 | BJ161: 19 | BK161: 33 | BL161: 376 | BN161: 3.5 | BO161: 9 | BP161: 12.5 | BR161: 8 | BS161: 8.5 | BT161: 16.5 | BU161: ناجحة | BV161: ومنقولة للصف الثانى | BW161: 0 | CS161: 193.5
A162: 155 | B162: 155 | C162: طالب الصف الاول 155 | E162: عمال | F162: 194 | H162: 13.5 | I162: 14 | J162: 27.5 | L162: 20.5 | M162: 19.5 | N162: 40 | P162: 9 | Q162: 8 | R162: 17 | T162: 17 | U162: 15 | V162: 32 | X162: 19.5 | Y162: 12.5 | Z162: 32 | AB162: 7.5 | AC162: 14.5 | AD162: 22 | AF162: 17.5 | AG162: 17.5 | AH162: 35 | AJ162: 21 | AK162: 16.5 | AL162: 37.5 | AN162: 17.5 | AO162: 16.5 | AP162: 34 | AR162: 23.5 | AS162: 19 | AT162: 42.5 | AV162: 5.5 | AW162: 10 | AX162: 15.5 | AZ162: 16.5 | BA162: 17.5 | BB162: 34 | BE162: 7 | BF162: 10 | BG162: 7 | BH162: 9 | BI162: 14 | BJ162: 19 | BK162: 33 | BL162: 402 | BN162: 6.5 | BO162: 7.5 | BP162: 14 | BR162: 9 | BS162: 9 | BT162: 18 | BU162: ناجحة | BV162: ومنقولة للصف الثانى | BW162: 0 | CS162: 205.5
A163: 156 | B163: 156 | C163: طالب الصف الاول 156 | E163: عمال | F163: 195 | H163: 17.5 | I163: 13 | J163: 30.5 | L163: 19.5 | M163: 19.5 | N163: 39 | P163: 8.5 | Q163: 9 | R163: 17.5 | T163: 17 | U163: 16.5 | V163: 33.5 | X163: 20 | Y163: 12.5 | Z163: 32.5 | AB163: 12.5 | AC163: 9.5 | AD163: 22 | AF163: 20 | AG163: 17.5 | AH163: 37.5 | AJ163: 20 | AK163: 17.5 | AL163: 37.5 | AN163: 21.5 | AO163: 19 | AP163: 40.5 | AR163: 23.5 | AS163: 20 | AT163: 43.5 | AV163: 5 | AW163: 10 | AX163: 15 | AZ163: 17.5 | BA163: 20 | BB163: 37.5 | BE163: 7 | BF163: 10 | BG163: 7 | BH163: 9 | BI163: 14 | BJ163: 19 | BK163: 33 | BL163: 419.5 | BN163: 9 | BO163: 7 | BP163: 16 | BR163: 9.5 | BS163: 8.5 | BT163: 18 | BU163: ناجحة | BV163: ومنقولة للصف الثانى | BW163: 0 | CS163: 219.5
A164: 157 | B164: 157 | C164: طالب الصف الاول 157 | E164: عمال | F164: 196 | H164: 12.5 | I164: 12.5 | J164: 25 | L164: 17.5 | M164: 19.5 | N164: 37 | P164: 9.5 | Q164: 8.5 | R164: 18 | T164: 17.5 | U164: 16.5 | V164: 34 | X164: 19.5 | Y164: 14 | Z164: 33.5 | AB164: 11 | AC164: 14.5 | AD164: 25.5 | AF164: 17.5 | AG164: 19 | AH164: 36.5 | AJ164: 21.5 | AK164: 16.5 | AL164: 38 | AN164: 21.5 | AO164: 19 | AP164: 40.5 | AR164: 23.5 | AS164: 19 | AT164: 42.5 | AV164: 7 | AW164: 9.5 | AX164: 16.5 | AZ164: 17.5 | BA164: 16.5 | BB164: 34 | BE164: 7 | BF164: 10 | BG164: 7 | BH164: 9 | BI164: 14 | BJ164: 19 | BK164: 33 | BL164: 414 | BN164: 5 | BO164: 9 | BP164: 14 | BR164: 9.5 | BS164: 8.5 | BT164: 18 | BU164: ناجحة | BV164: ومنقولة للصف الثانى | BW164: 0 | CS164: 213
A165: 158 | B165: 158 | C165: طالب الصف الاول 158 | E165: عمال | F165: 197 | H165: 17.5 | I165: 17.5 | J165: 35 | L165: 18 | M165: 19.5 | N165: 37.5 | P165: 9.5 | Q165: 9 | R165: 18.5 | T165: 13.5 | U165: 17.5 | V165: 31 | X165: 21 | Y165: 12.5 | Z165: 33.5 | AB165: 9.5 | AC165: 10.5 | AD165: 20 | AF165: 17.5 | AG165: 17.5 | AH165: 35 | AJ165: 21 | AK165: 17.5 | AL165: 38.5 | AN165: 21.5 | AO165: 19 | AP165: 40.5 | AR165: 22.5 | AS165: 21 | AT165: 43.5 | AV165: 4.5 | AW165: 7 | AX165: 11.5 | AZ165: 17.5 | BA165: 20 | BB165: 37.5 | BE165: 8 | BF165: 10 | BG165: 7 | BH165: 9 | BI165: 15 | BJ165: 19 | BK165: 34 | BL165: 416 | BN165: 9 | BO165: 7 | BP165: 16 | BR165: 7.5 | BS165: 9 | BT165: 16.5 | BU165: دورثان | BV165: فى : رياضة عامة - | BW165: 1 | CK165: رياضة عامة - | CS165: 211.5
A166: 159 | B166: 159 | C166: طالب الصف الاول 159 | E166: عمال | F166: 198 | H166: 9.5 | I166: 15.5 | J166: 25 | L166: 20 | M166: 18 | N166: 38 | P166: 9 | Q166: 8 | R166: 17 | T166: 12 | U166: 17.5 | V166: 29.5 | X166: 16.5 | Y166: 13.5 | Z166: 30 | AB166: 10.5 | AC166: 10.5 | AD166: 21 | AF166: 17.5 | AG166: 16.5 | AH166: 34 | AJ166: 21.5 | AK166: 16.5 | AL166: 38 | AN166: 21.5 | AO166: 19 | AP166: 40.5 | AR166: 23.5 | AS166: 20 | AT166: 43.5 | AV166: 6.5 | AW166: 9 | AX166: 15.5 | AZ166: 17.5 | BA166: 19 | BB166: 36.5 | BE166: 7 | BF166: 10 | BG166: 7 | BH166: 9 | BI166: 14 | BJ166: 19 | BK166: 33 | BL166: 401.5 | BN166: غ | BO166: 10 | BP166: 10 | BR166: 7 | BS166: 9 | BT166: 16 | BU166: ناجحة | BV166: ومنقولة للصف الثانى | BW166: 0 | CS166: 202.5
A167: 160 | B167: 160 | C167: طالب الصف الاول 160 | E167: عمال | F167: 199 | H167: 4.5 | I167: غ | J167: 4.5 | L167: 20 | M167: 17 | N167: 37 | P167: 9 | Q167: 10.5 | R167: 19.5 | T167: 12.5 | U167: 17 | V167: 29.5 | X167: 19 | Y167: 12.5 | Z167: 31.5 | AB167: 10 | AC167: 10.5 | AD167: 20.5 | AF167: 20 | AG167: 15 | AH167: 35 | AJ167: 22.5 | AK167: 14 | AL167: 36.5 | AN167: 19 | AO167: 19 | AP167: 38 | AR167: 23.5 | AS167: 20 | AT167: 43.5 | AV167: 7 | AW167: 8.5 | AX167: 15.5 | AZ167: 16.5 | BA167: 20 | BB167: 36.5 | BE167: 7 | BF167: 10 | BG167: 7 | BH167: 9 | BI167: 14 | BJ167: 19 | BK167: 33 | BL167: 380.5 | BN167: 8 | BO167: غ | BP167: 8 | BR167: 8 | BS167: 8 | BT167: 16 | BU167: دورثان | BV167: فى : لغة عربية - تربية وطنية - | BW167: 1 | CA167: لغة عربية - | CO167: تربية وطنية - | CS167: 200.5
A168: 161 | B168: 161 | C168: طالب الصف الاول 161 | E168: عمال | F168: 200 | H168: 13.5 | I168: 12.5 | J168: 26 | L168: 16.5 | M168: 16.5 | N168: 33 | P168: 8.5 | Q168: 9 | R168: 17.5 | T168: 15.5 | U168: 17 | V168: 32.5 | X168: 19.5 | Y168: 13.5 | Z168: 33 | AB168: 9.5 | AC168: 14 | AD168: 23.5 | AF168: 20 | AG168: 17.5 | AH168: 37.5 | AJ168: 20 | AK168: 17.5 | AL168: 37.5 | AN168: 17.5 | AO168: 19 | AP168: 36.5 | AR168: 23.5 | AS168: 20 | AT168: 43.5 | AV168: 4 | AW168: 11.5 | AX168: 15.5 | AZ168: 17.5 | BA168: 19 | BB168: 36.5 | BE168: 7 | BF168: 10 | BG168: 7 | BH168: 9 | BI168: 14 | BJ168: 19 | BK168: 33 | BL168: 405.5 | BN168: 7.5 | BO168: 7.5 | BP168: 15 | BR168: 7.5 | BS168: 9 | BT168: 16.5 | BU168: ناجحة | BV168: ومنقولة للصف الثانى | BW168: 0 | CS168: 202.5
A169: 162 | B169: 162 | C169: طالب الصف الاول 162 | E169: عمال | F169: 201 | H169: 11 | I169: 14 | J169: 25 | L169: 19.5 | M169: 20 | N169: 39.5 | P169: 9.5 | Q169: 7.5 | R169: 17 | T169: 13.5 | U169: 14 | V169: 27.5 | X169: 17.5 | Y169: 12 | Z169: 29.5 | AB169: 13 | AC169: 14 | AD169: 27 | AF169: 15 | AG169: 16.5 | AH169: 31.5 | AJ169: 21.5 | AK169: 17.5 | AL169: 39 | AN169: 21.5 | AO169: 17.5 | AP169: 39 | AR169: 22.5 | AS169: 17.5 | AT169: 40 | AV169: 7.5 | AW169: 9 | AX169: 16.5 | AZ169: 17.5 | BA169: 19 | BB169: 36.5 | BE169: 7 | BF169: 10 | BG169: 7 | BH169: 9 | BI169: 14 | BJ169: 19 | BK169: 33 | BL169: 401 | BN169: 3 | BO169: 9 | BP169: 12 | BR169: 9.5 | BS169: 9 | BT169: 18.5 | BU169: ناجحة | BV169: ومنقولة للصف الثانى | BW169: 0 | CS169: 206.5
A170: 163 | B170: 163 | C170: طالب الصف الاول 163 | E170: عمال | F170: 202 | H170: 4.5 | I170: 20.5 | J170: 25 | L170: 16 | M170: 18.5 | N170: 34.5 | P170: 8.5 | Q170: 7.5 | R170: 16 | T170: 9 | U170: 16 | V170: 25 | X170: 15 | Y170: 12 | Z170: 27 | AB170: 9.5 | AC170: 10.5 | AD170: 20 | AF170: 20 | AG170: 17.5 | AH170: 37.5 | AJ170: 19 | AK170: 15 | AL170: 34 | AN170: 20 | AO170: 19 | AP170: 39 | AR170: 23.5 | AS170: 20 | AT170: 43.5 | AV170: 5.5 | AW170: 10 | AX170: 15.5 | AZ170: 17.5 | BA170: 17.5 | BB170: 35 | BE170: 8 | BF170: 9 | BG170: 7 | BH170: 7.5 | BI170: 15 | BJ170: 16.5 | BK170: 31.5 | BL170: 383.5 | BN170: 6.5 | BO170: 9 | BP170: 15.5 | BR170: 9 | BS170: 7 | BT170: 16 | BU170: ناجحة | BV170: ومنقولة للصف الثانى | BW170: 0 | CS170: 185
A171: 164 | B171: 164 | C171: طالب الصف الاول 164 | E171: عمال | F171: 203 | H171: 12 | I171: 14.5 | J171: 26.5 | L171: 17 | M171: 18.5 | N171: 35.5 | P171: 9 | Q171: 8.5 | R171: 17.5 | T171: 12 | U171: 17.5 | V171: 29.5 | X171: 17 | Y171: 12.5 | Z171: 29.5 | AB171: 11 | AC171: 13 | AD171: 24 | AF171: 15 | AG171: 17.5 | AH171: 32.5 | AJ171: 22 | AK171: 16.5 | AL171: 38.5 | AN171: 21.5 | AO171: 19 | AP171: 40.5 | AR171: 21.5 | AS171: 19 | AT171: 40.5 | AV171: 4.5 | AW171: 10.5 | AX171: 15 | AZ171: 17.5 | BA171: 20 | BB171: 37.5 | BE171: 8 | BF171: 9 | BG171: 7 | BH171: 9 | BI171: 15 | BJ171: 18 | BK171: 33 | BL171: 400 | BN171: 7 | BO171: 7 | BP171: 14 | BR171: 9.5 | BS171: 8.5 | BT171: 18 | BU171: ناجحة | BV171: ومنقولة للصف الثانى | BW171: 0 | CS171: 197
A172: 165 | B172: 165 | C172: طالب الصف الاول 165 | E172: عمال | F172: 204 | H172: 14.5 | I172: 15.5 | J172: 30 | L172: 17.5 | M172: 19 | N172: 36.5 | P172: 9.5 | Q172: 7.5 | R172: 17 | T172: 17.5 | U172: 17.5 | V172: 35 | X172: 19.5 | Y172: 13 | Z172: 32.5 | AB172: 10 | AC172: 11.5 | AD172: 21.5 | AF172: 17.5 | AG172: 17.5 | AH172: 35 | AJ172: 20 | AK172: 17.5 | AL172: 37.5 | AN172: 21.5 | AO172: 17.5 | AP172: 39 | AR172: 23.5 | AS172: 17.5 | AT172: 41 | AV172: 5.5 | AW172: 9.5 | AX172: 15 | AZ172: 16.5 | BA172: 19 | BB172: 35.5 | BE172: 7 | BF172: 10 | BG172: 7 | BH172: 9 | BI172: 14 | BJ172: 19 | BK172: 33 | BL172: 408.5 | BN172: 7 | BO172: 9 | BP172: 16 | BR172: 9.5 | BS172: 8.5 | BT172: 18 | BU172: ناجحة | BV172: ومنقولة للصف الثانى | BW172: 0 | CS172: 210
A173: 166 | B173: 166 | C173: طالب الصف الاول 166 | E173: عمال | F173: 205 | H173: 12.5 | I173: 12.5 | J173: 25 | L173: 18.5 | M173: 17.5 | N173: 36 | P173: 9 | Q173: 8.5 | R173: 17.5 | T173: 17 | U173: 15 | V173: 32 | X173: 21 | Y173: 12.5 | Z173: 33.5 | AB173: 11 | AC173: 15.5 | AD173: 26.5 | AF173: 20 | AG173: 17.5 | AH173: 37.5 | AJ173: 20.5 | AK173: 12.5 | AL173: 33 | AN173: 21.5 | AO173: 17.5 | AP173: 39 | AR173: 21.5 | AS173: 21 | AT173: 42.5 | AV173: 7 | AW173: 9 | AX173: 16 | AZ173: 16.5 | BA173: 19 | BB173: 35.5 | BE173: 7 | BF173: 10 | BG173: 7 | BH173: 9 | BI173: 14 | BJ173: 19 | BK173: 33 | BL173: 407 | BN173: 9 | BO173: 9 | BP173: 18 | BR173: 9.5 | BS173: 8.5 | BT173: 18 | BU173: ناجحة | BV173: ومنقولة للصف الثانى | BW173: 0 | CS173: 213
A174: 167 | B174: 167 | C174: طالب الصف الاول 167 | E174: عمال | F174: 206 | H174: 12.5 | I174: 12.5 | J174: 25 | L174: 16 | M174: 17 | N174: 33 | P174: 9 | Q174: 7 | R174: 16 | T174: 19.5 | U174: 14 | V174: 33.5 | X174: 18 | Y174: 11.5 | Z174: 29.5 | AB174: 9.5 | AC174: 10.5 | AD174: 20 | AF174: 17.5 | AG174: 12.5 | AH174: 30 | AJ174: 17 | AK174: 16.5 | AL174: 33.5 | AN174: 20 | AO174: 16.5 | AP174: 36.5 | AR174: 22.5 | AS174: 20 | AT174: 42.5 | AV174: 7.5 | AW174: 7.5 | AX174: 15 | AZ174: 17.5 | BA174: 12.5 | BB174: 30 | BE174: 7 | BF174: 10 | BG174: 7 | BH174: 9 | BI174: 14 | BJ174: 19 | BK174: 33 | BL174: 377.5 | BN174: 4 | BO174: 9 | BP174: 13 | BR174: 8 | BS174: 8.5 | BT174: 16.5 | BU174: ناجحة | BV174: ومنقولة للصف الثانى | BW174: 0 | CS174: 203.5
A175: 168 | B175: 168 | C175: طالب الصف الاول 168 | E175: عمال | F175: 85 | H175: 12 | I175: 15 | J175: 27 | L175: 20.5 | M175: 18.5 | N175: 39 | P175: 9 | Q175: 9 | R175: 18 | T175: 17 | U175: 13.5 | V175: 30.5 | X175: 17.5 | Y175: 12.5 | Z175: 30 | AB175: 11.5 | AC175: 9 | AD175: 20.5 | AF175: 20 | AG175: 17.5 | AH175: 37.5 | AJ175: 16.5 | AK175: 19 | AL175: 35.5 | AN175: 21.5 | AO175: 20 | AP175: 41.5 | AR175: 21.5 | AS175: 20 | AT175: 41.5 | AV175: 6.5 | AW175: 10 | AX175: 16.5 | AZ175: 16.5 | BA175: 20 | BB175: 36.5 | BE175: 8 | BF175: 10 | BG175: 8 | BH175: 9 | BI175: 16 | BJ175: 19 | BK175: 35 | BL175: 409 | BN175: 9 | BO175: 9 | BP175: 18 | BR175: 9 | BS175: 9 | BT175: 18 | BU175: ناجحة | BV175: ومنقولة للصف الثانى | BW175: 0 | CS175: 208
A176: 169 | B176: 169 | C176: طالب الصف الاول 169 | E176: عمال | F176: 86 | H176: 7 | I176: 18 | J176: 25 | L176: 18 | M176: 18 | N176: 36 | P176: 9 | Q176: 10.5 | R176: 19.5 | T176: 11 | U176: 16 | V176: 27 | X176: 18 | Y176: 12.5 | Z176: 30.5 | AB176: 8.5 | AC176: 12 | AD176: 20.5 | AF176: 19.5 | AG176: 15 | AH176: 34.5 | AJ176: 22.5 | AK176: 14 | AL176: 36.5 | AN176: 21.5 | AO176: 19 | AP176: 40.5 | AR176: 18.5 | AS176: 20 | AT176: 38.5 | AV176: 7 | AW176: 10 | AX176: 17 | AZ176: 16.5 | BA176: 16.5 | BB176: 33 | BE176: 7 | BF176: 10 | BG176: 7 | BH176: 7.5 | BI176: 14 | BJ176: 17.5 | BK176: 31.5 | BL176: 390 | BN176: 5.5 | BO176: 6 | BP176: 11.5 | BR176: 9 | BS176: 5 | BT176: 14 | BU176: ناجحة | BV176: ومنقولة للصف الثانى | BW176: 0 | CS176: 194
A177: 170 | B177: 170 | C177: طالب الصف الاول 170 | E177: عمال | F177: 87 | H177: 17.5 | I177: 17.5 | J177: 35 | L177: 18.5 | M177: 19 | N177: 37.5 | P177: 9 | Q177: 8.5 | R177: 17.5 | T177: 20 | U177: 16 | V177: 36 | X177: 18 | Y177: 14.5 | Z177: 32.5 | AB177: 11.5 | AC177: 15 | AD177: 26.5 | AF177: 20 | AG177: 16.5 | AH177: 36.5 | AJ177: 23 | AK177: 11 | AL177: 34 | AN177: 21.5 | AO177: 19 | AP177: 40.5 | AR177: 21.5 | AS177: 19 | AT177: 40.5 | AV177: 7 | AW177: 9 | AX177: 16 | AZ177: 17.5 | BA177: 15.5 | BB177: 33 | BE177: 8 | BF177: 10 | BG177: 7 | BH177: 7.5 | BI177: 15 | BJ177: 17.5 | BK177: 32.5 | BL177: 418 | BN177: 7.5 | BO177: 7.5 | BP177: 15 | BR177: 9 | BS177: 7.5 | BT177: 16.5 | BU177: ناجحة | BV177: ومنقولة للصف الثانى | BW177: 0 | CS177: 223
A178: 171 | B178: 171 | C178: طالب الصف الاول 171 | E178: عمال | F178: 88 | H178: 14 | I178: 20 | J178: 34 | L178: 16 | M178: 16 | N178: 32 | P178: 10 | Q178: 9 | R178: 19 | T178: 17.5 | U178: 17.5 | V178: 35 | X178: 16.5 | Y178: 15 | Z178: 31.5 | AB178: 9.5 | AC178: 14.5 | AD178: 24 | AF178: 17.5 | AG178: 17.5 | AH178: 35 | AJ178: 16.5 | AK178: 17.5 | AL178: 34 | AN178: 21.5 | AO178: 19 | AP178: 40.5 | AR178: 21.5 | AS178: 16.5 | AT178: 38 | AV178: 7 | AW178: 12 | AX178: 19 | AZ178: 16.5 | BA178: 17.5 | BB178: 34 | BE178: 8 | BF178: 10 | BG178: 7 | BH178: 9 | BI178: 15 | BJ178: 19 | BK178: 34 | BL178: 410 | BN178: 8 | BO178: 8.5 | BP178: 16.5 | BR178: 7.5 | BS178: 7.5 | BT178: 15 | BU178: ناجحة | BV178: ومنقولة للصف الثانى | BW178: 0 | CS178: 202
A179: 172 | B179: 172 | C179: طالب الصف الاول 172 | E179: عمال | F179: 89 | H179: 17.5 | I179: 20 | J179: 37.5 | L179: 12.5 | M179: 14.5 | N179: 27 | P179: 10 | Q179: 8.5 | R179: 18.5 | T179: 14 | U179: 18 | V179: 32 | X179: 16.5 | Y179: 15 | Z179: 31.5 | AB179: 6 | AC179: 8 | AD179: 14 | AF179: 20 | AG179: 14 | AH179: 34 | AJ179: 15.5 | AK179: 16.5 | AL179: 32 | AN179: 21.5 | AO179: 10 | AP179: 31.5 | AR179: 21.5 | AS179: 17.5 | AT179: 39 | AV179: 7.5 | AW179: 12 | AX179: 19.5 | AZ179: 16.5 | BA179: 16.5 | BB179: 33 | BE179: 8 | BF179: 10 | BG179: 7 | BH179: 9 | BI179: 15 | BJ179: 19 | BK179: 34 | BL179: 383.5 | BN179: 6.5 | BO179: 8 | BP179: 14.5 | BR179: 8 | BS179: 5.5 | BT179: 13.5 | BU179: دورثان | BV179: فى : سكرتارية اجنبية - | BW179: 1 | CF179: سكرتارية اجنبية - | CS179: 197
A180: 173 | B180: 173 | C180: طالب الصف الاول 173 | E180: عمال | F180: 90 | H180: 14.5 | I180: 15 | J180: 29.5 | L180: 16 | M180: 16 | N180: 32 | P180: 9.5 | Q180: 8.5 | R180: 18 | T180: 10.5 | U180: 15 | V180: 25.5 | X180: 16.5 | Y180: 15 | Z180: 31.5 | AB180: 8.5 | AC180: 8.5 | AD180: 17 | AF180: 17.5 | AG180: 19 | AH180: 36.5 | AJ180: 15 | AK180: 19 | AL180: 34 | AN180: 20 | AO180: 15 | AP180: 35 | AR180: 23.5 | AS180: 17.5 | AT180: 41 | AV180: 6.5 | AW180: 8.5 | AX180: 15 | AZ180: 16.5 | BA180: 16.5 | BB180: 33 | BE180: 7 | BF180: 10 | BG180: 7 | BH180: 9 | BI180: 14 | BJ180: 19 | BK180: 33 | BL180: 381 | BN180: 7 | BO180: 9 | BP180: 16 | BR180: 8 | BS180: 5 | BT180: 13 | BU180: دورثان | BV180: فى : سكرتارية اجنبية - | BW180: 1 | CF180: سكرتارية اجنبية - | CS180: 191.5
A181: 174 | B181: 174 | C181: طالب الصف الاول 174 | E181: عمال | F181: 91 | H181: 9 | I181: 16 | J181: 25 | L181: 14 | M181: 14.5 | N181: 28.5 | P181: 10 | Q181: 9 | R181: 19 | T181: 14 | U181: 18 | V181: 32 | X181: 12 | Y181: 14.5 | Z181: 26.5 | AB181: 8.5 | AC181: 11.5 | AD181: 20 | AF181: 20 | AG181: 16.5 | AH181: 36.5 | AJ181: 16.5 | AK181: 19 | AL181: 35.5 | AN181: 21.5 | AO181: 17.5 | AP181: 39 | AR181: 21.5 | AS181: 14 | AT181: 35.5 | AV181: 8 | AW181: 7 | AX181: 15 | AZ181: 16.5 | BA181: 16.5 | BB181: 33 | BE181: 8 | BF181: 10 | BG181: 7 | BH181: 9 | BI181: 15 | BJ181: 19 | BK181: 34 | BL181: 379.5 | BN181: 6.5 | BO181: 6.5 | BP181: 13 | BR181: 7.5 | BS181: 5.5 | BT181: 13 | BU181: ناجحة | BV181: ومنقولة للصف الثانى | BW181: 0 | CS181: 189.5
A182: 175 | B182: 175 | C182: طالب الصف الاول 175 | E182: عمال | F182: 92 | H182: 15.5 | I182: 22.5 | J182: 38 | L182: 15 | M182: 16 | N182: 31 | P182: 10.5 | Q182: 10 | R182: 20.5 | T182: 19.5 | U182: 21 | V182: 40.5 | X182: 14 | Y182: 14 | Z182: 28 | AB182: 12 | AC182: 12 | AD182: 24 | AF182: 20 | AG182: 17.5 | AH182: 37.5 | AJ182: 16.5 | AK182: 17.5 | AL182: 34 | AN182: 21.5 | AO182: 20 | AP182: 41.5 | AR182: 22.5 | AS182: 22.5 | AT182: 45 | AV182: 7.5 | AW182: 9.5 | AX182: 17 | AZ182: 19 | BA182: 20 | BB182: 39 | BE182: 7 | BF182: 10 | BG182: 7 | BH182: 9 | BI182: 14 | BJ182: 19 | BK182: 33 | BL182: 429 | BN182: 8 | BO182: 9.5 | BP182: 17.5 | BR182: 9.5 | BS182: 8 | BT182: 17.5 | BU182: ناجحة | BV182: ومنقولة للصف الثانى | BW182: 0 | CS182: 210.5
A183: 176 | B183: 176 | C183: طالب الصف الاول 176 | E183: عمال | F183: 93 | H183: 11.5 | I183: 15.5 | J183: 27 | L183: 15.5 | M183: 14.5 | N183: 30 | P183: 10.5 | Q183: 9 | R183: 19.5 | T183: 12 | U183: 19.5 | V183: 31.5 | X183: 14.5 | Y183: 15 | Z183: 29.5 | AB183: 12.5 | AC183: 13.5 | AD183: 26 | AF183: 20 | AG183: 17.5 | AH183: 37.5 | AJ183: 16.5 | AK183: 19 | AL183: 35.5 | AN183: 19 | AO183: 17.5 | AP183: 36.5 | AR183: 22.5 | AS183: 19 | AT183: 41.5 | AV183: 6.5 | AW183: 9 | AX183: 15.5 | AZ183: 16.5 | BA183: 18.5 | BB183: 35 | BE183: 7 | BF183: 10 | BG183: 7 | BH183: 9 | BI183: 14 | BJ183: 19 | BK183: 33 | BL183: 398 | BN183: 8 | BO183: 9.5 | BP183: 17.5 | BR183: 7.5 | BS183: 5 | BT183: 12.5 | BU183: ناجحة | BV183: ومنقولة للصف الثانى | BW183: 0 | CS183: 194.5
A184: 177 | B184: 177 | C184: طالب الصف الاول 177 | E184: عمال | F184: 94 | H184: 13 | I184: 16 | J184: 29 | L184: 14 | M184: 13.5 | N184: 27.5 | P184: 9.5 | Q184: 8 | R184: 17.5 | T184: 16.5 | U184: 20 | V184: 36.5 | X184: 13 | Y184: 12.5 | Z184: 25.5 | AB184: 6.5 | AC184: 13.5 | AD184: 20 | AF184: 20 | AG184: غ | AH184: 20 | AJ184: 15.5 | AK184: 19 | AL184: 34.5 | AN184: 21.5 | AO184: 17.5 | AP184: 39 | AR184: 22.5 | AS184: 20 | AT184: 42.5 | AV184: 5.5 | AW184: 9.5 | AX184: 15 | AZ184: 16.5 | BA184: غ | BB184: 16.5 | BE184: 7 | BF184: 10 | BG184: 7 | BH184: 9 | BI184: 14 | BJ184: 19 | BK184: 33 | BL184: 356.5 | BN184: 8 | BO184: 9.5 | BP184: 17.5 | BR184: 7 | BS184: 5.5 | BT184: 12.5 | BU184: دورثان | BV184: فى : اقتصاد - جغرافيا - | BW184: 2 | CG184: اقتصاد - | CL184: جغرافيا - | CS184: 191
A185: 178 | B185: 178 | C185: طالب الصف الاول 178 | E185: عمال | F185: 95 | H185: 21.5 | I185: 20 | J185: 41.5 | L185: 21.5 | M185: 20 | N185: 41.5 | P185: 8.5 | Q185: 14.5 | R185: 23 | T185: 8.5 | U185: 25 | V185: 33.5 | X185: 23.5 | Y185: 22.5 | Z185: 46 | AB185: 19 | AC185: 22.5 | AD185: 41.5 | AF185: 17.5 | AG185: 19 | AH185: 36.5 | AJ185: 15 | AK185: 21.5 | AL185: 36.5 | AN185: 19 | AO185: 19 | AP185: 38 | AR185: 18.5 | AS185: 25 | AT185: 43.5 | AV185: 10 | AW185: 14.5 | AX185: 24.5 | AZ185: 12.5 | BA185: 20 | BB185: 32.5 | BE185: 7 | BF185: 9 | BG185: 7 | BH185: 11.5 | BI185: 14 | BJ185: 20.5 | BK185: 34.5 | BL185: 473 | BN185: 7.5 | BO185: 9 | BP185: 16.5 | BR185: 8 | BS185: 7.5 | BT185: 15.5 | BU185: ناجحة | BV185: ومنقولة للصف الثانى | BW185: 0 | CS185: 211
A186: 179 | B186: 179 | C186: طالب الصف الاول 179 | E186: عمال | F186: 96 | H186: 11.5 | I186: 15 | J186: 26.5 | L186: 10.5 | M186: 15.5 | N186: 26 | P186: 9.5 | Q186: 8.5 | R186: 18 | T186: 11 | U186: 9.5 | V186: 20.5 | X186: 14.5 | Y186: 14 | Z186: 28.5 | AB186: 6.5 | AC186: 1.5 | AD186: 8 | AF186: 19 | AG186: 16.5 | AH186: 35.5 | AJ186: 15.5 | AK186: 17.5 | AL186: 33 | AN186: 19 | AO186: 9 | AP186: 28 | AR186: 22.5 | AS186: 15 | AT186: 37.5 | AV186: 6.5 | AW186: 8.5 | AX186: 15 | AZ186: 15 | BA186: 16.5 | BB186: 31.5 | BE186: 7 | BF186: 9 | BG186: 7 | BH186: 9 | BI186: 14 | BJ186: 18 | BK186: 32 | BL186: 340 | BN186: 5 | BO186: 9.5 | BP186: 14.5 | BR186: 7 | BS186: 3.5 | BT186: 10.5 | BU186: دورثان | BV186: فى : محاسبة مالية - سكرتارية اجنبية - | BW186: 2 | CD186: محاسبة مالية - | CF186: سكرتارية اجنبية - | CS186: 177
A187: 180 | B187: 180 | C187: طالب الصف الاول 180 | E187: عمال | F187: 97 | H187: 10 | I187: 16 | J187: 26 | L187: 14 | M187: 12 | N187: 26 | P187: 9.5 | Q187: 7.5 | R187: 17 | T187: 7 | U187: 19.5 | V187: 26.5 | X187: 12.5 | Y187: 14 | Z187: 26.5 | AB187: 6.5 | AC187: 13.5 | AD187: 20 | AF187: 16.5 | AG187: 17.5 | AH187: 34 | AJ187: 16.5 | AK187: 19 | AL187: 35.5 | AN187: 19 | AO187: 19 | AP187: 38 | AR187: 22.5 | AS187: 16.5 | AT187: 39 | AV187: 7 | AW187: 8.5 | AX187: 15.5 | AZ187: 16.5 | BA187: 15 | BB187: 31.5 | BE187: 8 | BF187: 10 | BG187: 7 | BH187: 9 | BI187: 15 | BJ187: 19 | BK187: 34 | BL187: 369.5 | BN187: 2.5 | BO187: 9 | BP187: 11.5 | BR187: 7 | BS187: 8 | BT187: 15 | BU187: ناجحة | BV187: ومنقولة للصف الثانى | BW187: 0 | CS187: 175.5
A188: 181 | B188: 181 | C188: طالب الصف الاول 181 | E188: عمال | F188: 98 | H188: 9.5 | I188: 18 | J188: 27.5 | L188: 11.5 | M188: 15 | N188: 26.5 | P188: 10.5 | Q188: 9.5 | R188: 20 | T188: 9.5 | U188: 19 | V188: 28.5 | X188: 15.5 | Y188: 14.5 | Z188: 30 | AB188: 11.5 | AC188: 11.5 | AD188: 23 | AF188: 19 | AG188: 17.5 | AH188: 36.5 | AJ188: 15.5 | AK188: 16.5 | AL188: 32 | AN188: 20 | AO188: 19 | AP188: 39 | AR188: 22.5 | AS188: 20 | AT188: 42.5 | AV188: 7 | AW188: 10.5 | AX188: 17.5 | AZ188: 16.5 | BA188: 16.5 | BB188: 33 | BE188: 7 | BF188: 10 | BG188: 7 | BH188: 9 | BI188: 14 | BJ188: 19 | BK188: 33 | BL188: 389 | BN188: 9 | BO188: 9 | BP188: 18 | BR188: 9 | BS188: 9 | BT188: 18 | BU188: ناجحة | BV188: ومنقولة للصف الثانى | BW188: 0 | CS188: 185.5
A189: 182 | B189: 182 | C189: طالب الصف الاول 182 | E189: عمال | F189: 99 | H189: 12.5 | I189: 16 | J189: 28.5 | L189: 17.5 | M189: 16.5 | N189: 34 | P189: 9.5 | Q189: 9 | R189: 18.5 | T189: 17.5 | U189: 14 | V189: 31.5 | X189: 17 | Y189: 15 | Z189: 32 | AB189: 11 | AC189: 12 | AD189: 23 | AF189: 20 | AG189: 17.5 | AH189: 37.5 | AJ189: 16.5 | AK189: 20 | AL189: 36.5 | AN189: 20 | AO189: 0 | AP189: 20 | AR189: 22.5 | AS189: 16.5 | AT189: 39 | AV189: 7.5 | AW189: 12 | AX189: 19.5 | AZ189: 16.5 | BA189: 18.5 | BB189: 35 | BE189: 8 | BF189: 10 | BG189: 7 | BH189: 9 | BI189: 15 | BJ189: 19 | BK189: 34 | BL189: 389 | BN189: 6 | BO189: 9.5 | BP189: 15.5 | BR189: 7.5 | BS189: 2.5 | BT189: 10 | BU189: دورثان | BV189: فى : ادارة اعمال - | BW189: 1 | CI189: ادارة اعمال - | CS189: 206
A190: 183 | B190: 183 | C190: طالب الصف الاول 183 | E190: عمال | F190: 100 | H190: 14 | I190: 21 | J190: 35 | L190: 17.5 | M190: 16.5 | N190: 34 | P190: 11.5 | Q190: 10 | R190: 21.5 | T190: 19 | U190: 18 | V190: 37 | X190: 17 | Y190: 14.5 | Z190: 31.5 | AB190: 11 | AC190: 15 | AD190: 26 | AF190: 20 | AG190: 17.5 | AH190: 37.5 | AJ190: 16.5 | AK190: 20 | AL190: 36.5 | AN190: 20 | AO190: 16.5 | AP190: 36.5 | AR190: 22.5 | AS190: 16.5 | AT190: 39 | AV190: 7.5 | AW190: 13.5 | AX190: 21 | AZ190: 16.5 | BA190: 18.5 | BB190: 35 | BE190: 8 | BF190: 10 | BG190: 7 | BH190: 9 | BI190: 15 | BJ190: 19 | BK190: 34 | BL190: 424.5 | BN190: 9 | BO190: 9.5 | BP190: 18.5 | BR190: 7.5 | BS190: 9.5 | BT190: 17 | BU190: ناجحة | BV190: ومنقولة للصف الثانى | BW190: 0 | CS190: 211
A191: 184 | B191: 184 | C191: طالب الصف الاول 184 | E191: عمال | F191: 101 | H191: 11.5 | I191: 14 | J191: 25.5 | L191: 11 | M191: 9 | N191: 20 | P191: 9.5 | Q191: 8.5 | R191: 18 | T191: 5 | U191: 9.5 | V191: 14.5 | X191: 12 | Y191: 14 | Z191: 26 | AB191: 8.5 | AC191: 7.5 | AD191: 16 | AF191: 17.5 | AG191: 17.5 | AH191: 35 | AJ191: 16.5 | AK191: 19 | AL191: 35.5 | AN191: 20 | AO191: 14 | AP191: 34 | AR191: 22.5 | AS191: 20 | AT191: 42.5 | AV191: 7.5 | AW191: 10.5 | AX191: 18 | AZ191: 15 | BA191: 18.5 | BB191: 33.5 | BE191: 8 | BF191: 10 | BG191: 7 | BH191: 9 | BI191: 15 | BJ191: 19 | BK191: 34 | BL191: 352.5 | BN191: 7 | BO191: 9 | BP191: 16 | BR191: 7.5 | BS191: 5.5 | BT191: 13 | BU191: دورثان | BV191: فى : محاسبة مالية - سكرتارية اجنبية - | BW191: 2 | CD191: محاسبة مالية - | CF191: سكرتارية اجنبية - | CS191: 174.5
A192: 185 | B192: 185 | C192: طالب الصف الاول 185 | E192: عمال | F192: 102 | H192: 12.5 | I192: 21 | J192: 33.5 | L192: 17.5 | M192: 14.5 | N192: 32 | P192: 10 | Q192: 9.5 | R192: 19.5 | T192: 17 | U192: 19 | V192: 36 | X192: 15 | Y192: 15.5 | Z192: 30.5 | AB192: 12 | AC192: 17 | AD192: 29 | AF192: 17.5 | AG192: 17.5 | AH192: 35 | AJ192: 17 | AK192: 19 | AL192: 36 | AN192: 21.5 | AO192: 19 | AP192: 40.5 | AR192: 21.5 | AS192: 20 | AT192: 41.5 | AV192: 7 | AW192: 12.5 | AX192: 19.5 | AZ192: 16.5 | BA192: 18.5 | BB192: 35 | BE192: 8 | BF192: 10 | BG192: 8 | BH192: 9 | BI192: 16 | BJ192: 19 | BK192: 35 | BL192: 423 | BN192: 9 | BO192: 9 | BP192: 18 | BR192: 8 | BS192: 9.5 | BT192: 17.5 | BU192: ناجحة | BV192: ومنقولة للصف الثانى | BW192: 0 | CS192: 203
A193: 186 | B193: 186 | C193: طالب الصف الاول 186 | E193: عمال | F193: 103 | H193: 12.5 | I193: 19.5 | J193: 32 | L193: 16 | M193: 13.5 | N193: 29.5 | P193: 11 | Q193: 9 | R193: 20 | T193: 14.5 | U193: 19 | V193: 33.5 | X193: 15.5 | Y193: 16.5 | Z193: 32 | AB193: 8.5 | AC193: 15 | AD193: 23.5 | AF193: 20 | AG193: 19 | AH193: 39 | AJ193: 15.5 | AK193: 19 | AL193: 34.5 | AN193: 21.5 | AO193: 20 | AP193: 41.5 | AR193: 22.5 | AS193: 19 | AT193: 41.5 | AV193: 8 | AW193: 13.5 | AX193: 21.5 | AZ193: 16.5 | BA193: 16.5 | BB193: 33 | BE193: 8 | BF193: 10 | BG193: 7 | BH193: 9 | BI193: 15 | BJ193: 19 | BK193: 34 | BL193: 415.5 | BN193: 6.5 | BO193: 9 | BP193: 15.5 | BR193: 8 | BS193: 5.5 | BT193: 13.5 | BU193: ناجحة | BV193: ومنقولة للصف الثانى | BW193: 0 | CS193: 200
A194: 187 | B194: 187 | C194: طالب الصف الاول 187 | E194: عمال | F194: 104 | H194: 12 | I194: 17.5 | J194: 29.5 | L194: 14.5 | M194: 14.5 | N194: 29 | P194: 10 | Q194: 8.5 | R194: 18.5 | T194: 7.5 | U194: 17.5 | V194: 25 | X194: 14 | Y194: 14 | Z194: 28 | AB194: 8.5 | AC194: 11.5 | AD194: 20 | AF194: 20 | AG194: 16.5 | AH194: 36.5 | AJ194: 16.5 | AK194: 17.5 | AL194: 34 | AN194: 21.5 | AO194: 17.5 | AP194: 39 | AR194: 22.5 | AS194: 16.5 | AT194: 39 | AV194: 6.5 | AW194: 11.5 | AX194: 18 | AZ194: 16.5 | BA194: 16.5 | BB194: 33 | BE194: 7 | BF194: 10 | BG194: 7 | BH194: 9 | BI194: 14 | BJ194: 19 | BK194: 33 | BL194: 382.5 | BN194: 7 | BO194: 9 | BP194: 16 | BR194: 8 | BS194: 6.5 | BT194: 14.5 | BU194: ناجحة | BV194: ومنقولة للصف الثانى | BW194: 0 | CS194: 187
A195: 188 | B195: 188 | C195: طالب الصف الاول 188 | E195: عمال | F195: 105 | H195: 9.5 | I195: 19 | J195: 28.5 | L195: 15 | M195: 16 | N195: 31 | P195: 10 | Q195: 7.5 | R195: 17.5 | T195: 4.5 | U195: 11.5 | V195: 16 | X195: 15 | Y195: 14 | Z195: 29 | AB195: 9.5 | AC195: 11 | AD195: 20.5 | AF195: 20 | AG195: 14 | AH195: 34 | AJ195: 17 | AK195: 17.5 | AL195: 34.5 | AN195: 21.5 | AO195: 10 | AP195: 31.5 | AR195: 21.5 | AS195: 16.5 | AT195: 38 | AV195: 5 | AW195: 10 | AX195: 15 | AZ195: 16.5 | BA195: 16.5 | BB195: 33 | BE195: 7 | BF195: 10 | BG195: 7 | BH195: 9 | BI195: 14 | BJ195: 19 | BK195: 33 | BL195: 361.5 | BN195: 7.5 | BO195: 9 | BP195: 16.5 | BR195: 7.5 | BS195: 5.5 | BT195: 13 | BU195: دورثان | BV195: فى : محاسبة مالية - | BW195: 1 | CD195: محاسبة مالية - | CS195: 182
A196: 189 | B196: 189 | C196: طالب الصف الاول 189 | E196: عمال | F196: 106 | H196: 16 | I196: 19.5 | J196: 35.5 | L196: 22 | M196: 15.5 | N196: 37.5 | P196: 8 | Q196: 12 | R196: 20 | T196: 14.5 | U196: 13.5 | V196: 28 | X196: 17.5 | Y196: 16.5 | Z196: 34 | AB196: 15 | AC196: 9.5 | AD196: 24.5 | AF196: 20 | AG196: 19 | AH196: 39 | AJ196: 15 | AK196: 15 | AL196: 30 | AN196: 21.5 | AO196: 13.5 | AP196: 35 | AR196: 21.5 | AS196: 17.5 | AT196: 39 | AV196: 8 | AW196: 11.5 | AX196: 19.5 | AZ196: 17.5 | BA196: 17.5 | BB196: 35 | BE196: 7 | BF196: 10 | BG196: 7 | BH196: 9 | BI196: 14 | BJ196: 19 | BK196: 33 | BL196: 410 | BN196: 5 | BO196: 9 | BP196: 14 | BR196: 9 | BS196: 9 | BT196: 18 | BU196: ناجحة | BV196: ومنقولة للصف الثانى | BW196: 0 | CS196: 213.5
A197: 190 | B197: 190 | C197: طالب الصف الاول 190 | E197: عمال | F197: 107 | H197: 14 | I197: 12.5 | J197: 26.5 | L197: 18.5 | M197: 15 | N197: 33.5 | P197: 8 | Q197: 12 | R197: 20 | T197: 17 | U197: 16 | V197: 33 | X197: 14 | Y197: 15.5 | Z197: 29.5 | AB197: 12 | AC197: 10.5 | AD197: 22.5 | AF197: 17.5 | AG197: 15 | AH197: 32.5 | AJ197: 17 | AK197: 15 | AL197: 32 | AN197: 16.5 | AO197: 15 | AP197: 31.5 | AR197: 22.5 | AS197: 17.5 | AT197: 40 | AV197: 8 | AW197: 11.5 | AX197: 19.5 | AZ197: 17.5 | BA197: 16.5 | BB197: 34 | BE197: 7 | BF197: 10 | BG197: 7 | BH197: 9 | BI197: 14 | BJ197: 19 | BK197: 33 | BL197: 387.5 | BN197: 5.5 | BO197: 9 | BP197: 14.5 | BR197: 8 | BS197: 6.5 | BT197: 14.5 | BU197: ناجحة | BV197: ومنقولة للصف الثانى | BW197: 0 | CS197: 199.5
A198: 191 | B198: 191 | C198: طالب الصف الاول 191 | E198: عمال | F198: 108 | H198: 15 | I198: 16.5 | J198: 31.5 | L198: 20 | M198: 17 | N198: 37 | P198: 8.5 | Q198: 11.5 | R198: 20 | T198: 13.5 | U198: 14.5 | V198: 28 | X198: 15 | Y198: 14.5 | Z198: 29.5 | AB198: 14 | AC198: 10.5 | AD198: 24.5 | AF198: 20 | AG198: 14 | AH198: 34 | AJ198: 22 | AK198: 18.5 | AL198: 40.5 | AN198: 21.5 | AO198: 15 | AP198: 36.5 | AR198: 16.5 | AS198: 17.5 | AT198: 34 | AV198: 7.5 | AW198: 10.5 | AX198: 18 | AZ198: 17.5 | BA198: 15 | BB198: 32.5 | BE198: 7 | BF198: 10 | BG198: 7 | BH198: 9 | BI198: 14 | BJ198: 19 | BK198: 33 | BL198: 399 | BN198: 7 | BO198: 9 | BP198: 16 | BR198: 9.5 | BS198: 7.5 | BT198: 17 | BU198: ناجحة | BV198: ومنقولة للصف الثانى | BW198: 0 | CS198: 208
A199: 192 | B199: 192 | C199: طالب الصف الاول 192 | E199: عمال | F199: 109 | H199: 14.5 | I199: غ | J199: 14.5 | L199: 16 | M199: غ | N199: 16 | P199: 8 | Q199: غ | R199: 8 | T199: 6.5 | U199: غ | V199: 6.5 | X199: 14 | Y199: غ | Z199: 14 | AB199: 9 | AC199: 0 | AD199: 9 | AF199: 19 | AG199: غ | AH199: 19 | AJ199: 15.5 | AL199: 15.5 | AN199: 21.5 | AO199: غ | AP199: 21.5 | AR199: 22.5 | AS199: غ | AT199: 22.5 | AV199: 7.5 | AW199: غ | AX199: 7.5 | AZ199: 17.5 | BA199: غ | BB199: 17.5 | BE199: 7 | BF199: 10 | BG199: غ | BH199: غ | BI199: 7 | BJ199: 10 | BK199: 17 | BL199: 188.5 | BN199: 5 | BO199: غ | BP199: 5 | BR199: 7.5 | BS199: غ | BT199: 7.5 | BU199: راسبة | BV199: فى : لغة عربية - لغة انجليزية - لغة فرنسية - محاسبة مالية - سكرتارية عربية - سكرتارية اجنبية - اقتصاد - تسويق - ادارة اعمال - رياضة عامة - جغرافيا - حاسب ألى - مجموع - تربية وطنية - تربية دينية | BW199: 13 | CA199: لغة عربية - | CB199: لغة انجليزية - | CC199: لغة فرنسية - | CD199: محاسبة مالية - | CE199: سكرتارية عربية - | CF199: سكرتارية اجنبية - | CG199: اقتصاد - | CH199: تسويق - | CI199: ادارة اعمال - | CJ199: قانون تجارى - | CK199: رياضة عامة - | CL199: جغرافيا - | CM199: حاسب ألى - | CN199: مجموع - | CO199: تربية وطنية - | CP199: تربية دينية | CS199: 188.5
A200: 193 | B200: 193 | C200: طالب الصف الاول 193 | E200: عمال | F200: 110 | H200: 14 | I200: 13 | J200: =SUM(G200:I200) -> 27 | L200: 16.5 | M200: 10.5 | N200: =SUM(K200:M200) -> 27 | P200: 8.5 | Q200: 11 | R200: =SUM(O200:Q200) -> 19.5 | T200: 12.5 | U200: 7.5 | V200: =SUM(S200:U200) -> 20 | X200: 12 | Y200: 13.5 | Z200: =SUM(W200:Y200) -> 25.5 | AB200: 11.5 | AC200: 8.5 | AD200: =SUM(AA200:AC200) -> 20 | AF200: 19 | AG200: 12.5 | AH200: =SUM(AE200:AG200) -> 31.5 | AJ200: 15.5 | AK200: 17.5 | AL200: =SUM(AI200:AK200) -> 33 | AN200: 21.5 | AO200: 7.5 | AP200: =SUM(AM200:AO200) -> 29 | AR200: 22.5 | AS200: 20 | AT200: =SUM(AQ200:AS200) -> 42.5 | AV200: 4.5 | AW200: 10.5 | AX200: =SUM(AU200:AW200) -> 15 | AZ200: 15 | BA200: 14 | BB200: =SUM(AY200:BA200) -> 29 | BE200: 7 | BF200: 10 | BG200: 7 | BH200: 9 | BI200: =SUM(BC200,BE200,BG200) -> 14 | BJ200: 19 | BK200: =SUM(BI200,BJ200) -> 33 | BL200: =SUM(J200,N200,R200,V200,Z200,AD200,AH200,AL200,AP200,AT200,AX200,BB200,BK200) -> 352 | BN200: غ | BO200: 10 | BP200: =SUM(BM200:BO200) -> 10 | BR200: 8 | BS200: 6.5 | BT200: =SUM(BQ200:BS200) -> 14.5 | BU200: =IF(C200="","",IF(BW200=0,"ناجحة",IF(BW200<=2,"دورثان","راسبة"))) -> دورثان | BV200: =IF(C200="","",IF(BW200=0,"ومنقولة للصف الثانى",IF(BW200>0,"فى : "&CONCATENATE(CA200,CB200,CC200,CD200,CE200,CF200,CG200,CH200,CI200,CK200,CL200,CM200,CN200,CO200,CP200)))) -> فى : محاسبة مالية - | BW200: 1 | CA200: =IF(C200="","",IF(OR(I200<$I$7,I200="غ",J200<$J$7),CA$3&" - ","")) ->  | CB200: =IF(C200="","",IF(OR(M200<$M$7,M200="غ",N200<$N$7),CB$3&" - ","")) ->  | CC200: =IF(C200="","",IF(OR(Q200<$Q$7,Q200="غ",R200<$R$7),CC$3&" - ","")) ->  | CD200: =IF(C200="","",IF(OR(U200<$U$7,U200="غ",V200<$V$7),CD$3&" - ","")) -> محاسبة مالية - | CE200: =IF(C200="","",IF(OR(Y200<$Y$7,Y200="غ",Z200<$Z$7),CE$3&" - ","")) ->  | CF200: =IF(C200="","",IF(OR(AC200<$AC$7,AC200="غ",AD200<$AD$7),CF$3&" - ","")) ->  | CG200: =IF(C200="","",IF(OR(AG200<$AG$7,AG200="غ",AH200<$AH$7),CG$3&" - ","")) ->  | CH200: =IF(C200="","",IF(OR(AK200<$AK$7,AK200="غ",AL200<$AL$7),CH$3&" - ","")) ->  | CI200: =IF(C200="","",IF(OR(AO200<$AO$7,AO200="غ",AP200<$AP$7),CI$3&" - ","")) ->  | CJ200: =IF(C200="","",IF(OR(AS200<$AS$7,AS200="غ",AT200<$AT$7),CJ$3&" - ","")) ->  | CK200: =IF(C200="","",IF(OR(AW200<$AW$7,AW200="غ",AX200<$AX$7),CK$3&" - ","")) ->  | CL200: =IF(C200="","",IF(OR(BA200<$BA$7,BA200="غ",BB200<$BB$7),CL$3&" - ","")) ->  | CM200: =IF(C200="","",IF(OR(BG200<$BG$7,BH200<$BH$7,BI200<$BI$7,BI200="غ",BJ200<$BJ$7,BJ200="غ"),CM$3&" - ","")) ->  | CN200: =IF(C200="","",IF(BL200<$BL$7,CN$3&" - ","")) ->  | CO200: =IF(C200="","",IF(OR(BO200<$BO$7,BO200="غ",BP200<$BP$7),CO$3&" - ","")) ->  | CP200: =IF(C200="","",IF(OR(BS200<$BS$7,BS200="غ",BT200<$BT$7),CP$3,"")) ->  | CS200: =IF(C200="","",SUM(H200,L200,P200,T200,X200,AB200,AF200,AJ200,AN200,AR200,AV200,AZ200,BE200,BF200)) -> 190
... 498 more rows

Sheet ورقة2

Sheet ورقة3
